Workbook

Sheet Introduction
A7: ● | B7: This tool has been developed to help identify and screen appropriate Local Resource Options (LROs)
A8: ● | B8: This spreadsheet should be used in conjunction with the available documentation and reports
D10: Cells that need to be completed
C11: Example | D11: User entered cells (text colour changes to blue)
D12: Cells that will be automatically completed, linked to another cell
D13: Background and information (for example, headings)
D14: Cells relating to options chosen by user (conditional formatting)
D15: Guidance and information
D16: Lookup data
A18: ● | B18: A blank copy of the tool should always be used and saved accordingly.
A19: ● | B19: A number of different LROs and criteria have been included, however this does not form an exhaustive list of all possible LROs and considerations. These can be changed and additional ones added depending on the specific area
A20: ● | B20: Criteria Selection: Define a set of evaluation criteria based on your methodology document, such as cost, effectiveness, ease of implementation, sustainability, and stakeholder acceptance. Each criterion should align with your own and wider objectives for water resource management.
B22: Version control
B23: This spreadsheet was developed as part of the Agricultural LROs project (2023s1608 - EA SE)
C25: Version | D25: Changes | E25: Developed By | F25: Date | G25: Checked | H25: Date | I25: Approved | J25: Date
C26: 1 | D26: Initial development and set-up | E26: EK, MF, RB | F26: 2024-03-08 | G26: EK | H26: 2024-03-11 | I26: EK | J26: 2024-03-11
C27: 2 | D27: Added in notes matrix and corrected ranking sum formula | E27: MB(EA) | F27: 2024-06-17
C28: 3 | D28: Screening and ranking steps merged; updated LRO starting list with new terminology and merged demand side | E28: MB(EA) | F28: 2025-05-23 | G28: EC/NP (EA) | H28: 2025-05-30 | I28: MB (EA) | J28: 2025-06-04
C29: 4
C30: 5
C31: 6
C32: 7
C33: 8
C34: 9
C35: 10

Sheet Flow Chart & Instructions
B1: Flow chart explaining tool and key settings | O1: Flow chart explaining generic LRO screening and ranking process
B3: This spreadsheet is intended to help guide the user through the steps for identifying and ranking potential LRO options. | O3: The generic flow chart for the LRO assessment flow chart is shown below. This spreadsheet sits between Stages 2 to 5.
B4: It is intended to be flexible, allowing the user to adjust to their specific requirements and needs. Users have the option to identify as many options and criteria as necessary to be incorporated into the assessment, with an option to add combined LRO options to be assessed separately. | O4: Buttons are provided to guide you through the stages, however it is likely the process will need to be iterative and refined as the project progresses.
O5: Conditional formatting is used to help identify where data input is needed and where the outputs are calculated.
O9: LRO flow chart
B10: Instructions
B13: 1. Site specific information: Summarise available information relating to the site characteristics and any requirements for data collection. Information to help guide the decision making process such as identifying priorities and information gathered through the stakeholder engagement process should also be summarised. Can be as specific or high level as needed, but should help identify site specific opportunities and constraints. | G13: Site specific information
B16: 2. Identify LRO options: A list of LROs has been provided for example. This list is not exhaustive, and it is assumed that most you will have some idea of the solutions they wish to consider. This list is intended to guide users and help them to consider other options they may not have considered. You may screen these for relevance for your location prior to starting discussions with the group. | G16: LROs
B19: 3. Screening and Ranking Criteria: Define a set of evaluation criteria based on your methodology document, such as cost, effectiveness, ease of implementation, sustainability, and stakeholder acceptance. Each criterion should align with your objectives for water resource management. A starting point has been included. Select and assign weights to key identified criterion reflecting its relative importance; do this in discussion with your group. The sum of all weights should equal 1 (or 100%). These weights are crucial because they reflect your strategic priorities, such as prioritizing cost over ease of implementation or vice versa. A rank-sum weighting has been immplemented in the template. | G19: Criteria
B22: 4. Results: Assign a scoring scale for each criterion (e.g., 1 to 5 or 1 to 10),. Multiply each option's score by the weight of the corresponding criterion and sum these values to get a total weighted score for each option. Use these scores to decide which score to take forward. There is an additional option to export these results to the external polyvis tool. | G22: Results
B25: 5. Prioritised options: Options identified through the ranking to be taken forward for more detailed assessment, links are provided to take you through to example flow charts to help identify next steps. select and assign weights to key identified criterion reflecting its relative importance. The sum of all weights should equal 1 (or 100%). These weights are crucial because they reflect your strategic priorities, such as prioritizing cost over ease of implementation or vice versa. | G25: Prioritised Options
B31: Criteria Selection: Define a set of evaluation criteria based on your methodology document, such as cost, effectiveness, ease of implementation, sustainability, and stakeholder acceptance. Each criterion should align with your objectives for water resource management.
B32: Scoring System: Assign a scoring scale for each criterion (e.g., 1 to 5 or 1 to 10), where higher scores represent better alignment with the desired outcome. For example, lower cost might score higher, as would higher water savings or sustainability.
B33: Weighting: Assign weights to each criterion reflecting its relative importance. The sum of all weights should equal 1 (or 100%). These weights are crucial because they reflect your strategic priorities, such as prioritizing cost over ease of implementation or vice versa.
B34: Option Scoring: For each LRO, assign scores based on each criterion. This requires detailed analysis and possibly stakeholder consultation to ensure accurate scoring.
B35: Calculate Weighted Scores: Multiply each option's score by the weight of the corresponding criterion and sum these values to get a total weighted score for each option.
B36: Ranking: Rank the options based on their total weighted scores. Higher scores indicate more favourable LROs according to your defined criteria and weights.
B37: Sensitivity Analysis (Optional): To test the robustness of your rankings, you can adjust the weights of the criteria and observe how the rankings of the LROs change. This helps identify if certain options are consistently preferred or if small changes in weights could lead to significant ranking shifts.

Sheet Site specific information
A1: Topic | B1: Details | N1: References
A2: Site specific information
A3: Area
A4: Climate | B4: Eastern England: climate - Much of eastern England receives less than 700 mm per year and includes some of the driest areas in the country. England and Wales the wettest places are in the Lake District, receiving an average of over 3000 mm of rain a year, whilst in the western Scottish mountains averages of over 4000 mm occur. Across most of the region there are, on average, about 30 rain days (rainfall greater than 1 mm) in winter (December to February) and less than 25 days in summer (June to August) with the highest averages being at the higher altitude of the Wolds | N4: Met Office Climate PDFs https://www.metoffice.gov.uk/binaries/content/assets/metofficegovuk/pdf/weather/learn-about/weather/regional-climates/eastern-england_-climate-met-office.pdf
A5: Topography | B5: The overall area is low-lying, varying from around 38-12mAOD. The River flows in a south-westerly direction through the study catchment, cutting a central valley through the area. | N5: Environment Agency LiDAR (2022) https://nrfa.ceh.ac.uk/data/search
A6: Soils | B6: Soils within the area are generally comprised of shallow lime-rich soils over chalk or limestone and freely draining sandy Breckland soils. In the River valley bottom, there are loamy and sandy soils with naturally high groundwater, neighboured by small areas of freely draining slightly acidy sandy soils | N6: Soilscapes Cranfield https://nrfa.ceh.ac.uk/data/search
A7: Geology | B7: Bedrock geology is composed of White Chalk Subgroup with overlying superficial deposits of alluvium, river terrace sands and gravels and till. There is also an area of brickearth mapped to the southeast of East Harling. | N7: BGS GeoIndex
A8: Hydrogeology | B8: The study site is situated on a principal aquifer characterised by highly significant fracture flow. Within the catchment, valley tops are shown to contain Zone 2a (drift), 2b (drift) and Zone 3 (Till) recharge domains, likely to give low recharge values, whilst the valley floors are shown to be Alluvium/ Sands and gravel, likely to have high recharge values. There may be some interaction between zones, whereby surface water runoff from the low-recharge valley tops flows into the high recharge valley bottoms
A9: Hydrology | B9: The River XX is the main watercourse in the study catchment. To the east, the River XX is joined by the River YY, north of the village of ZZZ (NGR: ). Moreover, an unnamed watercourse flows west to east across the northern half of the study site, joining the River XX just east of the village of ZZZ (NGR: ).
A10: Environmental designations (GIS and mapping data) | B10: Site falls within SSI impact risk zone due to the following Sites of Special Scientific Interest Units (England) / Special Protection Areas of Conservation (England): XXXX Special Areas of Conservation: XXXX | N10: https://designatedsites.naturalengland.org.uk/SiteSearch.aspx
A11: Flood risk | B11: The XXX, north of YYY encompassed Flood Zone 2 and 3. | N11: https://flood-map-for-planning.service.gov.uk/location
A12: Other water users | B12: Several farmers are users of water on the XXX and the groundwater resource
A13: Public water supply information | B13: AAAA water - public water supply abstraction points nearby? XXX
A14: IDBs in the area? | B14: ZZZ IDB | N14: https://www.ada.org.uk/idb-map/
A15: Canal network nearby? | B15: No
A16: Data collection requirements
A17: Information on water usage | N17: Example of data collated: • The number of applications is based on a hot dry year, these are the maximum number of applications that have been applied to some of the YYY farms’ crops in the past. This is not to say there will not be higher demand in the future depending on climate change. • Average area is based on the rough area during a 1 in 8 rotation, i.e., one crop of potatoes every eight years. • Soil types within the map and surrounding area are very similar so the average figures in the table can be extrapolated to any given nearby area. • The economics of irrigating non vegetable and sugar beet crops vary from year to year, i.e., is driven by market prices. The irrigation requirements have thus been calculated for both options. In certain years irrigating everything as per the volumes in Table 5 6 is certainly possible. • The volume required is significantly over the current licence volumes for the Farms'. This also does not take climate change into account nor the certainty that groundwater licences in the area will be cut from 2030 onwards. • For non-agricultural businesses use similar approach to forecast current and future requirements.
A18: Existing licences and water rights? | B18: List of licences, volumes and constraints - to be supplied by EA
A19: What are the environmental impacts of potential LROs, including on biodiversity and local water cycles? | B19: Any critical downstream locations, species that could be impacted by changing regimes
A20: What technical feasibility studies are required for the proposed LROs? | B20: e.g. geotech analysis, flood scenarios
A21: How will the social impacts of implementing new LROs be assessed and managed? | B21: e.g. new blue-green amenity for area? These are likely to be small unless large scale infrastructure proposed.
A22: Decision making support
A23: What do the types of licence suggest about existing LROs (i.e. aggregated licence, storage licences etc) | B23: Existing aggregated licences imply that there is possibility/willingness to expand aggregation in order to maximise yield. There is a winter abstraction licence available that can be utilised once a storage reservoir is built.
A24: Which criteria are most important for evaluating LROs (e.g., environmental impact, cost-effectiveness, technical feasibility)? | B24: Note first thoughts from study participants
A25: How should different criteria be weighted in the decision-making process? | B25: Detail output from discussions with study participants
A26: What potential barriers to implementation exist, and how can they be overcome? | B26: e.g. • Local authority planning and licences are the biggest obstruction to reservoir planning and other LROs • There has been pushback from the EA previously related to water sharing as they believe it increases the potential for more abstraction • Similarly, the EA tend to cut licences if abstraction are aggregated
A27: What funding mechanisms are available for implementing selected LROs? | B27: e.g. Water Management Grant (Defra), flood alleviation funds, SFI
A28: How will the success of implemented LROs be monitored and evaluated?
A29: Information from stakeholder engagement
A30: What are the primary water resource challenges and concerns? | B30: e.g. Struggling to meet demand - within the five most recent warm years XXX farm has had to use 95%-100% of its water. Licences were cut by 25% in 2018 and are currently under review, most likely they will be cut again in 2030
A31: How do they currently manage water resources for agriculture? | B31: See above.
A32: Where are the existing licences and how are they used? | B32: See above.
A33: Are there any local water management practices that could be scaled or improved? | B33: e.g. Aggregation of licences could be expanded to a wider area as there is a general connectivity between farms in the area; sharing of water within licences
A34: Any LROs that have been discussed/planned in the area? | B34: Explore historic thoughts that farms have considered e.g. Summary/ Potential Options • Reservoir – small or big dam determined through cost benefit analysis (farm seems keen on bigger reservoir) • Aggregate groundwater abstraction licences on larger scale • Storage and reuse of flood waters from the River Thet in connection with dam option • Screening for other options • Managed aquifer recharge – has been looked into but not in detail
A35: Site map
A36: Insert map of area showing water courses, abstraction licences, points of interest

Sheet LROs
A1: Single Options | F1: Combined Options
A2: LRO ID | B2: Type | C2: LRO Title | D2: LRO Description | F2: LRO ID | G2: LRO Title | H2: LRO Description | N2: Demand Reduction examples if LRO group are open to collectively using
A3: =_xlfn.CONCAT("LRO",ROW(C3)-2) -> LRO1 | B3: Sharing | C3: Water Sharing Agreements | D3: Collaborative approaches among users to share water resources sustainably. | F3: =_xlfn.CONCAT(A4," + ",A17) -> LRO2 + LRO15 | G3: =_xlfn.CONCAT(C4," + ",C17) -> Water Rights Trading + Managed aquifer recharge | H3: =_xlfn.CONCAT(D4," + ",D17) -> Rights to water resources can be bought and sold, providing flexibility and potentially more efficient use. + Storing excess water in aquifers during times of surplus for use during periods of scarcity. | N3: Micro-Irrigation Systems | O3: Drip or trickle irrigation systems that deliver water directly to the plant roots, minimizing waste.
A4: =_xlfn.CONCAT("LRO",ROW(C4)-2) -> LRO2 | B4: Sharing | C4: Water Rights Trading | D4: Rights to water resources can be bought and sold, providing flexibility and potentially more efficient use. | F4: =_xlfn.CONCAT(A16," + ",A5) -> LRO14 + LRO3 | G4: =_xlfn.CONCAT(C16," + ",C5) -> Farm Storage Reservoirs + Linking sources / aggregating licences | H4: =_xlfn.CONCAT(D16," + ",D5) -> Creating reservoirs on farms to collect and store rainwater or surface water. + Linking existing/ new solutions | N4: Soil Moisture Monitoring | O4: Using sensors to determine the precise water needs of crops, optimizing irrigation schedules.
A5: LRO3 | B5: Sharing | C5: Linking sources / aggregating licences | D5: Linking existing/ new solutions | G5: Example Additional | H5: … | N5: Water-Efficient Technologies | O5: Adopting technologies and practices that reduce water use, such as smart irrigation systems.
A6: LRO4 | B6: Sharing | C6: Piped and pumped network | D6: Installing permanent pumps and pipes between farms to share water | N6: Leakage Control | O6: Implementing measures to reduce water loss in irrigation systems.
A7: LRO5 | B7: Sharing | C7: Conveyance via natural water courses | D7: Use of natural / drainage system to convey water, the environment may require a tax | N7: Improving Irrigation Techniques | O7: Adopting precision irrigation technology like drip systems and soil moisture sensors. Implementing water-saving practices such as mulching and using cover crops to reduce evaporation. Scheduling irrigation based on actual crop needs and weather forecasts to avoid overwatering. Upgrading irrigation equipment to more efficient models and regularly maintaining existing systems to ensure optimal performance.
A8: LRO6 | B8: Source | C8: Conjunctive Use Schemes | D8: Managing a combination of surface water and groundwater to optimize availability and reliability. | N8: Agroecological Farming Practices | O8: Practices that sustainably manage land and water resources, such as crop rotation and maintaining soil health.
A9: LRO7 | B9: Source | C9: Rainwater Harvesting | D9: Collecting and storing rainwater from roofs or other surfaces for agricultural use.
A10: LRO8 | B10: Source | C10: Flood water use | D10: Combining flood risk management with water storage and conservation efforts to mitigate impacts while enhancing water availability.
A11: LRO9 | B11: Source | C11: All-year High flow abstraction | D11: Using a hands-on flow condition to scalp high flows throughout the year
A12: LRO10 | B12: Source | C12: Use of drainage water | D12: Use of water from IDBs or other drainage water that would be moving to sea
A13: LRO11 | B13: Source | C13: Water recycling - using output from a WTTP | D13: Output from a WTTP
A14: LRO12 | B14: Source | C14: Water recycling - on farm | D14: Implementing systems for treating and reusing wastewater
A15: LRO13 | B15: Source | C15: Automation of abstraction | D15: Use of telemetry and automation to optimise hands on opportunities
A16: LRO14 | B16: Storage | C16: Farm Storage Reservoirs | D16: Creating reservoirs on farms to collect and store rainwater or surface water.
A17: LRO15 | B17: Storage | C17: Managed aquifer recharge | D17: Storing excess water in aquifers during times of surplus for use during periods of scarcity.
A18: LRO16 | B18: Storage | C18: Use of drainage ditches / IDB drains to store water | D18: Raising the operating level in winter to store water
A19: LRO17 | B19: Storage | C19: Flood plain storage
A20: LRO18 | B20: Demand | C20: Demand reduction measures | D20: See examples to right hand side
A21: LRO19 | C21: Example Additional | D21: …
FB33: 1
FB34: 2
FB35: 3
FB36: 4
FB37: 5
FB38: 6
FB39: 7
FB40: 8
FB41: 9
FB42: 10
FB43: 11
FB44: 12
FB45: 13
FB46: 14
FB47: 15
FB48: 16
FB49: 17
FB50: 18
FB51: 19
FB52: 20

Sheet Criteria
A1: Rank number | B1: Criterion | C1: Description | G1: Scoring
B2: Criterion | C2: Description | D2: Rank | E2: Weight | F2: Weight | G2: 0 | H2: 1 | I2: 2 | J2: 3 | K2: 4 | L2: 5
A3: RC1 | B3: Cost | C3: The financial investment required for implementation and ongoing maintenance of the LRO. | D3: 1 | E3: =(COUNTA($C$3:$C$323)-D3+1) -> 19 | F3: =E3/SUM($E$3:$E$458) -> 0.09452736318 | G3: >£10m | H3: £5m-£10m | I3: £1m-£5m | J3: £500,000-£1m | K3: £100,000-£500,000 | L3: <£100,000
A4: RC2 | B4: Water security /reliability of supply | C4: Consistency and dependability of the water source. Including climatic suitability for operational requirements. Consider also effects of longer climatic variablity | D4: 2 | E4: 18 | F4: 0.08955223881 | G4: Inconsistent and unpredictable availability | H4: Intermittent availability, low volume | I4: Intermittent availability but good volume when available | J4: Intermittent availability but large volume when available | K4: Reliable supply | L4: Very reliable long term supply
A5: RC3 | B5: Water resource benefit | C5: Assessing the ability to use the water source in a manner that can be sustained over the long term without leading to depletion. | D5: 3 | E5: 17 | F5: 0.08457711443 | G5: No benefit | H5: Low yield | I5: Low/medium | J5: Medium | K5: Medium/High | L5: High
A6: RC4 | B6: Stakeholder preference | C6: LRO discussed as a preference by the abstractor group | D6: 4 | E6: 16 | F6: 0.07960199005 | G6: No preference. | H6: Low preference, no discussions or research done. | I6: Some preference, initial discussions and research. | J6: Medium preference, initial plan. | K6: High preference, high-level plan | L6: Already established a plan on a way forward with this option
A7: RC5 | B7: Operational Complexity (including maintenance) | C7: Intricacies involved in managing and maintaining the LRO, including technical, logistical, and administrative aspects. Energy costs during operation | D7: 5 | E7: 15 | F7: 0.07462686567 | G7: No simplification of operations considered. | H7: Highly complex operations, difficult maintenance. | I7: Some operational difficulties, maintenance intensive. | J7: Operations and maintenance meet standard requirements. | K7: Operations well-managed, maintenance efficient. | L7: Exceptionally streamlined and efficient operations and maintenance.
A8: RC6 | B8: Permits and Licenses | C8: Need for and the ease of obtaining necessary permits and licenses for the LRO to operate legally. | D8: 6 | E8: 14 | F8: 0.06965174129 | G8: No attempt to obtain permits/licenses. | H8: Difficulty in obtaining necessary permits/licenses. | I8: Some permits/licenses obtained, process not fully compliant. | J8: Obtained necessary permits/licenses with effort. | K8: Good process in place for obtaining permits/licenses. | L8: Streamlined, exemplary permit/license acquisition process.
A9: RC7 | B9: Regulatory Compliance | C9: Ensuring the water resource option aligns with legal frameworks and regulations governing water use. Adherence to all relevant legal, environmental, and regulatory requirements | D9: 7 | E9: 13 | F9: 0.06467661692 | G9: No compliancy | H9: Limited compliancy. | I9: Partial compliancy. | J9: Adequate compliancy. | K9: Good compliancy. | L9: Fully compliant.
A10: RC8 | B10: Water Rights | C10: LRO complies with existing water rights and does not infringe on the rights of other users. | D10: 8 | E10: 12 | F10: 0.05970149254 | G10: No consideration of existing water rights. | H10: Potential infringement on existing rights. | I10: Some conflicts with water rights, some secured. | J10: Complies with existing water rights. | K10: Good standing with water rights among stakeholders. | L10: Exemplary water rights management for all stakeholders.
A11: RC9 | B11: Water Savings per Pound Invested | C11: Efficiency measurement of how much water is saved relative to the cost involved in the LRO. | D11: 9 | E11: 11 | F11: 0.05472636816 | G11: No savings - investment leads to no water saved. | H11: Very low savings per pound invested | I11: Low to moderate savings per pound. | J11: Moderate savings per pound. | K11: High savings per pound | L11: Very high savings per pound invested.
A12: RC10 | B12: Technical Feasibility | C12: The practicality of implementing the option with current technology and within the specific local context. | D12: 10 | E12: 10 | F12: 0.04975124378 | G12: Not feasible. | H12: Feasible with significant difficulty. | I12: Feasible with moderate difficulty. | J12: Feasible with some minor issues to resolve. | K12: Easily feasible within current capabilities and reasonable cost. | L12: Feasibility is not an issue and is within easy technical reach.
A13: RC11 | B13: Financing / Funding | C13: Availablity of funding / financing. If loans are required would they match with licence durations. Are there government grants that could cover this (e.g. SFI, Adopt, technology). Are there other organisations who could support (e.g. wildlife, supply chain) | D13: 10 | E13: 10 | F13: 0.04975124378 | G13: To be self financed | H13: Loans will be required, repayment terms may be difficult to justify | I13: No external funding streams avaiable, loans required | J13: Potential external funding stream available covering some cost | K13: External funding streams available, covering proportion of cost | L13: Multiple external funding streams available, covering proportion of cost
A14: RC12 | B14: Infrastructure Requirements | C14: Space for physical infrastructure is available and well located | D14: 12 | E14: 12 | F14: 0.05970149254 | G14: No space on farm available for infrastructure | H14: Space available but at considerable cost to productivity | I14: Space available but design and negotiation required | J14: Adequate space available, reasonably located for connectivity | K14: Space available, minor changes will be required | L14: Space available, well located for connectivity
A15: RC13 | B15: Scalability | C15: The potential for the LRO to be expanded or adapted in size and capacity to meet future requirements or opportunities. | D15: 13 | E15: 13 | F15: 0.06467661692 | G15: No consideration for scalability. | H15: Limited or no potential for scaling operations. | I15: Some potential for scaling, but with significant limitations. | J15: Adequately scalable within current operational scope. | K15: Good potential for scaling operations in the future. | L15: Highly scalable operations with foresight for future demands.
A16: RC14 | B16: Community Effects | C16: Evaluating the impacts of the LRO on local communities, ensuring that there are no adverse effects on other water users or local community (flood risk) | D16: 14 | E16: =(COUNTA($C$3:$C$323)-D16+1) -> 6 | F16: 0.02985074627 | G16: No assessment of community or ecosystem impacts. | H16: Negative impacts on communities or ecosystems, no mitigation. | I16: Some identified impacts on communities or ecosystems, inadequate action. | J16: Adequate measures to avoid negative community and ecosystem impacts. | K16: Positive actions taken to enhance communities and ecosystems. | L16: Leading initiatives for community and ecosystem conservation and enhancement.
A17: RC15 | B17: Time to Implement | C17: The timeframe required to put the water resource option into operation, from planning through to execution. | D17: 15 | E17: 5 | F17: 0.02487562189 | G17: No estimate on the time of implementation provided. | H17: Implementation expected to take more than 5 years due to extensive planning, regulatory challenges, or other complexities. | I17: Implementation time estimated between 3 to 5 years, with significant construction or regulatory processes slowing progress. | J17: Implementation time estimated between 1 to 3 years, with well-understood and manageable processes. | K17: Implementation time estimated at 6 to 12 months, with minor regulatory and construction considerations. | L17: Rapid implementation possible within 6 months, indicating a ready-to-go solution with all preparations and approvals in place.
A18: RC16 | B18: Environmental Impact | C18: The potential effects of the LRO on local ecosystems, including impacts on biodiversity and natural habitats. | D18: 16 | E18: 4 | F18: 0.01990049751 | G18: No environmental impact assessment. | H18: Significant unmitigated negative impact. | I18: Identified impacts with limited mitigation. | J18: Environmental impacts adequately mitigated. | K18: Conservation measures exceed standards. | L18: Leading environmental conservation and enhancement.
A19: RC17 | B19: Effectiveness in Reducing License Strain | C19: The ability of the LRO to alleviate pressures on existing water licenses, ensuring sustainable use of water resources in agricultural practices. | D19: 17 | E19: 3 | F19: 0.01492537313 | G19: Slight reduction in license strain. | H19: Slight reduction in license strain. | I19: Moderate reduction in license strain but not significant. | J19: Good reduction in license strain, some relief provided. | K19: Significant reduction in license strain, greatly assists current license holders. | L19: Completely alleviates license strain, no additional pressure on water resources.
A20: RC18 | B20: Carbon Footprint | C20: Contribution to greenhouse gas emissions and climate impact. | D20: 18 | E20: 2 | F20: 0.009950248756 | G20: No assessment of carbon footprint. | H20: High carbon footprint, no mitigation plan. | I20: Some reduction in carbon emissions, but not sufficient. | J20: Adequate measures for carbon footprint management. | K20: Good practices in place for reducing carbon emissions. | L20: Industry-leading carbon footprint reduction and management.
A21: RC19 | B21: Synergies with Other Initiatives | C21: Potential to complement or enhance other projects and initiatives. | D21: 19 | E21: 1 | F21: 0.004975124378 | G21: No consideration for synergies. | H21: Poor integration with other initiatives. | I21: Some synergies with other projects, but not leveraged well. | J21: Adequate synergies and integration with other initiatives. | K21: Good enhancement of project through synergies. | L21: Excellent integration and leadership in synergistic initiatives.
A27: Notes on weight assignment methodologies
A28: In a multi-sector LRO update the criteria and weightings to reflect on differing scales/drivers e.g. multi-sector including leisure would want community benefits more highly ranked
A29: Equal Weighting: Each criterion is given the same importance.
A30: Rank Sum Weighting: The most important criterion gets a weight of n (the number of criteria), the next important gets n-1, and so on, then these numbers are normalised to sum to 1.
A31: Direct Assignment: Stakeholders or experts assign a weight to each criterion based on their knowledge or preference, then these weights are normalised.
A32: Pairwise Comparison: A more complex method where each criterion is compared against every other criterion to establish which of the two is more important, and by how much.

Sheet Carbon values (hidden)
B2: Non-traded carbon values
B4: Source: | C4: BEIS. (2021). Valuation of energy use and greenhouse gas. Supplementary guidance to the HM Treasury Green Book on Appraisal and Evaluation in Central Government. Data tables 1 to 19: supporting the toolkit and the guidance.
B6: Table 3: Carbon prices and sensitivities 2020-2050 for appraisal, 2020£/tCO2e | H6: Inflated carbon values to 2021 prices, UK GDP deflator: | L6: ='GDP deflators'!I77/'GDP deflators'!I76 -> 1.000762581
H7: 1 | I7: 2 | J7: 3 | K7: 4
C8: Non-traded | I8: Non-traded
C9: Low | D9: Central | E9: High | I9: Low | J9: Central | K9: High
B10: 2020 | C10: =D10*0.5 -> 120.4792386 | D10: =D11*0.985 -> 240.9584773 | E10: =D10*1.5 -> 361.4377159 | H10: 2020 | I10: =C10*$L$6 -> 120.5711138 | J10: =D10*$L$6 -> 241.1422276 | K10: =E10*$L$6 -> 361.7133415
B11: 2021 | C11: =D11*0.5 -> 122.3139479 | D11: 244.6278957 | E11: =D11*1.5 -> 366.9418436 | H11: 2021 | I11: =C11*$L$6 -> 122.4072222 | J11: 244.8144443 | K11: 367.2216665
B12: 2022 | C12: 124.1765968 | D12: 248.3531936 | E12: 372.5297904 | H12: 2022 | I12: 124.2712915 | J12: 248.5425831 | K12: 372.8138746
B13: 2023 | C13: 126.067611 | D13: 252.1352219 | E13: 378.2028329 | H13: 2023 | I13: 126.1637477 | J13: 252.3274955 | K13: 378.4912432
B14: 2024 | C14: 127.9874223 | D14: 255.9748446 | E14: 383.9622669 | H14: 2024 | I14: 128.0850231 | J14: 256.1700462 | K14: 384.2550693
B15: 2025 | C15: 129.9364693 | D15: 259.8729387 | E15: 389.809408 | H15: 2025 | I15: 130.0355564 | J15: 260.0711129 | K15: 390.1066693
B16: 2026 | C16: 131.9151973 | D16: 263.8303946 | E16: 395.7455919 | H16: 2026 | I16: 132.0157933 | J16: 264.0315867 | K16: 396.04738
B17: 2027 | C17: 133.9240582 | D17: 267.8481164 | E17: 401.7721745 | H17: 2027 | I17: 134.0261861 | J17: 268.0523723 | K17: 402.0785584
B18: 2028 | C18: 135.9635108 | D18: 271.9270217 | E18: 407.8905325 | H18: 2028 | I18: 136.067194 | J18: 272.1343881 | K18: 408.2015821
B19: 2029 | C19: 138.0340212 | D19: 276.0680423 | E19: 414.1020635 | H19: 2029 | I19: 138.1392833 | J19: 276.2785666 | K19: 414.4178499
B20: 2030 | C20: 140.1360621 | D20: 280.2721242 | E20: 420.4081863 | H20: 2030 | I20: 140.2429272 | J20: 280.4858544 | K20: 420.7287816
B21: 2031 | C21: 142.2701138 | D21: 284.5402276 | E21: 426.8103414 | H21: 2031 | I21: 142.3786063 | J21: 284.7572126 | K21: 427.1358189
B22: 2032 | C22: 144.4366638 | D22: 288.8733275 | E22: 433.3099913 | H22: 2032 | I22: 144.5468084 | J22: 289.0936168 | K22: 433.6404253
B23: 2033 | C23: 146.6362069 | D23: 293.2724137 | E23: 439.9086206 | H23: 2033 | I23: 146.7480289 | J23: 293.4960577 | K23: 440.2440866
B24: 2034 | C24: 148.8692455 | D24: 297.7384911 | E24: 446.6077366 | H24: 2034 | I24: 148.9827704 | J24: 297.9655408 | K24: 446.9483112
B25: 2035 | C25: 151.1362899 | D25: 302.2725798 | E25: 453.4088697 | H25: 2035 | I25: 151.2515436 | J25: 302.5030871 | K25: 453.7546307
B26: 2036 | C26: 153.4378578 | D26: 306.8757155 | E26: 460.3135733 | H26: 2036 | I26: 153.5548666 | J26: 307.1097331 | K26: 460.6645997
B27: 2037 | C27: 155.7744749 | D27: 311.5489498 | E27: 467.3234246 | H27: 2037 | I27: 155.8932655 | J27: 311.7865311 | K27: 467.6797966
B28: 2038 | C28: 158.146675 | D28: 316.29335 | E28: 474.440025 | H28: 2038 | I28: 158.2672747 | J28: 316.5345493 | K28: 474.801824
B29: 2039 | C29: 160.555 | D29: =D30*0.985 -> 321.11 | E29: 481.665 | H29: 2039 | I29: 160.6774362 | J29: 321.3548724 | K29: 482.0323086
B30: 2040 | C30: 163 | D30: 326 | E30: 489 | H30: 2040 | I30: 163.1243007 | J30: 326.2486014 | K30: 489.3729022
B31: 2041 | C31: 165.445 | D31: =D30*1.015 -> 330.89 | E31: 496.335 | H31: 2041 | I31: 165.5711652 | J31: 331.1423305 | K31: 496.7134957
B32: 2042 | C32: 167.926675 | D32: =D31*1.015 -> 335.85335 | E32: 503.780025 | H32: 2042 | I32: 168.0547327 | J32: 336.1094654 | K32: 504.1641981
B33: 2043 | C33: 170.4455751 | D33: 340.8911502 | E33: 511.3367254 | H33: 2043 | I33: 170.5755537 | J33: 341.1511074 | K33: 511.7266611
B34: 2044 | C34: 173.0022588 | D34: 346.0045175 | E34: 519.0067763 | H34: 2044 | I34: 173.134187 | J34: 346.268374 | K34: 519.402561
B35: 2045 | C35: 175.5972926 | D35: 351.1945853 | E35: 526.7918779 | H35: 2045 | I35: 175.7311998 | J35: 351.4623996 | K35: 527.1935994
B36: 2046 | C36: 178.231252 | D36: 356.462504 | E36: 534.6937561 | H36: 2046 | I36: 178.3671678 | J36: 356.7343356 | K36: 535.1015034
B37: 2047 | C37: 180.9047208 | D37: 361.8094416 | E37: 542.7141624 | H37: 2047 | I37: 181.0426753 | J37: 362.0853506 | K37: 543.128026
B38: 2048 | C38: 183.6182916 | D38: 367.2365832 | E38: 550.8548748 | H38: 2048 | I38: 183.7583155 | J38: 367.5166309 | K38: 551.2749464
B39: 2049 | C39: 186.372566 | D39: 372.745132 | E39: 559.117698 | H39: 2049 | I39: 186.5146902 | J39: 373.0293804 | K39: 559.5440705
B40: 2050 | C40: 189.1681545 | D40: 378.336309 | E40: 567.5044634 | H40: 2050 | I40: 189.3124105 | J40: 378.6248211 | K40: 567.9372316
B42: Source: BEIS modelling, based on IPCC
B43: For appraisal performed in periods beyond 2050, it is assumed that there is 1.5% annual growth rate in the carbon value.
B44: Further guidance on the use of carbon values is available from the appraisal guidance (Chapter 3) which can be downloaded from the Green Book supplementary guidance section of GOV.UK webpage:
B46: For further details on carbon valuation, see:
B47: https://www.gov.uk/government/collections/carbon-valuation--2

Sheet GDP deflators (hidden)
B2: GDP deflators
B4: Source: | C4: HM Treasury. (2022). GDP deflators at market prices, and money GDP, March 2022 (Quarterly National Accounts).
B5: GDP DEFLATORS AT MARKET PRICES, AND MONEY GDP
B6: Outturn data are as at the Quarterly National Accounts from ONS - last updated 31 March 2022.
B7: Forecast data are consistent with OBR Spring Statement EFO data as at 23 March 2022.
B8: Financial year | H8: Calendar year
C9: GDP deflator at market prices | E9: Money GDP (3), (4) | I9: GDP deflator at market prices | K9: Money GDP (3)
B10: Financial year | C10: 2020-21 = 100 | D10: per cent change on previous year | E10: Cash £ million Non-Season-ally Adjusted | F10: Cash £ million Seasonally Adjusted | H10: Calendar year | I10: 2020 = 100 | J10: per cent change on previous year | K10: Cash £ million Non-Seasonally Adjusted
B11: 1955-56 | C11: 3.696381505 | E11: 19565 | F11: 19579 | H11: 1955 | I11: 3.6756 | K11: 19160
B12: 1956-57 | C12: 3.92786131 | D12: 6.262335314 | E12: 21149 | F12: 21125 | H12: 1956 | I12: 3.9304 | J12: 6.932201545 | K12: 20832
B13: 1957-58 | C13: 4.108832487 | D13: 4.607371883 | E13: 22499 | F13: 22514 | H13: 1957 | I13: 4.0878 | J13: 4.004681457 | K13: 22093
B14: 1958-59 | C14: 4.208184601 | D14: 2.418013257 | E14: 23325 | F14: 23296 | H14: 1958 | I14: 4.2374 | J14: 3.659670238 | K14: 23210
B15: 1959-60 | C15: 4.228865174 | D15: 0.4914369126 | E15: 24862 | F15: 24916 | H15: 1959 | I15: 4.2682 | J15: 0.7268608109 | K15: 24378
B16: 1960-61 | C16: 4.315079976 | D16: 2.038721947 | E16: 26628 | F16: 26646 | H16: 1960 | I16: 4.3125 | J16: 1.037908252 | K16: 26189
B17: 1961-62 | C17: 4.472824648 | D17: 3.655660442 | E17: 28128 | F17: 28157 | H17: 1961 | I17: 4.4759 | J17: 3.788985507 | K17: 27905
B18: 1962-63 | C18: 4.613439732 | D18: 3.143764727 | E18: 29440 | F18: 29457 | H18: 1962 | I18: 4.6372 | J18: 3.603744498 | K18: 29224
B19: 1963-64 | C19: 4.689839208 | D19: 1.656019819 | E19: 31913 | F19: 31869 | H19: 1963 | I19: 4.7049 | J19: 1.459932718 | K19: 31090
B20: 1964-65 | C20: 4.910916444 | D20: 4.713961948 | E20: 34844 | F20: 34912 | H20: 1964 | I20: 4.8733 | J20: 3.579247168 | K20: 34038
B21: 1965-66 | C21: 5.175504129 | D21: 5.387745617 | E21: 37451 | F21: 37406 | H21: 1965 | I21: 5.163 | J21: 5.944637104 | K21: 36818
B22: 1966-67 | C22: 5.439643737 | D22: 5.103649836 | E22: 39939 | F22: 39935 | H22: 1966 | I22: 5.4387 | J22: 5.339918652 | K22: 39383
B23: 1967-68 | C23: 5.588209169 | D23: 2.731161066 | E23: 42498 | F23: 42606 | H23: 1967 | I23: 5.5991 | J23: 2.949234192 | K23: 41666
B24: 1968-69 | C24: 5.880634141 | D24: 5.232892385 | E24: 46753 | F24: 46775 | H24: 1968 | I24: 5.8341 | J24: 4.197103106 | K24: 45786
B25: 1969-70 | C25: 6.286411797 | D25: 6.900236367 | E25: 50834 | F25: 50889 | H25: 1969 | I25: 6.2208 | J25: 6.628271713 | K25: 49754
B26: 1970-71 | C26: 6.906648692 | D26: 9.866310306 | E26: 57698 | F26: 57781 | H26: 1970 | I26: 6.8187 | J26: 9.611304012 | K26: 56020
B27: 1971-72 | C27: 7.428565648 | D27: 7.556732363 | E27: 64537 | F27: 64444 | H27: 1971 | I27: 7.3835 | J27: 8.283103817 | K27: 62841
B28: 1972-73 | C28: 8.059478791 | D28: 8.493068137 | E28: 73843 | F28: 73945 | H28: 1972 | I28: 7.9412 | J28: 7.553328367 | K28: 70502
B29: 1973-74 | C29: 8.768289573 | D29: 8.794747161 | E29: 82737 | F29: 82761 | H29: 1973 | I29: 8.6451 | J29: 8.863899663 | K29: 81687
B30: 1974-75 | C30: 10.54772486 | D30: 20.293984 | E30: 98039 | F30: 98210 | H30: 1974 | I30: 10.0416 | J30: 16.1536593 | K30: 92534
B31: 1975-76 | C31: 13.13208768 | D31: 24.50161393 | E31: 120680 | F31: 120564 | H31: 1975 | I31: 12.6676 | J31: 26.15121096 | K31: 114936
B32: 1976-77 | C32: 14.96002166 | D32: 13.91959927 | E32: 141863 | F32: 142376 | H32: 1976 | I32: 14.6271 | J32: 15.46859705 | K32: 136800
B33: 1977-78 | C33: 17.01879838 | D33: 13.76185656 | E33: 165822 | F33: 165605 | H33: 1977 | I33: 16.6552 | J33: 13.8653595 | K33: 159524
B34: 1978-79 | C34: 18.93483105 | D34: 11.25833108 | E34: 192026 | F34: 192145 | H34: 1978 | I34: 18.6222 | J34: 11.81012537 | K34: 185837
B35: 1979-80 | C35: 22.1275757 | D35: 16.86175412 | E35: 232168 | F35: 232203 | H35: 1979 | I35: 21.3119 | J35: 14.44351366 | K35: 220586
B36: 1980-81 | C36: 26.35823715 | D36: 19.11940784 | E36: 267048 | F36: 267330 | H36: 1980 | I36: 25.6187 | J36: 20.20842816 | K36: 259499
B37: 1981-82 | C37: 29.13471192 | D37: 10.53361329 | E37: 297719 | F37: 297165 | H37: 1981 | I37: 28.7767 | J37: 12.32693306 | K37: 289653
B38: 1982-83 | C38: 31.27799602 | D38: 7.356462292 | E38: 326894 | F38: 327154 | H38: 1982 | I38: 31.0804 | J38: 8.005434953 | K38: 318999
B39: 1983-84 | C39: 32.77159963 | D39: 4.775253553 | E39: 357532 | F39: 356789 | H39: 1983 | I39: 32.8025 | J39: 5.540790981 | K39: 350813
B40: 1984-85 | C40: 34.63684096 | D40: 5.691639566 | E40: 385441 | F40: 384649 | H40: 1984 | I40: 34.5151 | J40: 5.220943526 | K40: 377386
B41: 1985-86 | C41: 36.56485832 | D41: 5.566377585 | E41: 423319 | F41: 423888 | H41: 1985 | I41: 36.3745 | J41: 5.387207338 | K41: 414161
B42: 1986-87 | C42: 38.08656012 | D42: 4.161651043 | E42: 455208 | F42: 455919 | H42: 1986 | I42: 38.0054 | J42: 4.483635514 | K42: 446361
B43: 1987-88 | C43: 40.26003792 | D43: 5.706679185 | E43: 511132 | F43: 511489 | H43: 1987 | I43: 40.0808 | J43: 5.460802939 | K43: 496226
B44: 1988-89 | C44: 42.96351688 | D44: 6.715043235 | E44: 570568 | F44: 571496 | H44: 1988 | I44: 42.528 | J44: 6.105666554 | K44: 555980
B45: 1989-90 | C45: 46.36363969 | D45: 7.91397694 | E45: 629075 | F45: 628782 | H45: 1989 | I45: 45.9383 | J45: 8.01895222 | K45: 615125
B46: 1990-91 | C46: 50.24989941 | D46: 8.382128201 | E46: 679572 | F46: 681140 | H46: 1990 | I46: 49.7195 | J46: 8.23104033 | K46: 669873
B47: 1991-92 | C47: 53.23650797 | D47: 5.943511523 | E47: 716288 | F47: 714934 | H47: 1991 | I47: 53.0873 | J47: 6.773599895 | K47: 706821
B48: 1992-93 | C48: 54.69566776 | D48: 2.740900645 | E48: 738955 | F48: 740734 | H48: 1992 | I48: 54.8274 | J48: 3.27780844 | K48: 732295
B49: 1993-94 | C49: 56.12354247 | D49: 2.610580999 | E49: 783211 | F49: 780764 | H49: 1993 | I49: 56.4006 | J49: 2.869368236 | K49: 771414
B50: 1994-95 | C50: 56.91651405 | D50: 1.412903651 | E50: 821875 | F50: 821678 | H50: 1994 | I50: 57.2327 | J50: 1.475338915 | K50: 812289
B51: 1995-96 | C51: 58.67068474 | D51: 3.082006534 | E51: 866242 | F51: 865562 | H51: 1995 | I51: 58.6819 | J51: 2.532118876 | K51: 853228
B52: 1996-97 | C52: 60.76502803 | D52: 3.569658864 | E52: 924297 | F52: 923925 | H52: 1996 | I52: 61.1805 | J52: 4.257871678 | K52: 911191
B53: 1997-98 | C53: 60.508094 | D53: -0.4228320822 | E53: 962708 | F53: 962216 | H53: 1997 | I53: 60.9721 | J53: -0.3406314103 | K53: 952585
B54: 1998-99 | C54: 61.89007963 | D54: 2.283968206 | E54: 1012210 | F54: 1013206 | H54: 1998 | I54: 61.9408 | J54: 1.588759449 | K54: 998318
B55: 1999-00 | C55: 62.24136815 | D55: 0.5676006887 | E55: 1054714 | F55: 1053779 | H55: 1999 | I55: 62.7802 | J55: 1.355164932 | K55: 1041970
B56: 2000-01 | C56: 63.47808622 | D56: 1.98697122 | E56: 1110346 | F56: 1108412 | H56: 2000 | I56: 63.8374 | J56: 1.683970424 | K56: 1098500
B57: 2001-02 | C57: 64.8032891 | D57: 2.087654113 | E57: 1151245 | F57: 1153602 | H57: 2001 | I57: 65.019 | J57: 1.850952576 | K57: 1142023
B58: 2002-03 | C58: 66.1767808 | D58: 2.11947838 | E58: 1208514 | F58: 1206447 | H58: 2002 | I58: 66.3585 | J58: 2.060167028 | K58: 1190336
B59: 2003-04 | C59: 67.85968975 | D59: 2.543050487 | E59: 1275904 | F59: 1275183 | H59: 2003 | I59: 68.1736 | J59: 2.735293896 | K59: 1259970
B60: 2004-05 | C60: 69.8741003 | D60: 2.968493615 | E60: 1341848 | F60: 1339834 | H60: 2004 | I60: 69.928 | J60: 2.573430184 | K60: 1322795
B61: 2005-06 | C61: 71.945148 | D61: 2.963970461 | E61: 1423370 | F61: 1421392 | H61: 2005 | I61: 72.1178 | J61: 3.131506693 | K61: 1399656
B62: 2006-07 | C62: 74.07894959 | D62: 2.96587283 | E62: 1494225 | F62: 1495935 | H62: 2006 | I62: 74.1755 | J62: 2.853248435 | K62: 1476722
B63: 2007-08 | C63: 76.14953295 | D63: 2.795103564 | E63: 1572772 | F63: 1573173 | H63: 2007 | I63: 76.2495 | J63: 2.796071479 | K63: 1552470
B64: 2008-09 | C64: 78.40535669 | D64: 2.962360563 | E64: 1583849 | F64: 1584008 | H64: 2008 | I64: 78.7268 | J64: 3.248939337 | K64: 1598752
B65: 2009-10 | C65: 79.63736081 | D65: 1.571326464 | E65: 1566720 | F65: 1566126 | H65: 2009 | I65: 80.066 | J65: 1.70107257 | K65: 1557120
B66: 2010-11 | C66: 80.96538762 | D66: 1.6675927 | E66: 1631224 | F66: 1632907 | H66: 2010 | I66: 81.1657 | J66: 1.373491869 | K66: 1612195
B67: 2011-12 | C67: 82.18837979 | D67: 1.510512337 | E67: 1678775 | F67: 1676778 | H67: 2011 | I67: 82.8449 | J67: 2.068854208 | K67: 1669509
B68: 2012-13 | C68: 83.84562686 | D68: 2.016400701 | E68: 1734589 | F68: 1736377 | H68: 2012 | I68: 84.178 | J68: 1.609151559 | K68: 1721355
B69: 2013-14 | C69: 85.76617075 | D69: 2.290571335 | E69: 1817879 | F69: 1816590 | H69: 2013 | I69: 86.06 | J69: 2.235738554 | K69: 1793155
B70: 2014-15 | C70: 86.75425529 | D70: 1.152067917 | E70: 1888390 | F70: 1891462 | H70: 2014 | I70: 87.4329 | J70: 1.595282361 | K70: 1876162
B71: 2015-16 | C71: 87.29244446 | D71: 0.6203605434 | E71: 1953366 | F71: 1951685 | H71: 2015 | I71: 87.8815 | J71: 0.5130791727 | K71: 1935212
B72: 2016-17 | C72: 89.24469524 | D72: 2.236448749 | E72: 2039801 | F72: 2040653 | H72: 2016 | I72: 89.548 | J72: 1.896303545 | K72: 2016638
B73: 2017-18 | C73: 90.78160559 | D73: 1.72213076 | E73: 2111738 | F73: 2114634 | H73: 2017 | I73: 91.1786 | J73: 1.820922857 | K73: 2097143
B74: 2018-19 | C74: 92.5534334 | D74: 1.951747606 | E74: 2199704 | F74: 2195745 | H74: 2018 | I74: 93.0011 | J74: 1.998824286 | K74: 2174380
B75: 2019-20 | C75: 94.65573976 | D75: 2.271451509 | E75: 2260614 | F75: 2259433 | H75: 2019 | I75: 94.8763 | J75: 2.016320237 | K75: 2255283
B76: 2020-21 | C76: 100 | D76: 5.645997012 | E76: 2140996 | F76: 2144597 | H76: 2020 | I76: 99.9238 | J76: 5.320085206 | K76: 2150381
B77: 2021-22 (1), (2) | C77: =((D77/100)*C76)+C76 -> 98.97921187 | D77: -1.02078813 | E77: 2364402 | F77: 2363009 | H77: 2021 | I77: 100 | J77: 0.07625810868 | K77: 2317054
B78: 2022-23 (1), (2) | C78: 102.9923022 | D78: 4.054477974 | E78: 2513171 | F78: 2512583 | H78: 2022 (1), (2) | I78: =((J78/100)*I77)+I77 -> 102.849293 | J78: 2.849293031 | K78: 2473978
B79: 2023-24 (1), (2) | C79: 105.4746453 | D79: 2.410221917 | E79: 2621534 | F79: 2622335 | H79: 2023 (1), (2) | I79: 106.0822998 | J79: 3.143440902 | K79: 2596609
B80: 2024-25 (1), (2) | C80: 107.4304901 | D80: 1.854327056 | E80: 2726167 | F80: 2725709 | H80: 2024 (1), (2) | I80: 108.0548718 | J80: 1.859473238 | K80: 2700903
B81: 2025-26 (1), (2) | C81: 109.5286934 | D81: 1.953079817 | E81: 2826172 | F81: 2826096 | H81: 2025 (1), (2) | I81: 110.0994839 | J81: 1.892198034 | K81: 2800966
B82: 2026-27 (1), (2) | C82: 111.7198652 | D82: 2.00054596 | E82: 2931226 | F82: 2931334 | H82: 2026 (1), (2) | I82: 112.3018691 | J82: 2.000359216 | K82: 2904268
B83: Forecast | H83: =I77/I68 -> 1.187958849
B84: Sources and footnotes:
B85: GDP Deflator: | C85: Financial years 1955-56 to 2020-21 taken from ONS series L8GG in data tables: Table N.
C86: https://www.ons.gov.uk/file?uri=%2feconomy%2fgrossdomesticproductgdp%2fdatasets%2fuksecondestimateofgdpdatatables%2fquarter4octtodec2021quarterlynationalaccounts/quarterlynationalaccountsdatatables.xls
C87: Calendar years 1955 to 2021 taken from ONS series MNF2 in data tables: Table O.
C88: https://www.ons.gov.uk/file?uri=%2feconomy%2fgrossdomesticproductgdp%2fdatasets%2fuksecondestimateofgdpdatatables%2fquarter4octtodec2021quarterlynationalaccounts/quarterlynationalaccountsdatatables.xls
C89: For years 2021-22 to 2026-27 (2022 to 2026): taken from the Office for Budget Responsibility (OBR) forecasts for GDP deflator increases as of March 2022 Economy Supplementary tables.
C90: https://obr.uk/efo/economic-and-fiscal-outlook-march-2022/
B91: Money GDP: | C91: For years 1955-56 to 2020-21 (1955 to 2021): ONS data for money GDP not seasonally adjusted series BKTL in data tables: Table N.
C92: https://www.ons.gov.uk/file?uri=%2feconomy%2fgrossdomesticproductgdp%2fdatasets%2fuksecondestimateofgdpdatatables%2fquarter4octtodec2021quarterlynationalaccounts/quarterlynationalaccountsdatatables.xls
C93: For years 1955-56 to 2020-21: ONS data for money GDP seasonally adjusted series YBHA in data tables: Table N.
C94: https://www.ons.gov.uk/file?uri=%2feconomy%2fgrossdomesticproductgdp%2fdatasets%2fuksecondestimateofgdpdatatables%2fquarter4octtodec2021quarterlynationalaccounts/quarterlynationalaccountsdatatables.xls
C95: For years 2021-22 to 2026-27 (2022 to 2026): taken from the Office for Budget Responsibility (OBR) forecasts for GDP deflator increases as of March 2022 Economy Supplementary tables.
C96: https://obr.uk/efo/economic-and-fiscal-outlook-march-2022/
B97: Footnotes:
B98: (1) | C98: For years 2021-22 to 2026-27 (2022 to 2026), this presentation only shows percentage changes in line with OBR data as of the Spring Statement, March 2022.
B99: (2) | C99: For years 2021-22 to 2026-27 (2022 to 2026), money GDP forecasts from the OBR as of the Spring Statement, March 2022.
B100: (3) | C100: Non-Seasonally adjusted money GDP (BKTL) from 1955-56 to 2020-21 (1955 to 2021) consistent with ONS Quarterly National Accounts release of 31 March 2022.
B101: (4) | C101: Seasonally adjusted money GDP (YBHA) from 1955-56 to 2020-21 consistent with ONS Quarterly National Accounts release of 31 March 2022.
B102: (5) | C102: For further information and the 'User's Guide' to these series, please visit the following page on the GOV.UK website at:
C103: https://www.gov.uk/government/publications/gross-domestic-product-gdp-deflators-user-guide
B104: (6) | C104: For practical examples of how to use the GDP deflator series, please visit the following page on the GOV.UK website at:
C105: https://www.gov.uk/government/publications/how-to-use-the-gdp-deflator-series-practical-examples

Sheet Results
A1: Ranking metric | B1: LRO name | C1: =TRANSPOSE(OFFSET(Criteria!B3:B202,0,0,COUNTA(Criteria!B3:B202),1)) -> Cost | D1: Water security /reliability of supply | E1: Water resource benefit | F1: Stakeholder preference | G1: Operational Complexity (including maintenance) | H1: Permits and Licenses | I1: Regulatory Compliance | J1: Water Rights | K1: Water Savings per Pound Invested | L1: Technical Feasibility | M1: Financing / Funding | N1: Infrastructure Requirements | O1: Scalability | P1: Community Effects | Q1: Time to Implement | R1: Environmental Impact | S1: Effectiveness in Reducing License Strain | T1: Carbon Footprint | U1: Synergies with Other Initiatives | BV1: Result
C2: =ROUND(TRANSPOSE(OFFSET(Criteria!F3:F202,0,0,COUNTA(Criteria!F3:F202),1)),3) -> 0.095 | D2: 0.09 | E2: 0.085 | F2: 0.08 | G2: 0.075 | H2: 0.07 | I2: 0.065 | J2: 0.06 | K2: 0.055 | L2: 0.05 | M2: 0.05 | N2: 0.06 | O2: 0.065 | P2: 0.03 | Q2: 0.025 | R2: 0.02 | S2: 0.015 | T2: 0.01 | U2: 0.005 | BV2: Total | BW2: Taken forward to detailed assessment
A3: =_xlfn.VSTACK(OFFSET(LROs!A3,0,0,COUNTA(LROs!A3:A197),1),OFFSET(LROs!F3:F196,0,0,COUNTA(LROs!F3:F196),1)) -> LRO1 | B3: =_xlfn.VSTACK(OFFSET(LROs!C3,0,0,COUNTA(LROs!C3:C197),1),OFFSET(LROs!G3:G196,0,0,COUNTA(LROs!G3:G196),1)) -> Water Sharing Agreements | C3: 5 | D3: 1 | E3: 3 | F3: 3 | G3: 2 | H3: 3 | I3: 4 | J3: 2 | K3: 4 | L3: 4 | M3: 4 | N3: 4 | O3: 4 | P3: 4 | Q3: 4 | R3: 4 | S3: 4 | T3: 4 | U3: 4 | BV3: =SUMPRODUCT(C3:AA3*C$2:AA$2) -> 3.34 | BW3: No | CI3: 1
A4: LRO2 | B4: Water Rights Trading | C4: 4 | D4: 3 | E4: 3 | F4: 4 | G4: 4 | H4: 4 | I4: 5 | J4: 3 | K4: 4 | L4: 4 | M4: 4 | N4: 4 | O4: 4 | P4: 4 | Q4: 4 | R4: 4 | S4: 4 | T4: 4 | U4: 4 | BV4: =SUMPRODUCT(C4:AA4*C$2:AA$2) -> 3.85 | BW4: Yes | CI4: 2
A5: LRO3 | B5: Linking sources / aggregating licences | C5: 4 | D5: 4 | E5: 3 | F5: 3 | G5: 3 | H5: 3 | I5: 4 | J5: 3 | K5: 5 | L5: 3 | M5: 4 | N5: 4 | O5: 4 | P5: 4 | Q5: 4 | R5: 4 | S5: 4 | T5: 4 | U5: 4 | BV5: =SUMPRODUCT(C5:AA5*C$2:AA$2) -> 3.655 | BW5: Yes | CI5: 3
A6: LRO4 | B6: Piped and pumped network | C6: 1 | D6: 4 | E6: 3 | F6: 1 | G6: 4 | H6: 4 | I6: 5 | J6: 3 | K6: 5 | L6: 4 | M6: 4 | N6: 4 | O6: 4 | P6: 4 | Q6: 4 | R6: 4 | S6: 4 | T6: 4 | U6: 4 | BV6: =SUMPRODUCT(C6:AA6*C$2:AA$2) -> 3.47 | BW6: No | CI6: 4
A7: LRO5 | B7: Conveyance via natural water courses | C7: 3 | D7: 4 | E7: 4 | F7: 1 | G7: 4 | H7: 4 | I7: 4 | J7: 3 | K7: 4 | L7: 4 | M7: 4 | N7: 4 | O7: 4 | P7: 4 | Q7: 4 | R7: 4 | S7: 4 | T7: 4 | U7: 4 | BV7: =SUMPRODUCT(C7:AA7*C$2:AA$2) -> 3.625 | BW7: No | CI7: 5
A8: LRO6 | B8: Conjunctive Use Schemes | C8: 2 | D8: 4 | E8: 4 | F8: 3 | G8: 3 | H8: 3 | I8: 3 | J8: 4 | K8: 4 | L8: 4 | M8: 4 | N8: 4 | O8: 4 | P8: 4 | Q8: 4 | R8: 4 | S8: 4 | T8: 4 | U8: 4 | BV8: =SUMPRODUCT(C8:AA8*C$2:AA$2) -> 3.54 | BW8: No
A9: LRO7 | B9: Rainwater Harvesting | C9: 2 | D9: 3 | E9: 4 | F9: 4 | G9: 4 | H9: 4 | I9: 4 | J9: 4 | K9: 5 | L9: 1 | M9: 4 | N9: 4 | O9: 4 | P9: 4 | Q9: 4 | R9: 4 | S9: 4 | T9: 4 | U9: 4 | BV9: =SUMPRODUCT(C9:AA9*C$2:AA$2) -> 3.645 | BW9: No | CI9: Yes
A10: LRO8 | B10: Flood water use | C10: 2 | D10: 4 | E10: 4 | F10: 3 | G10: 3 | H10: 3 | I10: 5 | J10: 4 | K10: 4 | L10: 1 | M10: 1 | N10: 1 | O10: 1 | P10: 1 | Q10: 1 | R10: 1 | S10: 1 | T10: 1 | U10: 1 | BV10: =SUMPRODUCT(C10:AA10*C$2:AA$2) -> 2.68 | BW10: No | CI10: No
A11: LRO9 | B11: All-year High flow abstraction | C11: 3 | D11: 1 | E11: 3 | F11: 1 | G11: 2 | H11: 2 | I11: 3 | J11: 2 | K11: 5 | L11: 2 | M11: 4 | N11: 1 | O11: 1 | P11: 1 | Q11: 1 | R11: 1 | S11: 1 | T11: 1 | U11: 1 | BV11: =SUMPRODUCT(C11:AA11*C$2:AA$2) -> 2.12 | BW11: No
A12: LRO10 | B12: Use of drainage water | C12: 5 | D12: 3 | E12: 4 | F12: 3 | G12: 2 | H12: 2 | I12: 4 | J12: 2 | K12: 4 | L12: 4 | M12: 4 | N12: 4 | O12: 4 | P12: 4 | Q12: 4 | R12: 4 | S12: 4 | T12: 4 | U12: 4 | BV12: =SUMPRODUCT(C12:AA12*C$2:AA$2) -> 3.535 | BW12: Yes
A13: LRO11 | B13: Water recycling - using output from a WTTP | C13: 4 | D13: 3 | E13: 3 | F13: 3 | G13: 3 | H13: 4 | I13: 4 | J13: 2 | K13: 4 | L13: 3 | M13: 4 | N13: 4 | O13: 4 | P13: 4 | Q13: 4 | R13: 4 | S13: 4 | T13: 4 | U13: 4 | BV13: =SUMPRODUCT(C13:AA13*C$2:AA$2) -> 3.52 | BW13: No
A14: LRO12 | B14: Water recycling - on farm | C14: 2 | D14: 3 | E14: 3 | F14: 3 | G14: 3 | H14: 3 | I14: 4 | J14: 4 | K14: 5 | L14: 3 | M14: 4 | N14: 4 | O14: 4 | P14: 4 | Q14: 4 | R14: 4 | S14: 4 | T14: 4 | U14: 4 | BV14: =SUMPRODUCT(C14:AA14*C$2:AA$2) -> 3.435 | BW14: No
A15: LRO13 | B15: Automation of abstraction | C15: 4 | D15: 3 | E15: 3 | F15: 3 | G15: 3 | H15: 4 | I15: 5 | J15: 2 | K15: 4 | L15: 4 | M15: 4 | N15: 4 | O15: 4 | P15: 4 | Q15: 4 | R15: 4 | S15: 4 | T15: 4 | U15: 4 | BV15: =SUMPRODUCT(C15:AA15*C$2:AA$2) -> 3.635 | BW15: No
A16: LRO14 | B16: Farm Storage Reservoirs | C16: 2 | D16: 3 | E16: 4 | F16: 4 | G16: 4 | H16: 4 | I16: 4 | J16: 4 | K16: 4 | L16: 3 | M16: 4 | N16: 4 | O16: 4 | P16: 4 | Q16: 4 | R16: 4 | S16: 4 | T16: 4 | U16: 4 | BV16: =SUMPRODUCT(C16:AA16*C$2:AA$2) -> 3.69 | BW16: No
A17: LRO15 | B17: Managed aquifer recharge | C17: 3 | D17: 2 | E17: 4 | F17: 4 | G17: 3 | H17: 3 | I17: 4 | J17: 2 | K17: 5 | L17: 2 | M17: 4 | N17: 4 | O17: 4 | P17: 4 | Q17: 4 | R17: 4 | S17: 4 | T17: 4 | U17: 4 | BV17: =SUMPRODUCT(C17:AA17*C$2:AA$2) -> 3.435 | BW17: Yes
A18: LRO16 | B18: Use of drainage ditches / IDB drains to store water | C18: 2 | D18: 3 | E18: 3 | F18: 3 | G18: 3 | H18: 3 | I18: 4 | J18: 3 | K18: 5 | L18: 3 | M18: 4 | N18: 4 | O18: 4 | P18: 4 | Q18: 4 | R18: 4 | S18: 4 | T18: 4 | U18: 4 | BV18: =SUMPRODUCT(C18:AA18*C$2:AA$2) -> 3.375 | BW18: No
A19: LRO17 | B19: Flood plain storage | C19: 2 | D19: 3 | E19: 3 | F19: 3 | G19: 3 | H19: 3 | I19: 4 | J19: 3 | K19: 5 | L19: 3 | M19: 4 | N19: 4 | O19: 4 | P19: 4 | Q19: 4 | R19: 4 | S19: 4 | T19: 4 | U19: 4 | BV19: =SUMPRODUCT(C19:AA19*C$2:AA$2) -> 3.375 | BW19: No
A20: LRO18 | B20: Demand reduction measures | C20: 5 | D20: 1 | E20: 3 | F20: 3 | G20: 3 | H20: 4 | I20: 4 | J20: 2 | K20: 5 | L20: 5 | M20: 4 | N20: 4 | O20: 4 | P20: 4 | Q20: 4 | R20: 4 | S20: 4 | T20: 4 | U20: 4 | BV20: =SUMPRODUCT(C20:AA20*C$2:AA$2) -> 3.59 | BW20: Yes
A21: LRO19 | B21: Example Additional | C21: 3 | D21: 4 | E21: 3 | F21: 3 | G21: 3 | H21: 3 | I21: 4 | J21: 3 | K21: 5 | L21: 3 | M21: 4 | N21: 2 | O21: 2 | P21: 2 | Q21: 2 | R21: 2 | S21: 2 | T21: 2 | U21: 2 | BV21: =SUMPRODUCT(C21:AA21*C$2:AA$2) -> 3.1 | BW21: No
A22: LRO2 + LRO15 | B22: Water Rights Trading + Managed aquifer recharge | C22: 3 | D22: 3 | E22: 3 | F22: 2 | G22: 3 | H22: 3 | I22: 3 | J22: 3 | K22: 5 | L22: 3 | M22: 2 | N22: 2 | O22: 2 | P22: 2 | Q22: 2 | R22: 2 | S22: 2 | T22: 2 | U22: 2 | BV22: =SUMPRODUCT(C22:AA22*C$2:AA$2) -> 2.765 | BW22: No
A23: LRO14 + LRO3 | B23: Farm Storage Reservoirs + Linking sources / aggregating licences | C23: 3 | D23: 3 | E23: 3 | F23: 2 | G23: 3 | H23: 3 | I23: 3 | J23: 3 | K23: 5 | L23: 3 | M23: 2 | N23: 2 | O23: 2 | P23: 2 | Q23: 2 | R23: 2 | S23: 2 | T23: 2 | U23: 2 | BV23: =SUMPRODUCT(C23:AA23*C$2:AA$2) -> 2.765 | BW23: No
B24: Example Additional
B33: Add notes in matrix to justify selection | C33: =C1 -> Cost | D33: =D1 -> Water security /reliability of supply | E33: Water resource benefit | F33: Stakeholder preference | G33: Operational Complexity (including maintenance) | H33: Permits and Licenses | I33: Regulatory Compliance | J33: Water Rights | K33: Water Savings per Pound Invested | L33: Technical Feasibility | M33: Financing / Funding | N33: Infrastructure Requirements | O33: =O1 -> Scalability | P33: Community Effects | Q33: Time to Implement | R33: Environmental Impact | S33: Effectiveness in Reducing License Strain | T33: Carbon Footprint | U33: =U1 -> Synergies with Other Initiatives
A34: =A3 -> LRO1 | B34: =B3 -> Water Sharing Agreements
A35: =A4 -> LRO2 | B35: =B4 -> Water Rights Trading
A36: LRO3 | B36: Linking sources / aggregating licences
A37: LRO4 | B37: Piped and pumped network
A38: LRO5 | B38: Conveyance via natural water courses
A39: LRO6 | B39: Conjunctive Use Schemes
A40: LRO7 | B40: Rainwater Harvesting
A41: LRO8 | B41: Flood water use
A42: LRO9 | B42: All-year High flow abstraction
A43: LRO10 | B43: Use of drainage water
A44: LRO11 | B44: Water recycling - using output from a WTTP
A45: LRO12 | B45: Water recycling - on farm
A46: LRO13 | B46: Automation of abstraction
A47: LRO14 | B47: Farm Storage Reservoirs
A48: LRO15 | B48: Managed aquifer recharge
A49: LRO16 | B49: Use of drainage ditches / IDB drains to store water
A50: LRO17 | B50: Flood plain storage
A51: LRO18 | B51: Demand reduction measures
A52: LRO19 | B52: Example Additional
A53: LRO2 + LRO15 | B53: Water Rights Trading + Managed aquifer recharge
A54: LRO14 + LRO3 | B54: Farm Storage Reservoirs + Linking sources / aggregating licences
A55: 0 | B55: Example Additional
A56: 0 | B56: 0
A57: 0 | B57: 0
A58: 0 | B58: 0
A59: 0 | B59: 0
A60: 0 | B60: 0
A61: 0 | B61: 0
A62: 0 | B62: 0
A63: 0 | B63: 0

Sheet Ranking for Polyvis
A1: To use the online Polyvis tool
A2: 1 | B2: Scores, weighted scores, or a combination of scores and actual values- eg for cost and water resource benefit can be used. Scroll right to see options below
B3: It is assumed that higher numbers are most desirable, which is true for scores. If costs or other metrics are to be used where the lower value is most desirable, "MO_MIN_" should preceed the heading title for that metric, as in the red highlighted column heading.
B4: Save required data as a .csv file
A5: 2 | B5: go to polyvis website
B6: https://www.polyvis.org/
B7: Click on parallel plot
B8: Uploadsaved csv file.
A9: 3 | B9: Click on columns, and select columns to be investigated. They will be numbered pvid 1-n
A10: 4 | B10: Click on the ?using polyvis button for a brief tutorial
B11: This shows how to filter results, move axes, and colour lines according to different metrics.
A16: pvid | B16: LRO ID | C16: weighted scores | W16: pvid | X16: LRO ID | Y16: raw scores | AT16: pvid | AU16: LRO ID | AV16: raw scores
C17: =Results!C1 -> Cost | D17: =Results!D1 -> Water security /reliability of supply | E17: =Results!E1 -> Water resource benefit | F17: =Results!F1 -> Stakeholder preference | G17: =Results!G1 -> Operational Complexity (including maintenance) | H17: =Results!H1 -> Permits and Licenses | I17: =Results!I1 -> Regulatory Compliance | J17: =Results!J1 -> Water Rights | K17: =Results!K1 -> Water Savings per Pound Invested | L17: =Results!L1 -> Technical Feasibility | M17: =Results!M1 -> Financing / Funding | N17: =Results!N1 -> Infrastructure Requirements | O17: =Results!O1 -> Scalability | P17: =Results!P1 -> Community Effects | Q17: =Results!Q1 -> Time to Implement | R17: =Results!R1 -> Environmental Impact | S17: =Results!S1 -> Effectiveness in Reducing License Strain | T17: =Results!T1 -> Carbon Footprint | U17: =Results!U1 -> Synergies with Other Initiatives | Y17: =C17 -> Cost | Z17: Water security /reliability of supply | AA17: Water resource benefit | AB17: Stakeholder preference | AC17: Operational Complexity (including maintenance) | AD17: Permits and Licenses | AE17: Regulatory Compliance | AF17: Water Rights | AG17: Water Savings per Pound Invested | AH17: Technical Feasibility | AI17: Financing / Funding | AJ17: =N17 -> Infrastructure Requirements | AK17: Scalability | AL17: Community Effects | AM17: Time to Implement | AN17: Environmental Impact | AO17: Effectiveness in Reducing License Strain | AP17: =T17 -> Carbon Footprint | AQ17: =U17 -> Synergies with Other Initiatives | AV17: Water resource benefit/ Ml | AW17: MO_MIN_Cost-pounds | AX17: =AA17 -> Water resource benefit | AY17: =AB17 -> Stakeholder preference | AZ17: =AC17 -> Operational Complexity (including maintenance) | BA17: =AD17 -> Permits and Licenses | BB17: =AE17 -> Regulatory Compliance | BC17: =AF17 -> Water Rights | BD17: =AG17 -> Water Savings per Pound Invested | BE17: =AH17 -> Technical Feasibility | BF17: =AI17 -> Financing / Funding | BG17: =AJ17 -> Infrastructure Requirements | BH17: =AK17 -> Scalability | BI17: =AL17 -> Community Effects | BJ17: =AM17 -> Time to Implement | BK17: =AN17 -> Environmental Impact | BL17: =AO17 -> Effectiveness in Reducing License Strain | BM17: Carbon Footprint | BN17: Synergies with Other Initiatives
A18: 1 | B18: =Results!A3 -> LRO1 | C18: =Results!C3*Results!C$2 -> 0.475 | D18: =Results!D3*Results!D$2 -> 0.09 | E18: =Results!E3*Results!E$2 -> 0.255 | F18: =Results!F3*Results!F$2 -> 0.24 | G18: =Results!G3*Results!G$2 -> 0.15 | H18: =Results!H3*Results!H$2 -> 0.21 | I18: =Results!I3*Results!I$2 -> 0.26 | J18: =Results!J3*Results!J$2 -> 0.12 | K18: =Results!K3*Results!K$2 -> 0.22 | L18: =Results!L3*Results!L$2 -> 0.2 | M18: =Results!M3*Results!M$2 -> 0.2 | N18: =Results!N3*Results!N$2 -> 0.24 | O18: =Results!O3*Results!O$2 -> 0.26 | P18: =Results!P3*Results!P$2 -> 0.12 | Q18: =Results!Q3*Results!Q$2 -> 0.1 | R18: =Results!R3*Results!R$2 -> 0.08 | S18: =Results!S3*Results!S$2 -> 0.06 | T18: =Results!T3*Results!T$2 -> 0.04 | U18: =Results!U3*Results!U$2 -> 0.02 | W18: 1 | X18: =B18 -> LRO1 | Y18: =Results!C3 -> 5 | Z18: =Results!D3 -> 1 | AA18: =Results!E3 -> 3 | AB18: =Results!F3 -> 3 | AC18: =Results!G3 -> 2 | AD18: =Results!H3 -> 3 | AE18: =Results!I3 -> 4 | AF18: =Results!J3 -> 2 | AG18: =Results!K3 -> 4 | AH18: =Results!L3 -> 4 | AI18: =Results!M3 -> 4 | AJ18: =Results!N3 -> 4 | AK18: =Results!O3 -> 4 | AL18: =Results!P3 -> 4 | AM18: =Results!Q3 -> 4 | AN18: =Results!R3 -> 4 | AO18: =Results!S3 -> 4 | AP18: =Results!T3 -> 4 | AQ18: =Results!U3 -> 4 | AT18: =W18 -> 1 | AU18: =X18 -> LRO1 | AV18: 1100 | AW18: 25000 | AX18: 3 | AY18: 3 | AZ18: 2 | BA18: 3 | BB18: 4 | BC18: 2 | BD18: 4 | BE18: 4 | BF18: 4 | BG18: 4 | BH18: 4 | BI18: 4 | BJ18: 4 | BK18: 4 | BL18: 4 | BM18: 4 | BN18: 4
A19: 2 | B19: =Results!A4 -> LRO2 | C19: =Results!C4*Results!C$2 -> 0.38 | D19: =Results!D4*Results!D$2 -> 0.27 | E19: =Results!E4*Results!E$2 -> 0.255 | F19: =Results!F4*Results!F$2 -> 0.32 | G19: =Results!G4*Results!G$2 -> 0.3 | H19: =Results!H4*Results!H$2 -> 0.28 | I19: =Results!I4*Results!I$2 -> 0.325 | J19: =Results!J4*Results!J$2 -> 0.18 | K19: =Results!K4*Results!K$2 -> 0.22 | L19: =Results!L4*Results!L$2 -> 0.2 | M19: =Results!M4*Results!M$2 -> 0.2 | N19: =Results!N4*Results!N$2 -> 0.24 | O19: =Results!O4*Results!O$2 -> 0.26 | P19: =Results!P4*Results!P$2 -> 0.12 | Q19: =Results!Q4*Results!Q$2 -> 0.1 | R19: =Results!R4*Results!R$2 -> 0.08 | S19: =Results!S4*Results!S$2 -> 0.06 | T19: =Results!T4*Results!T$2 -> 0.04 | U19: =Results!U4*Results!U$2 -> 0.02 | W19: 2 | X19: LRO2 | Y19: =Results!C4 -> 4 | Z19: =Results!D4 -> 3 | AA19: =Results!E4 -> 3 | AB19: =Results!F4 -> 4 | AC19: =Results!G4 -> 4 | AD19: =Results!H4 -> 4 | AE19: =Results!I4 -> 5 | AF19: =Results!J4 -> 3 | AG19: =Results!K4 -> 4 | AH19: =Results!L4 -> 4 | AI19: =Results!M4 -> 4 | AJ19: =Results!N4 -> 4 | AK19: =Results!O4 -> 4 | AL19: =Results!P4 -> 4 | AM19: =Results!Q4 -> 4 | AN19: =Results!R4 -> 4 | AO19: =Results!S4 -> 4 | AP19: =Results!T4 -> 4 | AQ19: =Results!U4 -> 4 | AT19: 2 | AU19: LRO2 | AV19: 250 | AW19: 64000 | AX19: 3 | AY19: 4 | AZ19: 4 | BA19: 4 | BB19: 5 | BC19: 3 | BD19: 4 | BE19: 4 | BF19: 4 | BG19: 4 | BH19: 4 | BI19: 4 | BJ19: 4 | BK19: 4 | BL19: 4 | BM19: 4 | BN19: 4
A20: 3 | B20: =Results!A5 -> LRO3 | C20: =Results!C5*Results!C$2 -> 0.38 | D20: =Results!D5*Results!D$2 -> 0.36 | E20: =Results!E5*Results!E$2 -> 0.255 | F20: =Results!F5*Results!F$2 -> 0.24 | G20: =Results!G5*Results!G$2 -> 0.225 | H20: =Results!H5*Results!H$2 -> 0.21 | I20: =Results!I5*Results!I$2 -> 0.26 | J20: =Results!J5*Results!J$2 -> 0.18 | K20: =Results!K5*Results!K$2 -> 0.275 | L20: =Results!L5*Results!L$2 -> 0.15 | M20: =Results!M5*Results!M$2 -> 0.2 | N20: =Results!N5*Results!N$2 -> 0.24 | O20: =Results!O5*Results!O$2 -> 0.26 | P20: =Results!P5*Results!P$2 -> 0.12 | Q20: =Results!Q5*Results!Q$2 -> 0.1 | R20: =Results!R5*Results!R$2 -> 0.08 | S20: =Results!S5*Results!S$2 -> 0.06 | T20: =Results!T5*Results!T$2 -> 0.04 | U20: =Results!U5*Results!U$2 -> 0.02 | W20: 3 | X20: LRO3 | Y20: =Results!C5 -> 4 | Z20: =Results!D5 -> 4 | AA20: =Results!E5 -> 3 | AB20: =Results!F5 -> 3 | AC20: =Results!G5 -> 3 | AD20: =Results!H5 -> 3 | AE20: =Results!I5 -> 4 | AF20: =Results!J5 -> 3 | AG20: =Results!K5 -> 5 | AH20: =Results!L5 -> 3 | AI20: =Results!M5 -> 4 | AJ20: =Results!N5 -> 4 | AK20: =Results!O5 -> 4 | AL20: =Results!P5 -> 4 | AM20: =Results!Q5 -> 4 | AN20: =Results!R5 -> 4 | AO20: =Results!S5 -> 4 | AP20: =Results!T5 -> 4 | AQ20: =Results!U5 -> 4 | AT20: 3 | AU20: LRO3 | AV20: 80 | AW20: 100000 | AX20: 3 | AY20: 3 | AZ20: 3 | BA20: 3 | BB20: 4 | BC20: 3 | BD20: 5 | BE20: 3 | BF20: 4 | BG20: 4 | BH20: 4 | BI20: 4 | BJ20: 4 | BK20: 4 | BL20: 4 | BM20: 4 | BN20: 4
A21: 4 | B21: =Results!A6 -> LRO4 | C21: =Results!C6*Results!C$2 -> 0.095 | D21: =Results!D6*Results!D$2 -> 0.36 | E21: =Results!E6*Results!E$2 -> 0.255 | F21: =Results!F6*Results!F$2 -> 0.08 | G21: =Results!G6*Results!G$2 -> 0.3 | H21: =Results!H6*Results!H$2 -> 0.28 | I21: =Results!I6*Results!I$2 -> 0.325 | J21: =Results!J6*Results!J$2 -> 0.18 | K21: =Results!K6*Results!K$2 -> 0.275 | L21: =Results!L6*Results!L$2 -> 0.2 | M21: =Results!M6*Results!M$2 -> 0.2 | N21: =Results!N6*Results!N$2 -> 0.24 | O21: =Results!O6*Results!O$2 -> 0.26 | P21: =Results!P6*Results!P$2 -> 0.12 | Q21: =Results!Q6*Results!Q$2 -> 0.1 | R21: =Results!R6*Results!R$2 -> 0.08 | S21: =Results!S6*Results!S$2 -> 0.06 | T21: =Results!T6*Results!T$2 -> 0.04 | U21: =Results!U6*Results!U$2 -> 0.02 | W21: 4 | X21: LRO4 | Y21: =Results!C6 -> 1 | Z21: =Results!D6 -> 4 | AA21: =Results!E6 -> 3 | AB21: =Results!F6 -> 1 | AC21: =Results!G6 -> 4 | AD21: =Results!H6 -> 4 | AE21: =Results!I6 -> 5 | AF21: =Results!J6 -> 3 | AG21: =Results!K6 -> 5 | AH21: =Results!L6 -> 4 | AI21: =Results!M6 -> 4 | AJ21: =Results!N6 -> 4 | AK21: =Results!O6 -> 4 | AL21: =Results!P6 -> 4 | AM21: =Results!Q6 -> 4 | AN21: =Results!R6 -> 4 | AO21: =Results!S6 -> 4 | AP21: =Results!T6 -> 4 | AQ21: =Results!U6 -> 4 | AT21: 4 | AU21: LRO4 | AV21: 800 | AW21: 18000 | AX21: 3 | AY21: 1 | AZ21: 4 | BA21: 4 | BB21: 5 | BC21: 3 | BD21: 5 | BE21: 4 | BF21: 4 | BG21: 4 | BH21: 4 | BI21: 4 | BJ21: 4 | BK21: 4 | BL21: 4 | BM21: 4 | BN21: 4
A22: 5 | B22: =Results!A7 -> LRO5 | C22: =Results!C7*Results!C$2 -> 0.285 | D22: =Results!D7*Results!D$2 -> 0.36 | E22: =Results!E7*Results!E$2 -> 0.34 | F22: =Results!F7*Results!F$2 -> 0.08 | G22: =Results!G7*Results!G$2 -> 0.3 | H22: =Results!H7*Results!H$2 -> 0.28 | I22: =Results!I7*Results!I$2 -> 0.26 | J22: =Results!J7*Results!J$2 -> 0.18 | K22: =Results!K7*Results!K$2 -> 0.22 | L22: =Results!L7*Results!L$2 -> 0.2 | M22: =Results!M7*Results!M$2 -> 0.2 | N22: =Results!N7*Results!N$2 -> 0.24 | O22: =Results!O7*Results!O$2 -> 0.26 | P22: =Results!P7*Results!P$2 -> 0.12 | Q22: =Results!Q7*Results!Q$2 -> 0.1 | R22: =Results!R7*Results!R$2 -> 0.08 | S22: =Results!S7*Results!S$2 -> 0.06 | T22: =Results!T7*Results!T$2 -> 0.04 | U22: =Results!U7*Results!U$2 -> 0.02 | W22: 5 | X22: LRO5 | Y22: =Results!C7 -> 3 | Z22: =Results!D7 -> 4 | AA22: =Results!E7 -> 4 | AB22: =Results!F7 -> 1 | AC22: =Results!G7 -> 4 | AD22: =Results!H7 -> 4 | AE22: =Results!I7 -> 4 | AF22: =Results!J7 -> 3 | AG22: =Results!K7 -> 4 | AH22: =Results!L7 -> 4 | AI22: =Results!M7 -> 4 | AJ22: =Results!N7 -> 4 | AK22: =Results!O7 -> 4 | AL22: =Results!P7 -> 4 | AM22: =Results!Q7 -> 4 | AN22: =Results!R7 -> 4 | AO22: =Results!S7 -> 4 | AP22: =Results!T7 -> 4 | AQ22: =Results!U7 -> 4 | AT22: 5 | AU22: LRO5 | AV22: 450 | AW22: 6000 | AX22: 4 | AY22: 1 | AZ22: 4 | BA22: 4 | BB22: 4 | BC22: 3 | BD22: 4 | BE22: 4 | BF22: 4 | BG22: 4 | BH22: 4 | BI22: 4 | BJ22: 4 | BK22: 4 | BL22: 4 | BM22: 4 | BN22: 4
A23: 6 | B23: =Results!A8 -> LRO6 | C23: =Results!C8*Results!C$2 -> 0.19 | D23: =Results!D8*Results!D$2 -> 0.36 | E23: =Results!E8*Results!E$2 -> 0.34 | F23: =Results!F8*Results!F$2 -> 0.24 | G23: =Results!G8*Results!G$2 -> 0.225 | H23: =Results!H8*Results!H$2 -> 0.21 | I23: =Results!I8*Results!I$2 -> 0.195 | J23: =Results!J8*Results!J$2 -> 0.24 | K23: =Results!K8*Results!K$2 -> 0.22 | L23: =Results!L8*Results!L$2 -> 0.2 | M23: =Results!M8*Results!M$2 -> 0.2 | N23: =Results!N8*Results!N$2 -> 0.24 | O23: =Results!O8*Results!O$2 -> 0.26 | P23: =Results!P8*Results!P$2 -> 0.12 | Q23: =Results!Q8*Results!Q$2 -> 0.1 | R23: =Results!R8*Results!R$2 -> 0.08 | S23: =Results!S8*Results!S$2 -> 0.06 | T23: =Results!T8*Results!T$2 -> 0.04 | U23: =Results!U8*Results!U$2 -> 0.02 | W23: 6 | X23: LRO6 | Y23: =Results!C8 -> 2 | Z23: =Results!D8 -> 4 | AA23: =Results!E8 -> 4 | AB23: =Results!F8 -> 3 | AC23: =Results!G8 -> 3 | AD23: =Results!H8 -> 3 | AE23: =Results!I8 -> 3 | AF23: =Results!J8 -> 4 | AG23: =Results!K8 -> 4 | AH23: =Results!L8 -> 4 | AI23: =Results!M8 -> 4 | AJ23: =Results!N8 -> 4 | AK23: =Results!O8 -> 4 | AL23: =Results!P8 -> 4 | AM23: =Results!Q8 -> 4 | AN23: =Results!R8 -> 4 | AO23: =Results!S8 -> 4 | AP23: =Results!T8 -> 4 | AQ23: =Results!U8 -> 4 | AT23: 6 | AU23: LRO6 | AV23: 450 | AW23: 5000 | AX23: 4 | AY23: 3 | AZ23: 3 | BA23: 3 | BB23: 3 | BC23: 4 | BD23: 4 | BE23: 4 | BF23: 4 | BG23: 4 | BH23: 4 | BI23: 4 | BJ23: 4 | BK23: 4 | BL23: 4 | BM23: 4 | BN23: 4
A24: 7 | B24: =Results!A9 -> LRO7 | C24: =Results!C9*Results!C$2 -> 0.19 | D24: =Results!D9*Results!D$2 -> 0.27 | E24: =Results!E9*Results!E$2 -> 0.34 | F24: =Results!F9*Results!F$2 -> 0.32 | G24: =Results!G9*Results!G$2 -> 0.3 | H24: =Results!H9*Results!H$2 -> 0.28 | I24: =Results!I9*Results!I$2 -> 0.26 | J24: =Results!J9*Results!J$2 -> 0.24 | K24: =Results!K9*Results!K$2 -> 0.275 | L24: =Results!L9*Results!L$2 -> 0.05 | M24: =Results!M9*Results!M$2 -> 0.2 | N24: =Results!N9*Results!N$2 -> 0.24 | O24: =Results!O9*Results!O$2 -> 0.26 | P24: =Results!P9*Results!P$2 -> 0.12 | Q24: =Results!Q9*Results!Q$2 -> 0.1 | R24: =Results!R9*Results!R$2 -> 0.08 | S24: =Results!S9*Results!S$2 -> 0.06 | T24: =Results!T9*Results!T$2 -> 0.04 | U24: =Results!U9*Results!U$2 -> 0.02 | W24: 7 | X24: LRO7 | Y24: =Results!C9 -> 2 | Z24: =Results!D9 -> 3 | AA24: =Results!E9 -> 4 | AB24: =Results!F9 -> 4 | AC24: =Results!G9 -> 4 | AD24: =Results!H9 -> 4 | AE24: =Results!I9 -> 4 | AF24: =Results!J9 -> 4 | AG24: =Results!K9 -> 5 | AH24: =Results!L9 -> 1 | AI24: =Results!M9 -> 4 | AJ24: =Results!N9 -> 4 | AK24: =Results!O9 -> 4 | AL24: =Results!P9 -> 4 | AM24: =Results!Q9 -> 4 | AN24: =Results!R9 -> 4 | AO24: =Results!S9 -> 4 | AP24: =Results!T9 -> 4 | AQ24: =Results!U9 -> 4 | AT24: 7 | AU24: LRO7 | AV24: 700 | AW24: 15000 | AX24: 4 | AY24: 4 | AZ24: 4 | BA24: 4 | BB24: 4 | BC24: 4 | BD24: 5 | BE24: 1 | BF24: 4 | BG24: 4 | BH24: 4 | BI24: 4 | BJ24: 4 | BK24: 4 | BL24: 4 | BM24: 4 | BN24: 4
A25: 8 | B25: =Results!A10 -> LRO8 | C25: =Results!C10*Results!C$2 -> 0.19 | D25: =Results!D10*Results!D$2 -> 0.36 | E25: =Results!E10*Results!E$2 -> 0.34 | F25: =Results!F10*Results!F$2 -> 0.24 | G25: =Results!G10*Results!G$2 -> 0.225 | H25: =Results!H10*Results!H$2 -> 0.21 | I25: =Results!I10*Results!I$2 -> 0.325 | J25: =Results!J10*Results!J$2 -> 0.24 | K25: =Results!K10*Results!K$2 -> 0.22 | L25: =Results!L10*Results!L$2 -> 0.05 | M25: =Results!M10*Results!M$2 -> 0.05 | N25: =Results!N10*Results!N$2 -> 0.06 | O25: =Results!O10*Results!O$2 -> 0.065 | P25: =Results!P10*Results!P$2 -> 0.03 | Q25: =Results!Q10*Results!Q$2 -> 0.025 | R25: =Results!R10*Results!R$2 -> 0.02 | S25: =Results!S10*Results!S$2 -> 0.015 | T25: =Results!T10*Results!T$2 -> 0.01 | U25: =Results!U10*Results!U$2 -> 0.005 | W25: 8 | X25: LRO8 | Y25: =Results!C10 -> 2 | Z25: =Results!D10 -> 4 | AA25: =Results!E10 -> 4 | AB25: =Results!F10 -> 3 | AC25: =Results!G10 -> 3 | AD25: =Results!H10 -> 3 | AE25: =Results!I10 -> 5 | AF25: =Results!J10 -> 4 | AG25: =Results!K10 -> 4 | AH25: =Results!L10 -> 1 | AI25: =Results!M10 -> 1 | AJ25: =Results!N10 -> 1 | AK25: =Results!O10 -> 1 | AL25: =Results!P10 -> 1 | AM25: =Results!Q10 -> 1 | AN25: =Results!R10 -> 1 | AO25: =Results!S10 -> 1 | AP25: =Results!T10 -> 1 | AQ25: =Results!U10 -> 1 | AT25: 8 | AU25: LRO8 | AV25: 800 | AW25: 14000 | AX25: 4 | AY25: 3 | AZ25: 3 | BA25: 3 | BB25: 5 | BC25: 4 | BD25: 4 | BE25: 1 | BF25: 1 | BG25: 1 | BH25: 1 | BI25: 1 | BJ25: 1 | BK25: 1 | BL25: 1 | BM25: 1 | BN25: 1
A26: 9 | B26: =Results!A11 -> LRO9 | C26: =Results!C11*Results!C$2 -> 0.285 | D26: =Results!D11*Results!D$2 -> 0.09 | E26: =Results!E11*Results!E$2 -> 0.255 | F26: =Results!F11*Results!F$2 -> 0.08 | G26: =Results!G11*Results!G$2 -> 0.15 | H26: =Results!H11*Results!H$2 -> 0.14 | I26: =Results!I11*Results!I$2 -> 0.195 | J26: =Results!J11*Results!J$2 -> 0.12 | K26: =Results!K11*Results!K$2 -> 0.275 | L26: =Results!L11*Results!L$2 -> 0.1 | M26: =Results!M11*Results!M$2 -> 0.2 | N26: =Results!N11*Results!N$2 -> 0.06 | O26: =Results!O11*Results!O$2 -> 0.065 | P26: =Results!P11*Results!P$2 -> 0.03 | Q26: =Results!Q11*Results!Q$2 -> 0.025 | R26: =Results!R11*Results!R$2 -> 0.02 | S26: =Results!S11*Results!S$2 -> 0.015 | T26: =Results!T11*Results!T$2 -> 0.01 | U26: =Results!U11*Results!U$2 -> 0.005 | W26: 9 | X26: LRO9 | Y26: =Results!C11 -> 3 | Z26: =Results!D11 -> 1 | AA26: =Results!E11 -> 3 | AB26: =Results!F11 -> 1 | AC26: =Results!G11 -> 2 | AD26: =Results!H11 -> 2 | AE26: =Results!I11 -> 3 | AF26: =Results!J11 -> 2 | AG26: =Results!K11 -> 5 | AH26: =Results!L11 -> 2 | AI26: =Results!M11 -> 4 | AJ26: =Results!N11 -> 1 | AK26: =Results!O11 -> 1 | AL26: =Results!P11 -> 1 | AM26: =Results!Q11 -> 1 | AN26: =Results!R11 -> 1 | AO26: =Results!S11 -> 1 | AP26: =Results!T11 -> 1 | AQ26: =Results!U11 -> 1 | AT26: 9 | AU26: LRO9 | AV26: 650 | AW26: 5000 | AX26: 3 | AY26: 1 | AZ26: 2 | BA26: 2 | BB26: 3 | BC26: 2 | BD26: 5 | BE26: 2 | BF26: 4 | BG26: 1 | BH26: 1 | BI26: 1 | BJ26: 1 | BK26: 1 | BL26: 1 | BM26: 1 | BN26: 1
A27: 10 | B27: =Results!A12 -> LRO10 | C27: =Results!C12*Results!C$2 -> 0.475 | D27: =Results!D12*Results!D$2 -> 0.27 | E27: =Results!E12*Results!E$2 -> 0.34 | F27: =Results!F12*Results!F$2 -> 0.24 | G27: =Results!G12*Results!G$2 -> 0.15 | H27: =Results!H12*Results!H$2 -> 0.14 | I27: =Results!I12*Results!I$2 -> 0.26 | J27: =Results!J12*Results!J$2 -> 0.12 | K27: =Results!K12*Results!K$2 -> 0.22 | L27: =Results!L12*Results!L$2 -> 0.2 | M27: =Results!M12*Results!M$2 -> 0.2 | N27: =Results!N12*Results!N$2 -> 0.24 | O27: =Results!O12*Results!O$2 -> 0.26 | P27: =Results!P12*Results!P$2 -> 0.12 | Q27: =Results!Q12*Results!Q$2 -> 0.1 | R27: =Results!R12*Results!R$2 -> 0.08 | S27: =Results!S12*Results!S$2 -> 0.06 | T27: =Results!T12*Results!T$2 -> 0.04 | U27: =Results!U12*Results!U$2 -> 0.02 | W27: 10 | X27: LRO10 | Y27: =Results!C12 -> 5 | Z27: =Results!D12 -> 3 | AA27: =Results!E12 -> 4 | AB27: =Results!F12 -> 3 | AC27: =Results!G12 -> 2 | AD27: =Results!H12 -> 2 | AE27: =Results!I12 -> 4 | AF27: =Results!J12 -> 2 | AG27: =Results!K12 -> 4 | AH27: =Results!L12 -> 4 | AI27: =Results!M12 -> 4 | AJ27: =Results!N12 -> 4 | AK27: =Results!O12 -> 4 | AL27: =Results!P12 -> 4 | AM27: =Results!Q12 -> 4 | AN27: =Results!R12 -> 4 | AO27: =Results!S12 -> 4 | AP27: =Results!T12 -> 4 | AQ27: =Results!U12 -> 4 | AT27: 10 | AU27: LRO10 | AV27: 750 | AW27: 6000 | AX27: 4 | AY27: 3 | AZ27: 2 | BA27: 2 | BB27: 4 | BC27: 2 | BD27: 4 | BE27: 4 | BF27: 4 | BG27: 4 | BH27: 4 | BI27: 4 | BJ27: 4 | BK27: 4 | BL27: 4 | BM27: 4 | BN27: 4
A28: 11 | B28: =Results!A13 -> LRO11 | C28: =Results!C13*Results!C$2 -> 0.38 | D28: =Results!D13*Results!D$2 -> 0.27 | E28: =Results!E13*Results!E$2 -> 0.255 | F28: =Results!F13*Results!F$2 -> 0.24 | G28: =Results!G13*Results!G$2 -> 0.225 | H28: =Results!H13*Results!H$2 -> 0.28 | I28: =Results!I13*Results!I$2 -> 0.26 | J28: =Results!J13*Results!J$2 -> 0.12 | K28: =Results!K13*Results!K$2 -> 0.22 | L28: =Results!L13*Results!L$2 -> 0.15 | M28: =Results!M13*Results!M$2 -> 0.2 | N28: =Results!N13*Results!N$2 -> 0.24 | O28: =Results!O13*Results!O$2 -> 0.26 | P28: =Results!P13*Results!P$2 -> 0.12 | Q28: =Results!Q13*Results!Q$2 -> 0.1 | R28: =Results!R13*Results!R$2 -> 0.08 | S28: =Results!S13*Results!S$2 -> 0.06 | T28: =Results!T13*Results!T$2 -> 0.04 | U28: =Results!U13*Results!U$2 -> 0.02 | W28: 11 | X28: LRO11 | Y28: =Results!C13 -> 4 | Z28: =Results!D13 -> 3 | AA28: =Results!E13 -> 3 | AB28: =Results!F13 -> 3 | AC28: =Results!G13 -> 3 | AD28: =Results!H13 -> 4 | AE28: =Results!I13 -> 4 | AF28: =Results!J13 -> 2 | AG28: =Results!K13 -> 4 | AH28: =Results!L13 -> 3 | AI28: =Results!M13 -> 4 | AJ28: =Results!N13 -> 4 | AK28: =Results!O13 -> 4 | AL28: =Results!P13 -> 4 | AM28: =Results!Q13 -> 4 | AN28: =Results!R13 -> 4 | AO28: =Results!S13 -> 4 | AP28: =Results!T13 -> 4 | AQ28: =Results!U13 -> 4 | AT28: 11 | AU28: LRO11 | AV28: 450 | AW28: 15000 | AX28: 3 | AY28: 3 | AZ28: 3 | BA28: 4 | BB28: 4 | BC28: 2 | BD28: 4 | BE28: 3 | BF28: 4 | BG28: 4 | BH28: 4 | BI28: 4 | BJ28: 4 | BK28: 4 | BL28: 4 | BM28: 4 | BN28: 4
A29: 12 | B29: =Results!A14 -> LRO12 | C29: =Results!C14*Results!C$2 -> 0.19 | D29: =Results!D14*Results!D$2 -> 0.27 | E29: =Results!E14*Results!E$2 -> 0.255 | F29: =Results!F14*Results!F$2 -> 0.24 | G29: =Results!G14*Results!G$2 -> 0.225 | H29: =Results!H14*Results!H$2 -> 0.21 | I29: =Results!I14*Results!I$2 -> 0.26 | J29: =Results!J14*Results!J$2 -> 0.24 | K29: =Results!K14*Results!K$2 -> 0.275 | L29: =Results!L14*Results!L$2 -> 0.15 | M29: =Results!M14*Results!M$2 -> 0.2 | N29: =Results!N14*Results!N$2 -> 0.24 | O29: =Results!O14*Results!O$2 -> 0.26 | P29: =Results!P14*Results!P$2 -> 0.12 | Q29: =Results!Q14*Results!Q$2 -> 0.1 | R29: =Results!R14*Results!R$2 -> 0.08 | S29: =Results!S14*Results!S$2 -> 0.06 | T29: =Results!T14*Results!T$2 -> 0.04 | U29: =Results!U14*Results!U$2 -> 0.02 | W29: 12 | X29: LRO12 | Y29: =Results!C14 -> 2 | Z29: =Results!D14 -> 3 | AA29: =Results!E14 -> 3 | AB29: =Results!F14 -> 3 | AC29: =Results!G14 -> 3 | AD29: =Results!H14 -> 3 | AE29: =Results!I14 -> 4 | AF29: =Results!J14 -> 4 | AG29: =Results!K14 -> 5 | AH29: =Results!L14 -> 3 | AI29: =Results!M14 -> 4 | AJ29: =Results!N14 -> 4 | AK29: =Results!O14 -> 4 | AL29: =Results!P14 -> 4 | AM29: =Results!Q14 -> 4 | AN29: =Results!R14 -> 4 | AO29: =Results!S14 -> 4 | AP29: =Results!T14 -> 4 | AQ29: =Results!U14 -> 4 | AT29: 12 | AU29: LRO12 | AV29: 470 | AW29: 7000 | AX29: 3 | AY29: 3 | AZ29: 3 | BA29: 3 | BB29: 4 | BC29: 4 | BD29: 5 | BE29: 3 | BF29: 4 | BG29: 4 | BH29: 4 | BI29: 4 | BJ29: 4 | BK29: 4 | BL29: 4 | BM29: 4 | BN29: 4
A30: 13 | B30: =Results!A15 -> LRO13 | C30: =Results!C15*Results!C$2 -> 0.38 | D30: =Results!D15*Results!D$2 -> 0.27 | E30: =Results!E15*Results!E$2 -> 0.255 | F30: =Results!F15*Results!F$2 -> 0.24 | G30: =Results!G15*Results!G$2 -> 0.225 | H30: =Results!H15*Results!H$2 -> 0.28 | I30: =Results!I15*Results!I$2 -> 0.325 | J30: =Results!J15*Results!J$2 -> 0.12 | K30: =Results!K15*Results!K$2 -> 0.22 | L30: =Results!L15*Results!L$2 -> 0.2 | M30: =Results!M15*Results!M$2 -> 0.2 | N30: =Results!N15*Results!N$2 -> 0.24 | O30: =Results!O15*Results!O$2 -> 0.26 | P30: =Results!P15*Results!P$2 -> 0.12 | Q30: =Results!Q15*Results!Q$2 -> 0.1 | R30: =Results!R15*Results!R$2 -> 0.08 | S30: =Results!S15*Results!S$2 -> 0.06 | T30: =Results!T15*Results!T$2 -> 0.04 | U30: =Results!U15*Results!U$2 -> 0.02 | W30: 13 | X30: LRO13 | Y30: =Results!C15 -> 4 | Z30: =Results!D15 -> 3 | AA30: =Results!E15 -> 3 | AB30: =Results!F15 -> 3 | AC30: =Results!G15 -> 3 | AD30: =Results!H15 -> 4 | AE30: =Results!I15 -> 5 | AF30: =Results!J15 -> 2 | AG30: =Results!K15 -> 4 | AH30: =Results!L15 -> 4 | AI30: =Results!M15 -> 4 | AJ30: =Results!N15 -> 4 | AK30: =Results!O15 -> 4 | AL30: =Results!P15 -> 4 | AM30: =Results!Q15 -> 4 | AN30: =Results!R15 -> 4 | AO30: =Results!S15 -> 4 | AP30: =Results!T15 -> 4 | AQ30: =Results!U15 -> 4 | AT30: 13 | AU30: LRO13 | AV30: 450 | AW30: 16000 | AX30: 3 | AY30: 3 | AZ30: 3 | BA30: 4 | BB30: 5 | BC30: 2 | BD30: 4 | BE30: 4 | BF30: 4 | BG30: 4 | BH30: 4 | BI30: 4 | BJ30: 4 | BK30: 4 | BL30: 4 | BM30: 4 | BN30: 4
A31: 14 | B31: =Results!A16 -> LRO14 | C31: =Results!C16*Results!C$2 -> 0.19 | D31: =Results!D16*Results!D$2 -> 0.27 | E31: =Results!E16*Results!E$2 -> 0.34 | F31: =Results!F16*Results!F$2 -> 0.32 | G31: =Results!G16*Results!G$2 -> 0.3 | H31: =Results!H16*Results!H$2 -> 0.28 | I31: =Results!I16*Results!I$2 -> 0.26 | J31: =Results!J16*Results!J$2 -> 0.24 | K31: =Results!K16*Results!K$2 -> 0.22 | L31: =Results!L16*Results!L$2 -> 0.15 | M31: =Results!M16*Results!M$2 -> 0.2 | N31: =Results!N16*Results!N$2 -> 0.24 | O31: =Results!O16*Results!O$2 -> 0.26 | P31: =Results!P16*Results!P$2 -> 0.12 | Q31: =Results!Q16*Results!Q$2 -> 0.1 | R31: =Results!R16*Results!R$2 -> 0.08 | S31: =Results!S16*Results!S$2 -> 0.06 | T31: =Results!T16*Results!T$2 -> 0.04 | U31: =Results!U16*Results!U$2 -> 0.02 | W31: 14 | X31: LRO14 | Y31: =Results!C16 -> 2 | Z31: =Results!D16 -> 3 | AA31: =Results!E16 -> 4 | AB31: =Results!F16 -> 4 | AC31: =Results!G16 -> 4 | AD31: =Results!H16 -> 4 | AE31: =Results!I16 -> 4 | AF31: =Results!J16 -> 4 | AG31: =Results!K16 -> 4 | AH31: =Results!L16 -> 3 | AI31: =Results!M16 -> 4 | AJ31: =Results!N16 -> 4 | AK31: =Results!O16 -> 4 | AL31: =Results!P16 -> 4 | AM31: =Results!Q16 -> 4 | AN31: =Results!R16 -> 4 | AO31: =Results!S16 -> 4 | AP31: =Results!T16 -> 4 | AQ31: =Results!U16 -> 4 | AT31: 14 | AU31: LRO14 | AV31: 700 | AW31: 18000 | AX31: 4 | AY31: 4 | AZ31: 4 | BA31: 4 | BB31: 4 | BC31: 4 | BD31: 4 | BE31: 3 | BF31: 4 | BG31: 4 | BH31: 4 | BI31: 4 | BJ31: 4 | BK31: 4 | BL31: 4 | BM31: 4 | BN31: 4
A32: 15 | B32: =Results!A17 -> LRO15 | C32: =Results!C17*Results!C$2 -> 0.285 | D32: =Results!D17*Results!D$2 -> 0.18 | E32: =Results!E17*Results!E$2 -> 0.34 | F32: =Results!F17*Results!F$2 -> 0.32 | G32: =Results!G17*Results!G$2 -> 0.225 | H32: =Results!H17*Results!H$2 -> 0.21 | I32: =Results!I17*Results!I$2 -> 0.26 | J32: =Results!J17*Results!J$2 -> 0.12 | K32: =Results!K17*Results!K$2 -> 0.275 | L32: =Results!L17*Results!L$2 -> 0.1 | M32: =Results!M17*Results!M$2 -> 0.2 | N32: =Results!N17*Results!N$2 -> 0.24 | O32: =Results!O17*Results!O$2 -> 0.26 | P32: =Results!P17*Results!P$2 -> 0.12 | Q32: =Results!Q17*Results!Q$2 -> 0.1 | R32: =Results!R17*Results!R$2 -> 0.08 | S32: =Results!S17*Results!S$2 -> 0.06 | T32: =Results!T17*Results!T$2 -> 0.04 | U32: =Results!U17*Results!U$2 -> 0.02 | W32: 15 | X32: LRO15 | Y32: =Results!C17 -> 3 | Z32: =Results!D17 -> 2 | AA32: =Results!E17 -> 4 | AB32: =Results!F17 -> 4 | AC32: =Results!G17 -> 3 | AD32: =Results!H17 -> 3 | AE32: =Results!I17 -> 4 | AF32: =Results!J17 -> 2 | AG32: =Results!K17 -> 5 | AH32: =Results!L17 -> 2 | AI32: =Results!M17 -> 4 | AJ32: =Results!N17 -> 4 | AK32: =Results!O17 -> 4 | AL32: =Results!P17 -> 4 | AM32: =Results!Q17 -> 4 | AN32: =Results!R17 -> 4 | AO32: =Results!S17 -> 4 | AP32: =Results!T17 -> 4 | AQ32: =Results!U17 -> 4 | AT32: 15 | AU32: LRO15 | AV32: 750 | AW32: 24000 | AX32: 4 | AY32: 4 | AZ32: 3 | BA32: 3 | BB32: 4 | BC32: 2 | BD32: 5 | BE32: 2 | BF32: 4 | BG32: 4 | BH32: 4 | BI32: 4 | BJ32: 4 | BK32: 4 | BL32: 4 | BM32: 4 | BN32: 4
A33: 16 | B33: =Results!A18 -> LRO16 | C33: =Results!C18*Results!C$2 -> 0.19 | D33: =Results!D18*Results!D$2 -> 0.27 | E33: =Results!E18*Results!E$2 -> 0.255 | F33: =Results!F18*Results!F$2 -> 0.24 | G33: =Results!G18*Results!G$2 -> 0.225 | H33: =Results!H18*Results!H$2 -> 0.21 | I33: =Results!I18*Results!I$2 -> 0.26 | J33: =Results!J18*Results!J$2 -> 0.18 | K33: =Results!K18*Results!K$2 -> 0.275 | L33: =Results!L18*Results!L$2 -> 0.15 | M33: =Results!M18*Results!M$2 -> 0.2 | N33: =Results!N18*Results!N$2 -> 0.24 | O33: =Results!O18*Results!O$2 -> 0.26 | P33: =Results!P18*Results!P$2 -> 0.12 | Q33: =Results!Q18*Results!Q$2 -> 0.1 | R33: =Results!R18*Results!R$2 -> 0.08 | S33: =Results!S18*Results!S$2 -> 0.06 | T33: =Results!T18*Results!T$2 -> 0.04 | U33: =Results!U18*Results!U$2 -> 0.02 | W33: 16 | X33: LRO16 | Y33: =Results!C18 -> 2 | Z33: =Results!D18 -> 3 | AA33: =Results!E18 -> 3 | AB33: =Results!F18 -> 3 | AC33: =Results!G18 -> 3 | AD33: =Results!H18 -> 3 | AE33: =Results!I18 -> 4 | AF33: =Results!J18 -> 3 | AG33: =Results!K18 -> 5 | AH33: =Results!L18 -> 3 | AI33: =Results!M18 -> 4 | AJ33: =Results!N18 -> 4 | AK33: =Results!O18 -> 4 | AL33: =Results!P18 -> 4 | AM33: =Results!Q18 -> 4 | AN33: =Results!R18 -> 4 | AO33: =Results!S18 -> 4 | AP33: =Results!T18 -> 4 | AQ33: =Results!U18 -> 4 | AT33: 16 | AU33: LRO16 | AV33: 680 | AW33: 22000 | AX33: 3 | AY33: 3 | AZ33: 3 | BA33: 3 | BB33: 4 | BC33: 3 | BD33: 5 | BE33: 3 | BF33: 4 | BG33: 4 | BH33: 4 | BI33: 4 | BJ33: 4 | BK33: 4 | BL33: 4 | BM33: 4 | BN33: 4
A34: 17 | B34: =Results!A19 -> LRO17 | C34: =Results!C19*Results!C$2 -> 0.19 | D34: =Results!D19*Results!D$2 -> 0.27 | E34: =Results!E19*Results!E$2 -> 0.255 | F34: =Results!F19*Results!F$2 -> 0.24 | G34: =Results!G19*Results!G$2 -> 0.225 | H34: =Results!H19*Results!H$2 -> 0.21 | I34: =Results!I19*Results!I$2 -> 0.26 | J34: =Results!J19*Results!J$2 -> 0.18 | K34: =Results!K19*Results!K$2 -> 0.275 | L34: =Results!L19*Results!L$2 -> 0.15 | M34: =Results!M19*Results!M$2 -> 0.2 | N34: =Results!N19*Results!N$2 -> 0.24 | O34: =Results!O19*Results!O$2 -> 0.26 | P34: =Results!P19*Results!P$2 -> 0.12 | Q34: =Results!Q19*Results!Q$2 -> 0.1 | R34: =Results!R19*Results!R$2 -> 0.08 | S34: =Results!S19*Results!S$2 -> 0.06 | T34: =Results!T19*Results!T$2 -> 0.04 | U34: =Results!U19*Results!U$2 -> 0.02 | W34: 17 | X34: LRO17 | Y34: =Results!C19 -> 2 | Z34: =Results!D19 -> 3 | AA34: =Results!E19 -> 3 | AB34: =Results!F19 -> 3 | AC34: =Results!G19 -> 3 | AD34: =Results!H19 -> 3 | AE34: =Results!I19 -> 4 | AF34: =Results!J19 -> 3 | AG34: =Results!K19 -> 5 | AH34: =Results!L19 -> 3 | AI34: =Results!M19 -> 4 | AJ34: =Results!N19 -> 4 | AK34: =Results!O19 -> 4 | AL34: =Results!P19 -> 4 | AM34: =Results!Q19 -> 4 | AN34: =Results!R19 -> 4 | AO34: =Results!S19 -> 4 | AP34: =Results!T19 -> 4 | AQ34: =Results!U19 -> 4 | AT34: 17 | AU34: LRO17 | AV34: 460 | AW34: 55000 | AX34: 3 | AY34: 3 | AZ34: 3 | BA34: 3 | BB34: 4 | BC34: 3 | BD34: 5 | BE34: 3 | BF34: 4 | BG34: 4 | BH34: 4 | BI34: 4 | BJ34: 4 | BK34: 4 | BL34: 4 | BM34: 4 | BN34: 4
A35: 18 | B35: =Results!A20 -> LRO18 | C35: =Results!C20*Results!C$2 -> 0.475 | D35: =Results!D20*Results!D$2 -> 0.09 | E35: =Results!E20*Results!E$2 -> 0.255 | F35: =Results!F20*Results!F$2 -> 0.24 | G35: =Results!G20*Results!G$2 -> 0.225 | H35: =Results!H20*Results!H$2 -> 0.28 | I35: =Results!I20*Results!I$2 -> 0.26 | J35: =Results!J20*Results!J$2 -> 0.12 | K35: =Results!K20*Results!K$2 -> 0.275 | L35: =Results!L20*Results!L$2 -> 0.25 | M35: =Results!M20*Results!M$2 -> 0.2 | N35: =Results!N20*Results!N$2 -> 0.24 | O35: =Results!O20*Results!O$2 -> 0.26 | P35: =Results!P20*Results!P$2 -> 0.12 | Q35: =Results!Q20*Results!Q$2 -> 0.1 | R35: =Results!R20*Results!R$2 -> 0.08 | S35: =Results!S20*Results!S$2 -> 0.06 | T35: =Results!T20*Results!T$2 -> 0.04 | U35: =Results!U20*Results!U$2 -> 0.02 | W35: 18 | X35: LRO18 | Y35: =Results!C20 -> 5 | Z35: =Results!D20 -> 1 | AA35: =Results!E20 -> 3 | AB35: =Results!F20 -> 3 | AC35: =Results!G20 -> 3 | AD35: =Results!H20 -> 4 | AE35: =Results!I20 -> 4 | AF35: =Results!J20 -> 2 | AG35: =Results!K20 -> 5 | AH35: =Results!L20 -> 5 | AI35: =Results!M20 -> 4 | AJ35: =Results!N20 -> 4 | AK35: =Results!O20 -> 4 | AL35: =Results!P20 -> 4 | AM35: =Results!Q20 -> 4 | AN35: =Results!R20 -> 4 | AO35: =Results!S20 -> 4 | AP35: =Results!T20 -> 4 | AQ35: =Results!U20 -> 4 | AT35: 18 | AU35: LRO18 | AV35: 980 | AW35: =AW19+AW32 -> 88000 | AX35: 3 | AY35: 3 | AZ35: 3 | BA35: 4 | BB35: 4 | BC35: 2 | BD35: 5 | BE35: 5 | BF35: 4 | BG35: 4 | BH35: 4 | BI35: 4 | BJ35: 4 | BK35: 4 | BL35: 4 | BM35: 4 | BN35: 4
A36: 19 | B36: =Results!A21 -> LRO19 | C36: =Results!C21*Results!C$2 -> 0.285 | D36: =Results!D21*Results!D$2 -> 0.36 | E36: =Results!E21*Results!E$2 -> 0.255 | F36: =Results!F21*Results!F$2 -> 0.24 | G36: =Results!G21*Results!G$2 -> 0.225 | H36: =Results!H21*Results!H$2 -> 0.21 | I36: =Results!I21*Results!I$2 -> 0.26 | J36: =Results!J21*Results!J$2 -> 0.18 | K36: =Results!K21*Results!K$2 -> 0.275 | L36: =Results!L21*Results!L$2 -> 0.15 | M36: =Results!M21*Results!M$2 -> 0.2 | N36: =Results!N21*Results!N$2 -> 0.12 | O36: =Results!O21*Results!O$2 -> 0.13 | P36: =Results!P21*Results!P$2 -> 0.06 | Q36: =Results!Q21*Results!Q$2 -> 0.05 | R36: =Results!R21*Results!R$2 -> 0.04 | S36: =Results!S21*Results!S$2 -> 0.03 | T36: =Results!T21*Results!T$2 -> 0.02 | U36: =Results!U21*Results!U$2 -> 0.01 | W36: 19 | X36: LRO19 | Y36: =Results!C21 -> 3 | Z36: =Results!D21 -> 4 | AA36: =Results!E21 -> 3 | AB36: =Results!F21 -> 3 | AC36: =Results!G21 -> 3 | AD36: =Results!H21 -> 3 | AE36: =Results!I21 -> 4 | AF36: =Results!J21 -> 3 | AG36: =Results!K21 -> 5 | AH36: =Results!L21 -> 3 | AI36: =Results!M21 -> 4 | AJ36: =Results!N21 -> 2 | AK36: =Results!O21 -> 2 | AL36: =Results!P21 -> 2 | AM36: =Results!Q21 -> 2 | AN36: =Results!R21 -> 2 | AO36: =Results!S21 -> 2 | AP36: =Results!T21 -> 2 | AQ36: =Results!U21 -> 2 | AT36: 19 | AU36: LRO19 | AV36: =Y36 -> 3 | AW36: 4 | AX36: 3 | AY36: 3 | AZ36: 3 | BA36: 3 | BB36: 4 | BC36: 3 | BD36: 5 | BE36: 3 | BF36: 4 | BG36: 2 | BH36: 2 | BI36: 2 | BJ36: 2 | BK36: 2 | BL36: 2 | BM36: 2 | BN36: 2
A37: 20 | B37: =Results!A22 -> LRO2 + LRO15 | C37: =Results!C22*Results!C$2 -> 0.285 | D37: =Results!D22*Results!D$2 -> 0.27 | E37: =Results!E22*Results!E$2 -> 0.255 | F37: =Results!F22*Results!F$2 -> 0.16 | G37: =Results!G22*Results!G$2 -> 0.225 | H37: =Results!H22*Results!H$2 -> 0.21 | I37: =Results!I22*Results!I$2 -> 0.195 | J37: =Results!J22*Results!J$2 -> 0.18 | K37: =Results!K22*Results!K$2 -> 0.275 | L37: =Results!L22*Results!L$2 -> 0.15 | M37: =Results!M22*Results!M$2 -> 0.1 | N37: =Results!N22*Results!N$2 -> 0.12 | O37: =Results!O22*Results!O$2 -> 0.13 | P37: =Results!P22*Results!P$2 -> 0.06 | Q37: =Results!Q22*Results!Q$2 -> 0.05 | R37: =Results!R22*Results!R$2 -> 0.04 | S37: =Results!S22*Results!S$2 -> 0.03 | T37: =Results!T22*Results!T$2 -> 0.02 | U37: =Results!U22*Results!U$2 -> 0.01 | W37: 20 | X37: LRO2 + LRO15 | Y37: =Results!C22 -> 3 | Z37: =Results!D22 -> 3 | AA37: =Results!E22 -> 3 | AB37: =Results!F22 -> 2 | AC37: =Results!G22 -> 3 | AD37: =Results!H22 -> 3 | AE37: =Results!I22 -> 3 | AF37: =Results!J22 -> 3 | AG37: =Results!K22 -> 5 | AH37: =Results!L22 -> 3 | AI37: =Results!M22 -> 2 | AJ37: =Results!N22 -> 2 | AK37: =Results!O22 -> 2 | AL37: =Results!P22 -> 2 | AM37: =Results!Q22 -> 2 | AN37: =Results!R22 -> 2 | AO37: =Results!S22 -> 2 | AP37: =Results!T22 -> 2 | AQ37: =Results!U22 -> 2 | AT37: 20 | AU37: LRO2 + LRO15 | AV37: 3 | AW37: 3 | AX37: 3 | AY37: 2 | AZ37: 3 | BA37: 3 | BB37: 3 | BC37: 3 | BD37: 5 | BE37: 3 | BF37: 2 | BG37: 2 | BH37: 2 | BI37: 2 | BJ37: 2 | BK37: 2 | BL37: 2 | BM37: 2 | BN37: 2
A38: 21 | B38: =Results!A23 -> LRO14 + LRO3 | C38: =Results!C23*Results!C$2 -> 0.285 | D38: =Results!D23*Results!D$2 -> 0.27 | E38: =Results!E23*Results!E$2 -> 0.255 | F38: =Results!F23*Results!F$2 -> 0.16 | G38: =Results!G23*Results!G$2 -> 0.225 | H38: =Results!H23*Results!H$2 -> 0.21 | I38: =Results!I23*Results!I$2 -> 0.195 | J38: =Results!J23*Results!J$2 -> 0.18 | K38: =Results!K23*Results!K$2 -> 0.275 | L38: =Results!L23*Results!L$2 -> 0.15 | M38: =Results!M23*Results!M$2 -> 0.1 | N38: =Results!N23*Results!N$2 -> 0.12 | O38: =Results!O23*Results!O$2 -> 0.13 | P38: =Results!P23*Results!P$2 -> 0.06 | Q38: =Results!Q23*Results!Q$2 -> 0.05 | R38: =Results!R23*Results!R$2 -> 0.04 | S38: =Results!S23*Results!S$2 -> 0.03 | T38: =Results!T23*Results!T$2 -> 0.02 | U38: =Results!U23*Results!U$2 -> 0.01 | W38: 21 | X38: =B38 -> LRO14 + LRO3 | Y38: =Results!C23 -> 3 | Z38: =Results!D23 -> 3 | AA38: =Results!E23 -> 3 | AB38: =Results!F23 -> 2 | AC38: =Results!G23 -> 3 | AD38: =Results!H23 -> 3 | AE38: =Results!I23 -> 3 | AF38: =Results!J23 -> 3 | AG38: =Results!K23 -> 5 | AH38: =Results!L23 -> 3 | AI38: =Results!M23 -> 2 | AJ38: =Results!N23 -> 2 | AK38: =Results!O23 -> 2 | AL38: =Results!P23 -> 2 | AM38: =Results!Q23 -> 2 | AN38: =Results!R23 -> 2 | AO38: =Results!S23 -> 2 | AP38: =Results!T23 -> 2 | AQ38: =Results!U23 -> 2 | AT38: =W38 -> 21 | AU38: =X38 -> LRO14 + LRO3 | AV38: 3 | AW38: 3 | AX38: =AA38 -> 3 | AY38: =AB38 -> 2 | AZ38: =AC38 -> 3 | BA38: =AD38 -> 3 | BB38: =AE38 -> 3 | BC38: =AF38 -> 3 | BD38: =AG38 -> 5 | BE38: =AH38 -> 3 | BF38: =AI38 -> 2 | BG38: =AJ38 -> 2 | BH38: =AK38 -> 2 | BI38: =AL38 -> 2 | BJ38: =AM38 -> 2 | BK38: =AN38 -> 2 | BL38: =AO38 -> 2 | BM38: =AP38 -> 2 | BN38: 2

Sheet Prioritised options
A1: Ref | B1: Name | C1: Keyword | D1: Link to process | H1: Link to combined options assessment guidance | N1: Rainwater Harvesting
A2: =_xlfn._xlws.FILTER(Results!A3:A3004,Results!BW3:BW3004=Results!$CI$9) -> LRO2 | B2: =_xlfn._xlws.FILTER(Results!B3:B3004,Results!BW3:BW3004=Results!$CI$9) -> Water Rights Trading | C2: Irrigation Reservoir | D2: =IFERROR(_xlfn.IFS(C2=$N$1,HYPERLINK("#"&"'Detailed assessment-charts'!B3","Rainwater Harvesting Flow Chart"),C2=$N$2,HYPERLINK("#"&"'Detailed assessment-charts'!B34","Reservoir Flow Chart"),C2=$N$3,HYPERLINK("#"&"'Detailed assessment-charts'!B68","Water Sharing Flow Chart"),C2=$N$4,HYPERLINK("#"&"'Detailed assessment-charts'!B102","Darinage Water Use Flow Chart"),C2=$N$5,HYPERLINK("#"&"'Detailed assessment-charts'!B136","Re-use flood water flow chart")),"") -> Reservoir Flow Chart | F2: Can any of the options be combined? | G2: Yes | K2: Yes | N2: Irrigation Reservoir
A3: LRO3 | B3: Linking sources / aggregating licences | C3: Water sharing | D3: =IFERROR(_xlfn.IFS(C3=$N$1,HYPERLINK("#"&"'Detailed assessment-charts'!B3","Rainwater Harvesting Flow Chart"),C3=$N$2,HYPERLINK("#"&"'Detailed assessment-charts'!B34","Reservoir Flow Chart"),C3=$N$3,HYPERLINK("#"&"'Detailed assessment-charts'!B68","Water Sharing Flow Chart"),C3=$N$4,HYPERLINK("#"&"'Detailed assessment-charts'!B102","Darinage Water Use Flow Chart"),C3=$N$5,HYPERLINK("#"&"'Detailed assessment-charts'!B136","Re-use flood water flow chart")),"") -> Water Sharing Flow Chart | K3: No | N3: Water sharing
A4: LRO10 | B4: Use of drainage water | C4: Water sharing | D4: =IFERROR(_xlfn.IFS(C4=$N$1,HYPERLINK("#"&"'Detailed assessment-charts'!B3","Rainwater Harvesting Flow Chart"),C4=$N$2,HYPERLINK("#"&"'Detailed assessment-charts'!B34","Reservoir Flow Chart"),C4=$N$3,HYPERLINK("#"&"'Detailed assessment-charts'!B68","Water Sharing Flow Chart"),C4=$N$4,HYPERLINK("#"&"'Detailed assessment-charts'!B102","Darinage Water Use Flow Chart"),C4=$N$5,HYPERLINK("#"&"'Detailed assessment-charts'!B136","Re-use flood water flow chart")),"") -> Water Sharing Flow Chart | N4: Drainage
A5: LRO15 | B5: Managed aquifer recharge | D5: =IFERROR(_xlfn.IFS(C5=$N$1,HYPERLINK("#"&"'Detailed assessment-charts'!B3","Rainwater Harvesting Flow Chart"),C5=$N$2,HYPERLINK("#"&"'Detailed assessment-charts'!B34","Reservoir Flow Chart"),C5=$N$3,HYPERLINK("#"&"'Detailed assessment-charts'!B68","Water Sharing Flow Chart"),C5=$N$4,HYPERLINK("#"&"'Detailed assessment-charts'!B102","Darinage Water Use Flow Chart"),C5=$N$5,HYPERLINK("#"&"'Detailed assessment-charts'!B136","Re-use flood water flow chart")),"") ->  | N5: Re-use of floodwater
A6: LRO18 | B6: Demand reduction measures | D6: =IFERROR(_xlfn.IFS(C6=$N$1,HYPERLINK("#"&"'Detailed assessment-charts'!B3","Rainwater Harvesting Flow Chart"),C6=$N$2,HYPERLINK("#"&"'Detailed assessment-charts'!B34","Reservoir Flow Chart"),C6=$N$3,HYPERLINK("#"&"'Detailed assessment-charts'!B68","Water Sharing Flow Chart"),C6=$N$4,HYPERLINK("#"&"'Detailed assessment-charts'!B102","Darinage Water Use Flow Chart"),C6=$N$5,HYPERLINK("#"&"'Detailed assessment-charts'!B136","Re-use flood water flow chart")),"") -> 
D7: =IFERROR(_xlfn.IFS(C7=$N$1,HYPERLINK("#"&"'Detailed assessment-charts'!B3","Rainwater Harvesting Flow Chart"),C7=$N$2,HYPERLINK("#"&"'Detailed assessment-charts'!B34","Reservoir Flow Chart"),C7=$N$3,HYPERLINK("#"&"'Detailed assessment-charts'!B68","Water Sharing Flow Chart"),C7=$N$4,HYPERLINK("#"&"'Detailed assessment-charts'!B102","Darinage Water Use Flow Chart"),C7=$N$5,HYPERLINK("#"&"'Detailed assessment-charts'!B136","Re-use flood water flow chart")),"") -> 
D8: =IFERROR(_xlfn.IFS(C8=$N$1,HYPERLINK("#"&"'Detailed assessment-charts'!B3","Rainwater Harvesting Flow Chart"),C8=$N$2,HYPERLINK("#"&"'Detailed assessment-charts'!B34","Reservoir Flow Chart"),C8=$N$3,HYPERLINK("#"&"'Detailed assessment-charts'!B68","Water Sharing Flow Chart"),C8=$N$4,HYPERLINK("#"&"'Detailed assessment-charts'!B102","Darinage Water Use Flow Chart"),C8=$N$5,HYPERLINK("#"&"'Detailed assessment-charts'!B136","Re-use flood water flow chart")),"") -> 
D9: =IFERROR(_xlfn.IFS(C9=$N$1,HYPERLINK("#"&"'Detailed assessment-charts'!B3","Rainwater Harvesting Flow Chart"),C9=$N$2,HYPERLINK("#"&"'Detailed assessment-charts'!B34","Reservoir Flow Chart"),C9=$N$3,HYPERLINK("#"&"'Detailed assessment-charts'!B68","Water Sharing Flow Chart"),C9=$N$4,HYPERLINK("#"&"'Detailed assessment-charts'!B102","Darinage Water Use Flow Chart"),C9=$N$5,HYPERLINK("#"&"'Detailed assessment-charts'!B136","Re-use flood water flow chart")),"") -> 
D10: =IFERROR(_xlfn.IFS(C10=$N$1,HYPERLINK("#"&"'Detailed assessment-charts'!B3","Rainwater Harvesting Flow Chart"),C10=$N$2,HYPERLINK("#"&"'Detailed assessment-charts'!B34","Reservoir Flow Chart"),C10=$N$3,HYPERLINK("#"&"'Detailed assessment-charts'!B68","Water Sharing Flow Chart"),C10=$N$4,HYPERLINK("#"&"'Detailed assessment-charts'!B102","Darinage Water Use Flow Chart"),C10=$N$5,HYPERLINK("#"&"'Detailed assessment-charts'!B136","Re-use flood water flow chart")),"") -> 
D11: =IFERROR(_xlfn.IFS(C11=$N$1,HYPERLINK("#"&"'Detailed assessment-charts'!B3","Rainwater Harvesting Flow Chart"),C11=$N$2,HYPERLINK("#"&"'Detailed assessment-charts'!B34","Reservoir Flow Chart"),C11=$N$3,HYPERLINK("#"&"'Detailed assessment-charts'!B68","Water Sharing Flow Chart"),C11=$N$4,HYPERLINK("#"&"'Detailed assessment-charts'!B102","Darinage Water Use Flow Chart"),C11=$N$5,HYPERLINK("#"&"'Detailed assessment-charts'!B136","Re-use flood water flow chart")),"") -> 
D12: =IFERROR(_xlfn.IFS(C12=$N$1,HYPERLINK("#"&"'Detailed assessment-charts'!B3","Rainwater Harvesting Flow Chart"),C12=$N$2,HYPERLINK("#"&"'Detailed assessment-charts'!B34","Reservoir Flow Chart"),C12=$N$3,HYPERLINK("#"&"'Detailed assessment-charts'!B68","Water Sharing Flow Chart"),C12=$N$4,HYPERLINK("#"&"'Detailed assessment-charts'!B102","Darinage Water Use Flow Chart"),C12=$N$5,HYPERLINK("#"&"'Detailed assessment-charts'!B136","Re-use flood water flow chart")),"") -> 
D13: =IFERROR(_xlfn.IFS(C13=$N$1,HYPERLINK("#"&"'Detailed assessment-charts'!B3","Rainwater Harvesting Flow Chart"),C13=$N$2,HYPERLINK("#"&"'Detailed assessment-charts'!B34","Reservoir Flow Chart"),C13=$N$3,HYPERLINK("#"&"'Detailed assessment-charts'!B68","Water Sharing Flow Chart"),C13=$N$4,HYPERLINK("#"&"'Detailed assessment-charts'!B102","Darinage Water Use Flow Chart"),C13=$N$5,HYPERLINK("#"&"'Detailed assessment-charts'!B136","Re-use flood water flow chart")),"") -> 
D14: =IFERROR(_xlfn.IFS(C14=$N$1,HYPERLINK("#"&"'Detailed assessment-charts'!B3","Rainwater Harvesting Flow Chart"),C14=$N$2,HYPERLINK("#"&"'Detailed assessment-charts'!B34","Reservoir Flow Chart"),C14=$N$3,HYPERLINK("#"&"'Detailed assessment-charts'!B68","Water Sharing Flow Chart"),C14=$N$4,HYPERLINK("#"&"'Detailed assessment-charts'!B102","Darinage Water Use Flow Chart"),C14=$N$5,HYPERLINK("#"&"'Detailed assessment-charts'!B136","Re-use flood water flow chart")),"") -> 
D15: =IFERROR(_xlfn.IFS(C15=$N$1,HYPERLINK("#"&"'Detailed assessment-charts'!B3","Rainwater Harvesting Flow Chart"),C15=$N$2,HYPERLINK("#"&"'Detailed assessment-charts'!B34","Reservoir Flow Chart"),C15=$N$3,HYPERLINK("#"&"'Detailed assessment-charts'!B68","Water Sharing Flow Chart"),C15=$N$4,HYPERLINK("#"&"'Detailed assessment-charts'!B102","Darinage Water Use Flow Chart"),C15=$N$5,HYPERLINK("#"&"'Detailed assessment-charts'!B136","Re-use flood water flow chart")),"") -> 
D16: =IFERROR(_xlfn.IFS(C16=$N$1,HYPERLINK("#"&"'Detailed assessment-charts'!B3","Rainwater Harvesting Flow Chart"),C16=$N$2,HYPERLINK("#"&"'Detailed assessment-charts'!B34","Reservoir Flow Chart"),C16=$N$3,HYPERLINK("#"&"'Detailed assessment-charts'!B68","Water Sharing Flow Chart"),C16=$N$4,HYPERLINK("#"&"'Detailed assessment-charts'!B102","Darinage Water Use Flow Chart"),C16=$N$5,HYPERLINK("#"&"'Detailed assessment-charts'!B136","Re-use flood water flow chart")),"") -> 
D17: =IFERROR(_xlfn.IFS(C17=$N$1,HYPERLINK("#"&"'Detailed assessment-charts'!B3","Rainwater Harvesting Flow Chart"),C17=$N$2,HYPERLINK("#"&"'Detailed assessment-charts'!B34","Reservoir Flow Chart"),C17=$N$3,HYPERLINK("#"&"'Detailed assessment-charts'!B68","Water Sharing Flow Chart"),C17=$N$4,HYPERLINK("#"&"'Detailed assessment-charts'!B102","Darinage Water Use Flow Chart"),C17=$N$5,HYPERLINK("#"&"'Detailed assessment-charts'!B136","Re-use flood water flow chart")),"") -> 
D18: =IFERROR(_xlfn.IFS(C18=$N$1,HYPERLINK("#"&"'Detailed assessment-charts'!B3","Rainwater Harvesting Flow Chart"),C18=$N$2,HYPERLINK("#"&"'Detailed assessment-charts'!B34","Reservoir Flow Chart"),C18=$N$3,HYPERLINK("#"&"'Detailed assessment-charts'!B68","Water Sharing Flow Chart"),C18=$N$4,HYPERLINK("#"&"'Detailed assessment-charts'!B102","Darinage Water Use Flow Chart"),C18=$N$5,HYPERLINK("#"&"'Detailed assessment-charts'!B136","Re-use flood water flow chart")),"") -> 
D19: =IFERROR(_xlfn.IFS(C19=$N$1,HYPERLINK("#"&"'Detailed assessment-charts'!B3","Rainwater Harvesting Flow Chart"),C19=$N$2,HYPERLINK("#"&"'Detailed assessment-charts'!B34","Reservoir Flow Chart"),C19=$N$3,HYPERLINK("#"&"'Detailed assessment-charts'!B68","Water Sharing Flow Chart"),C19=$N$4,HYPERLINK("#"&"'Detailed assessment-charts'!B102","Darinage Water Use Flow Chart"),C19=$N$5,HYPERLINK("#"&"'Detailed assessment-charts'!B136","Re-use flood water flow chart")),"") -> 
D20: =IFERROR(_xlfn.IFS(C20=$N$1,HYPERLINK("#"&"'Detailed assessment-charts'!B3","Rainwater Harvesting Flow Chart"),C20=$N$2,HYPERLINK("#"&"'Detailed assessment-charts'!B34","Reservoir Flow Chart"),C20=$N$3,HYPERLINK("#"&"'Detailed assessment-charts'!B68","Water Sharing Flow Chart"),C20=$N$4,HYPERLINK("#"&"'Detailed assessment-charts'!B102","Darinage Water Use Flow Chart"),C20=$N$5,HYPERLINK("#"&"'Detailed assessment-charts'!B136","Re-use flood water flow chart")),"") -> 
D21: =IFERROR(_xlfn.IFS(C21=$N$1,HYPERLINK("#"&"'Detailed assessment-charts'!B3","Rainwater Harvesting Flow Chart"),C21=$N$2,HYPERLINK("#"&"'Detailed assessment-charts'!B34","Reservoir Flow Chart"),C21=$N$3,HYPERLINK("#"&"'Detailed assessment-charts'!B68","Water Sharing Flow Chart"),C21=$N$4,HYPERLINK("#"&"'Detailed assessment-charts'!B102","Darinage Water Use Flow Chart"),C21=$N$5,HYPERLINK("#"&"'Detailed assessment-charts'!B136","Re-use flood water flow chart")),"") -> 
D22: =IFERROR(_xlfn.IFS(C22=$N$1,HYPERLINK("#"&"'Detailed assessment-charts'!B3","Rainwater Harvesting Flow Chart"),C22=$N$2,HYPERLINK("#"&"'Detailed assessment-charts'!B34","Reservoir Flow Chart"),C22=$N$3,HYPERLINK("#"&"'Detailed assessment-charts'!B68","Water Sharing Flow Chart"),C22=$N$4,HYPERLINK("#"&"'Detailed assessment-charts'!B102","Darinage Water Use Flow Chart"),C22=$N$5,HYPERLINK("#"&"'Detailed assessment-charts'!B136","Re-use flood water flow chart")),"") -> 
D23: =IFERROR(_xlfn.IFS(C23=$N$1,HYPERLINK("#"&"'Detailed assessment-charts'!B3","Rainwater Harvesting Flow Chart"),C23=$N$2,HYPERLINK("#"&"'Detailed assessment-charts'!B34","Reservoir Flow Chart"),C23=$N$3,HYPERLINK("#"&"'Detailed assessment-charts'!B68","Water Sharing Flow Chart"),C23=$N$4,HYPERLINK("#"&"'Detailed assessment-charts'!B102","Darinage Water Use Flow Chart"),C23=$N$5,HYPERLINK("#"&"'Detailed assessment-charts'!B136","Re-use flood water flow chart")),"") -> 
D24: =IFERROR(_xlfn.IFS(C24=$N$1,HYPERLINK("#"&"'Detailed assessment-charts'!B3","Rainwater Harvesting Flow Chart"),C24=$N$2,HYPERLINK("#"&"'Detailed assessment-charts'!B34","Reservoir Flow Chart"),C24=$N$3,HYPERLINK("#"&"'Detailed assessment-charts'!B68","Water Sharing Flow Chart"),C24=$N$4,HYPERLINK("#"&"'Detailed assessment-charts'!B102","Darinage Water Use Flow Chart"),C24=$N$5,HYPERLINK("#"&"'Detailed assessment-charts'!B136","Re-use flood water flow chart")),"") -> 
D25: =IFERROR(_xlfn.IFS(C25=$N$1,HYPERLINK("#"&"'Detailed assessment-charts'!B3","Rainwater Harvesting Flow Chart"),C25=$N$2,HYPERLINK("#"&"'Detailed assessment-charts'!B34","Reservoir Flow Chart"),C25=$N$3,HYPERLINK("#"&"'Detailed assessment-charts'!B68","Water Sharing Flow Chart"),C25=$N$4,HYPERLINK("#"&"'Detailed assessment-charts'!B102","Darinage Water Use Flow Chart"),C25=$N$5,HYPERLINK("#"&"'Detailed assessment-charts'!B136","Re-use flood water flow chart")),"") -> 
D26: =IFERROR(_xlfn.IFS(C26=$N$1,HYPERLINK("#"&"'Detailed assessment-charts'!B3","Rainwater Harvesting Flow Chart"),C26=$N$2,HYPERLINK("#"&"'Detailed assessment-charts'!B34","Reservoir Flow Chart"),C26=$N$3,HYPERLINK("#"&"'Detailed assessment-charts'!B68","Water Sharing Flow Chart"),C26=$N$4,HYPERLINK("#"&"'Detailed assessment-charts'!B102","Darinage Water Use Flow Chart"),C26=$N$5,HYPERLINK("#"&"'Detailed assessment-charts'!B136","Re-use flood water flow chart")),"") -> 
D27: =IFERROR(_xlfn.IFS(C27=$N$1,HYPERLINK("#"&"'Detailed assessment-charts'!B3","Rainwater Harvesting Flow Chart"),C27=$N$2,HYPERLINK("#"&"'Detailed assessment-charts'!B34","Reservoir Flow Chart"),C27=$N$3,HYPERLINK("#"&"'Detailed assessment-charts'!B68","Water Sharing Flow Chart"),C27=$N$4,HYPERLINK("#"&"'Detailed assessment-charts'!B102","Darinage Water Use Flow Chart"),C27=$N$5,HYPERLINK("#"&"'Detailed assessment-charts'!B136","Re-use flood water flow chart")),"") -> 
D28: =IFERROR(_xlfn.IFS(C28=$N$1,HYPERLINK("#"&"'Detailed assessment-charts'!B3","Rainwater Harvesting Flow Chart"),C28=$N$2,HYPERLINK("#"&"'Detailed assessment-charts'!B34","Reservoir Flow Chart"),C28=$N$3,HYPERLINK("#"&"'Detailed assessment-charts'!B68","Water Sharing Flow Chart"),C28=$N$4,HYPERLINK("#"&"'Detailed assessment-charts'!B102","Darinage Water Use Flow Chart"),C28=$N$5,HYPERLINK("#"&"'Detailed assessment-charts'!B136","Re-use flood water flow chart")),"") -> 
D29: =IFERROR(_xlfn.IFS(C29=$N$1,HYPERLINK("#"&"'Detailed assessment-charts'!B3","Rainwater Harvesting Flow Chart"),C29=$N$2,HYPERLINK("#"&"'Detailed assessment-charts'!B34","Reservoir Flow Chart"),C29=$N$3,HYPERLINK("#"&"'Detailed assessment-charts'!B68","Water Sharing Flow Chart"),C29=$N$4,HYPERLINK("#"&"'Detailed assessment-charts'!B102","Darinage Water Use Flow Chart"),C29=$N$5,HYPERLINK("#"&"'Detailed assessment-charts'!B136","Re-use flood water flow chart")),"") -> 
D30: =IFERROR(_xlfn.IFS(C30=$N$1,HYPERLINK("#"&"'Detailed assessment-charts'!B3","Rainwater Harvesting Flow Chart"),C30=$N$2,HYPERLINK("#"&"'Detailed assessment-charts'!B34","Reservoir Flow Chart"),C30=$N$3,HYPERLINK("#"&"'Detailed assessment-charts'!B68","Water Sharing Flow Chart"),C30=$N$4,HYPERLINK("#"&"'Detailed assessment-charts'!B102","Darinage Water Use Flow Chart"),C30=$N$5,HYPERLINK("#"&"'Detailed assessment-charts'!B136","Re-use flood water flow chart")),"") -> 
D31: =IFERROR(_xlfn.IFS(C31=$N$1,HYPERLINK("#"&"'Detailed assessment-charts'!B3","Rainwater Harvesting Flow Chart"),C31=$N$2,HYPERLINK("#"&"'Detailed assessment-charts'!B34","Reservoir Flow Chart"),C31=$N$3,HYPERLINK("#"&"'Detailed assessment-charts'!B68","Water Sharing Flow Chart"),C31=$N$4,HYPERLINK("#"&"'Detailed assessment-charts'!B102","Darinage Water Use Flow Chart"),C31=$N$5,HYPERLINK("#"&"'Detailed assessment-charts'!B136","Re-use flood water flow chart")),"") -> 
D32: =IFERROR(_xlfn.IFS(C32=$N$1,HYPERLINK("#"&"'Detailed assessment-charts'!B3","Rainwater Harvesting Flow Chart"),C32=$N$2,HYPERLINK("#"&"'Detailed assessment-charts'!B34","Reservoir Flow Chart"),C32=$N$3,HYPERLINK("#"&"'Detailed assessment-charts'!B68","Water Sharing Flow Chart"),C32=$N$4,HYPERLINK("#"&"'Detailed assessment-charts'!B102","Darinage Water Use Flow Chart"),C32=$N$5,HYPERLINK("#"&"'Detailed assessment-charts'!B136","Re-use flood water flow chart")),"") -> 
D33: =IFERROR(_xlfn.IFS(C33=$N$1,HYPERLINK("#"&"'Detailed assessment-charts'!B3","Rainwater Harvesting Flow Chart"),C33=$N$2,HYPERLINK("#"&"'Detailed assessment-charts'!B34","Reservoir Flow Chart"),C33=$N$3,HYPERLINK("#"&"'Detailed assessment-charts'!B68","Water Sharing Flow Chart"),C33=$N$4,HYPERLINK("#"&"'Detailed assessment-charts'!B102","Darinage Water Use Flow Chart"),C33=$N$5,HYPERLINK("#"&"'Detailed assessment-charts'!B136","Re-use flood water flow chart")),"") -> 
D34: =IFERROR(_xlfn.IFS(C34=$N$1,HYPERLINK("#"&"'Detailed assessment-charts'!B3","Rainwater Harvesting Flow Chart"),C34=$N$2,HYPERLINK("#"&"'Detailed assessment-charts'!B34","Reservoir Flow Chart"),C34=$N$3,HYPERLINK("#"&"'Detailed assessment-charts'!B68","Water Sharing Flow Chart"),C34=$N$4,HYPERLINK("#"&"'Detailed assessment-charts'!B102","Darinage Water Use Flow Chart"),C34=$N$5,HYPERLINK("#"&"'Detailed assessment-charts'!B136","Re-use flood water flow chart")),"") -> 
D35: =IFERROR(_xlfn.IFS(C35=$N$1,HYPERLINK("#"&"'Detailed assessment-charts'!B3","Rainwater Harvesting Flow Chart"),C35=$N$2,HYPERLINK("#"&"'Detailed assessment-charts'!B34","Reservoir Flow Chart"),C35=$N$3,HYPERLINK("#"&"'Detailed assessment-charts'!B68","Water Sharing Flow Chart"),C35=$N$4,HYPERLINK("#"&"'Detailed assessment-charts'!B102","Darinage Water Use Flow Chart"),C35=$N$5,HYPERLINK("#"&"'Detailed assessment-charts'!B136","Re-use flood water flow chart")),"") -> 
D36: =IFERROR(_xlfn.IFS(C36=$N$1,HYPERLINK("#"&"'Detailed assessment-charts'!B3","Rainwater Harvesting Flow Chart"),C36=$N$2,HYPERLINK("#"&"'Detailed assessment-charts'!B34","Reservoir Flow Chart"),C36=$N$3,HYPERLINK("#"&"'Detailed assessment-charts'!B68","Water Sharing Flow Chart"),C36=$N$4,HYPERLINK("#"&"'Detailed assessment-charts'!B102","Darinage Water Use Flow Chart"),C36=$N$5,HYPERLINK("#"&"'Detailed assessment-charts'!B136","Re-use flood water flow chart")),"") -> 
D37: =IFERROR(_xlfn.IFS(C37=$N$1,HYPERLINK("#"&"'Detailed assessment-charts'!B3","Rainwater Harvesting Flow Chart"),C37=$N$2,HYPERLINK("#"&"'Detailed assessment-charts'!B34","Reservoir Flow Chart"),C37=$N$3,HYPERLINK("#"&"'Detailed assessment-charts'!B68","Water Sharing Flow Chart"),C37=$N$4,HYPERLINK("#"&"'Detailed assessment-charts'!B102","Darinage Water Use Flow Chart"),C37=$N$5,HYPERLINK("#"&"'Detailed assessment-charts'!B136","Re-use flood water flow chart")),"") -> 
D38: =IFERROR(_xlfn.IFS(C38=$N$1,HYPERLINK("#"&"'Detailed assessment-charts'!B3","Rainwater Harvesting Flow Chart"),C38=$N$2,HYPERLINK("#"&"'Detailed assessment-charts'!B34","Reservoir Flow Chart"),C38=$N$3,HYPERLINK("#"&"'Detailed assessment-charts'!B68","Water Sharing Flow Chart"),C38=$N$4,HYPERLINK("#"&"'Detailed assessment-charts'!B102","Darinage Water Use Flow Chart"),C38=$N$5,HYPERLINK("#"&"'Detailed assessment-charts'!B136","Re-use flood water flow chart")),"") -> 
D39: =IFERROR(_xlfn.IFS(C39=$N$1,HYPERLINK("#"&"'Detailed assessment-charts'!B3","Rainwater Harvesting Flow Chart"),C39=$N$2,HYPERLINK("#"&"'Detailed assessment-charts'!B34","Reservoir Flow Chart"),C39=$N$3,HYPERLINK("#"&"'Detailed assessment-charts'!B68","Water Sharing Flow Chart"),C39=$N$4,HYPERLINK("#"&"'Detailed assessment-charts'!B102","Darinage Water Use Flow Chart"),C39=$N$5,HYPERLINK("#"&"'Detailed assessment-charts'!B136","Re-use flood water flow chart")),"") -> 
D40: =IFERROR(_xlfn.IFS(C40=$N$1,HYPERLINK("#"&"'Detailed assessment-charts'!B3","Rainwater Harvesting Flow Chart"),C40=$N$2,HYPERLINK("#"&"'Detailed assessment-charts'!B34","Reservoir Flow Chart"),C40=$N$3,HYPERLINK("#"&"'Detailed assessment-charts'!B68","Water Sharing Flow Chart"),C40=$N$4,HYPERLINK("#"&"'Detailed assessment-charts'!B102","Darinage Water Use Flow Chart"),C40=$N$5,HYPERLINK("#"&"'Detailed assessment-charts'!B136","Re-use flood water flow chart")),"") -> 
D41: =IFERROR(_xlfn.IFS(C41=$N$1,HYPERLINK("#"&"'Detailed assessment-charts'!B3","Rainwater Harvesting Flow Chart"),C41=$N$2,HYPERLINK("#"&"'Detailed assessment-charts'!B34","Reservoir Flow Chart"),C41=$N$3,HYPERLINK("#"&"'Detailed assessment-charts'!B68","Water Sharing Flow Chart"),C41=$N$4,HYPERLINK("#"&"'Detailed assessment-charts'!B102","Darinage Water Use Flow Chart"),C41=$N$5,HYPERLINK("#"&"'Detailed assessment-charts'!B136","Re-use flood water flow chart")),"") -> 
D42: =IFERROR(_xlfn.IFS(C42=$N$1,HYPERLINK("#"&"'Detailed assessment-charts'!B3","Rainwater Harvesting Flow Chart"),C42=$N$2,HYPERLINK("#"&"'Detailed assessment-charts'!B34","Reservoir Flow Chart"),C42=$N$3,HYPERLINK("#"&"'Detailed assessment-charts'!B68","Water Sharing Flow Chart"),C42=$N$4,HYPERLINK("#"&"'Detailed assessment-charts'!B102","Darinage Water Use Flow Chart"),C42=$N$5,HYPERLINK("#"&"'Detailed assessment-charts'!B136","Re-use flood water flow chart")),"") -> 
D43: =IFERROR(_xlfn.IFS(C43=$N$1,HYPERLINK("#"&"'Detailed assessment-charts'!B3","Rainwater Harvesting Flow Chart"),C43=$N$2,HYPERLINK("#"&"'Detailed assessment-charts'!B34","Reservoir Flow Chart"),C43=$N$3,HYPERLINK("#"&"'Detailed assessment-charts'!B68","Water Sharing Flow Chart"),C43=$N$4,HYPERLINK("#"&"'Detailed assessment-charts'!B102","Darinage Water Use Flow Chart"),C43=$N$5,HYPERLINK("#"&"'Detailed assessment-charts'!B136","Re-use flood water flow chart")),"") -> 
D44: =IFERROR(_xlfn.IFS(C44=$N$1,HYPERLINK("#"&"'Detailed assessment-charts'!B3","Rainwater Harvesting Flow Chart"),C44=$N$2,HYPERLINK("#"&"'Detailed assessment-charts'!B34","Reservoir Flow Chart"),C44=$N$3,HYPERLINK("#"&"'Detailed assessment-charts'!B68","Water Sharing Flow Chart"),C44=$N$4,HYPERLINK("#"&"'Detailed assessment-charts'!B102","Darinage Water Use Flow Chart"),C44=$N$5,HYPERLINK("#"&"'Detailed assessment-charts'!B136","Re-use flood water flow chart")),"") -> 
D45: =IFERROR(_xlfn.IFS(C45=$N$1,HYPERLINK("#"&"'Detailed assessment-charts'!B3","Rainwater Harvesting Flow Chart"),C45=$N$2,HYPERLINK("#"&"'Detailed assessment-charts'!B34","Reservoir Flow Chart"),C45=$N$3,HYPERLINK("#"&"'Detailed assessment-charts'!B68","Water Sharing Flow Chart"),C45=$N$4,HYPERLINK("#"&"'Detailed assessment-charts'!B102","Darinage Water Use Flow Chart"),C45=$N$5,HYPERLINK("#"&"'Detailed assessment-charts'!B136","Re-use flood water flow chart")),"") -> 
D46: =IFERROR(_xlfn.IFS(C46=$N$1,HYPERLINK("#"&"'Detailed assessment-charts'!B3","Rainwater Harvesting Flow Chart"),C46=$N$2,HYPERLINK("#"&"'Detailed assessment-charts'!B34","Reservoir Flow Chart"),C46=$N$3,HYPERLINK("#"&"'Detailed assessment-charts'!B68","Water Sharing Flow Chart"),C46=$N$4,HYPERLINK("#"&"'Detailed assessment-charts'!B102","Darinage Water Use Flow Chart"),C46=$N$5,HYPERLINK("#"&"'Detailed assessment-charts'!B136","Re-use flood water flow chart")),"") -> 
D47: =IFERROR(_xlfn.IFS(C47=$N$1,HYPERLINK("#"&"'Detailed assessment-charts'!B3","Rainwater Harvesting Flow Chart"),C47=$N$2,HYPERLINK("#"&"'Detailed assessment-charts'!B34","Reservoir Flow Chart"),C47=$N$3,HYPERLINK("#"&"'Detailed assessment-charts'!B68","Water Sharing Flow Chart"),C47=$N$4,HYPERLINK("#"&"'Detailed assessment-charts'!B102","Darinage Water Use Flow Chart"),C47=$N$5,HYPERLINK("#"&"'Detailed assessment-charts'!B136","Re-use flood water flow chart")),"") -> 
D48: =IFERROR(_xlfn.IFS(C48=$N$1,HYPERLINK("#"&"'Detailed assessment-charts'!B3","Rainwater Harvesting Flow Chart"),C48=$N$2,HYPERLINK("#"&"'Detailed assessment-charts'!B34","Reservoir Flow Chart"),C48=$N$3,HYPERLINK("#"&"'Detailed assessment-charts'!B68","Water Sharing Flow Chart"),C48=$N$4,HYPERLINK("#"&"'Detailed assessment-charts'!B102","Darinage Water Use Flow Chart"),C48=$N$5,HYPERLINK("#"&"'Detailed assessment-charts'!B136","Re-use flood water flow chart")),"") -> 
D49: =IFERROR(_xlfn.IFS(C49=$N$1,HYPERLINK("#"&"'Detailed assessment-charts'!B3","Rainwater Harvesting Flow Chart"),C49=$N$2,HYPERLINK("#"&"'Detailed assessment-charts'!B34","Reservoir Flow Chart"),C49=$N$3,HYPERLINK("#"&"'Detailed assessment-charts'!B68","Water Sharing Flow Chart"),C49=$N$4,HYPERLINK("#"&"'Detailed assessment-charts'!B102","Darinage Water Use Flow Chart"),C49=$N$5,HYPERLINK("#"&"'Detailed assessment-charts'!B136","Re-use flood water flow chart")),"") -> 
D50: =IFERROR(_xlfn.IFS(C50=$N$1,HYPERLINK("#"&"'Detailed assessment-charts'!B3","Rainwater Harvesting Flow Chart"),C50=$N$2,HYPERLINK("#"&"'Detailed assessment-charts'!B34","Reservoir Flow Chart"),C50=$N$3,HYPERLINK("#"&"'Detailed assessment-charts'!B68","Water Sharing Flow Chart"),C50=$N$4,HYPERLINK("#"&"'Detailed assessment-charts'!B102","Darinage Water Use Flow Chart"),C50=$N$5,HYPERLINK("#"&"'Detailed assessment-charts'!B136","Re-use flood water flow chart")),"") -> 
D51: =IFERROR(_xlfn.IFS(C51=$N$1,HYPERLINK("#"&"'Detailed assessment-charts'!B3","Rainwater Harvesting Flow Chart"),C51=$N$2,HYPERLINK("#"&"'Detailed assessment-charts'!B34","Reservoir Flow Chart"),C51=$N$3,HYPERLINK("#"&"'Detailed assessment-charts'!B68","Water Sharing Flow Chart"),C51=$N$4,HYPERLINK("#"&"'Detailed assessment-charts'!B102","Darinage Water Use Flow Chart"),C51=$N$5,HYPERLINK("#"&"'Detailed assessment-charts'!B136","Re-use flood water flow chart")),"") -> 
D52: =IFERROR(_xlfn.IFS(C52=$N$1,HYPERLINK("#"&"'Detailed assessment-charts'!B3","Rainwater Harvesting Flow Chart"),C52=$N$2,HYPERLINK("#"&"'Detailed assessment-charts'!B34","Reservoir Flow Chart"),C52=$N$3,HYPERLINK("#"&"'Detailed assessment-charts'!B68","Water Sharing Flow Chart"),C52=$N$4,HYPERLINK("#"&"'Detailed assessment-charts'!B102","Darinage Water Use Flow Chart"),C52=$N$5,HYPERLINK("#"&"'Detailed assessment-charts'!B136","Re-use flood water flow chart")),"") -> 
D53: =IFERROR(_xlfn.IFS(C53=$N$1,HYPERLINK("#"&"'Detailed assessment-charts'!B3","Rainwater Harvesting Flow Chart"),C53=$N$2,HYPERLINK("#"&"'Detailed assessment-charts'!B34","Reservoir Flow Chart"),C53=$N$3,HYPERLINK("#"&"'Detailed assessment-charts'!B68","Water Sharing Flow Chart"),C53=$N$4,HYPERLINK("#"&"'Detailed assessment-charts'!B102","Darinage Water Use Flow Chart"),C53=$N$5,HYPERLINK("#"&"'Detailed assessment-charts'!B136","Re-use flood water flow chart")),"") -> 
D54: =IFERROR(_xlfn.IFS(C54=$N$1,HYPERLINK("#"&"'Detailed assessment-charts'!B3","Rainwater Harvesting Flow Chart"),C54=$N$2,HYPERLINK("#"&"'Detailed assessment-charts'!B34","Reservoir Flow Chart"),C54=$N$3,HYPERLINK("#"&"'Detailed assessment-charts'!B68","Water Sharing Flow Chart"),C54=$N$4,HYPERLINK("#"&"'Detailed assessment-charts'!B102","Darinage Water Use Flow Chart"),C54=$N$5,HYPERLINK("#"&"'Detailed assessment-charts'!B136","Re-use flood water flow chart")),"") -> 
D55: =IFERROR(_xlfn.IFS(C55=$N$1,HYPERLINK("#"&"'Detailed assessment-charts'!B3","Rainwater Harvesting Flow Chart"),C55=$N$2,HYPERLINK("#"&"'Detailed assessment-charts'!B34","Reservoir Flow Chart"),C55=$N$3,HYPERLINK("#"&"'Detailed assessment-charts'!B68","Water Sharing Flow Chart"),C55=$N$4,HYPERLINK("#"&"'Detailed assessment-charts'!B102","Darinage Water Use Flow Chart"),C55=$N$5,HYPERLINK("#"&"'Detailed assessment-charts'!B136","Re-use flood water flow chart")),"") -> 
D56: =IFERROR(_xlfn.IFS(C56=$N$1,HYPERLINK("#"&"'Detailed assessment-charts'!B3","Rainwater Harvesting Flow Chart"),C56=$N$2,HYPERLINK("#"&"'Detailed assessment-charts'!B34","Reservoir Flow Chart"),C56=$N$3,HYPERLINK("#"&"'Detailed assessment-charts'!B68","Water Sharing Flow Chart"),C56=$N$4,HYPERLINK("#"&"'Detailed assessment-charts'!B102","Darinage Water Use Flow Chart"),C56=$N$5,HYPERLINK("#"&"'Detailed assessment-charts'!B136","Re-use flood water flow chart")),"") -> 
D57: =IFERROR(_xlfn.IFS(C57=$N$1,HYPERLINK("#"&"'Detailed assessment-charts'!B3","Rainwater Harvesting Flow Chart"),C57=$N$2,HYPERLINK("#"&"'Detailed assessment-charts'!B34","Reservoir Flow Chart"),C57=$N$3,HYPERLINK("#"&"'Detailed assessment-charts'!B68","Water Sharing Flow Chart"),C57=$N$4,HYPERLINK("#"&"'Detailed assessment-charts'!B102","Darinage Water Use Flow Chart"),C57=$N$5,HYPERLINK("#"&"'Detailed assessment-charts'!B136","Re-use flood water flow chart")),"") -> 
D58: =IFERROR(_xlfn.IFS(C58=$N$1,HYPERLINK("#"&"'Detailed assessment-charts'!B3","Rainwater Harvesting Flow Chart"),C58=$N$2,HYPERLINK("#"&"'Detailed assessment-charts'!B34","Reservoir Flow Chart"),C58=$N$3,HYPERLINK("#"&"'Detailed assessment-charts'!B68","Water Sharing Flow Chart"),C58=$N$4,HYPERLINK("#"&"'Detailed assessment-charts'!B102","Darinage Water Use Flow Chart"),C58=$N$5,HYPERLINK("#"&"'Detailed assessment-charts'!B136","Re-use flood water flow chart")),"") -> 
D59: =IFERROR(_xlfn.IFS(C59=$N$1,HYPERLINK("#"&"'Detailed assessment-charts'!B3","Rainwater Harvesting Flow Chart"),C59=$N$2,HYPERLINK("#"&"'Detailed assessment-charts'!B34","Reservoir Flow Chart"),C59=$N$3,HYPERLINK("#"&"'Detailed assessment-charts'!B68","Water Sharing Flow Chart"),C59=$N$4,HYPERLINK("#"&"'Detailed assessment-charts'!B102","Darinage Water Use Flow Chart"),C59=$N$5,HYPERLINK("#"&"'Detailed assessment-charts'!B136","Re-use flood water flow chart")),"") -> 
D60: =IFERROR(_xlfn.IFS(C60=$N$1,HYPERLINK("#"&"'Detailed assessment-charts'!B3","Rainwater Harvesting Flow Chart"),C60=$N$2,HYPERLINK("#"&"'Detailed assessment-charts'!B34","Reservoir Flow Chart"),C60=$N$3,HYPERLINK("#"&"'Detailed assessment-charts'!B68","Water Sharing Flow Chart"),C60=$N$4,HYPERLINK("#"&"'Detailed assessment-charts'!B102","Darinage Water Use Flow Chart"),C60=$N$5,HYPERLINK("#"&"'Detailed assessment-charts'!B136","Re-use flood water flow chart")),"") -> 
D61: =IFERROR(_xlfn.IFS(C61=$N$1,HYPERLINK("#"&"'Detailed assessment-charts'!B3","Rainwater Harvesting Flow Chart"),C61=$N$2,HYPERLINK("#"&"'Detailed assessment-charts'!B34","Reservoir Flow Chart"),C61=$N$3,HYPERLINK("#"&"'Detailed assessment-charts'!B68","Water Sharing Flow Chart"),C61=$N$4,HYPERLINK("#"&"'Detailed assessment-charts'!B102","Darinage Water Use Flow Chart"),C61=$N$5,HYPERLINK("#"&"'Detailed assessment-charts'!B136","Re-use flood water flow chart")),"") -> 
D62: =IFERROR(_xlfn.IFS(C62=$N$1,HYPERLINK("#"&"'Detailed assessment-charts'!B3","Rainwater Harvesting Flow Chart"),C62=$N$2,HYPERLINK("#"&"'Detailed assessment-charts'!B34","Reservoir Flow Chart"),C62=$N$3,HYPERLINK("#"&"'Detailed assessment-charts'!B68","Water Sharing Flow Chart"),C62=$N$4,HYPERLINK("#"&"'Detailed assessment-charts'!B102","Darinage Water Use Flow Chart"),C62=$N$5,HYPERLINK("#"&"'Detailed assessment-charts'!B136","Re-use flood water flow chart")),"") -> 
D63: =IFERROR(_xlfn.IFS(C63=$N$1,HYPERLINK("#"&"'Detailed assessment-charts'!B3","Rainwater Harvesting Flow Chart"),C63=$N$2,HYPERLINK("#"&"'Detailed assessment-charts'!B34","Reservoir Flow Chart"),C63=$N$3,HYPERLINK("#"&"'Detailed assessment-charts'!B68","Water Sharing Flow Chart"),C63=$N$4,HYPERLINK("#"&"'Detailed assessment-charts'!B102","Darinage Water Use Flow Chart"),C63=$N$5,HYPERLINK("#"&"'Detailed assessment-charts'!B136","Re-use flood water flow chart")),"") -> 
D64: =IFERROR(_xlfn.IFS(C64=$N$1,HYPERLINK("#"&"'Detailed assessment-charts'!B3","Rainwater Harvesting Flow Chart"),C64=$N$2,HYPERLINK("#"&"'Detailed assessment-charts'!B34","Reservoir Flow Chart"),C64=$N$3,HYPERLINK("#"&"'Detailed assessment-charts'!B68","Water Sharing Flow Chart"),C64=$N$4,HYPERLINK("#"&"'Detailed assessment-charts'!B102","Darinage Water Use Flow Chart"),C64=$N$5,HYPERLINK("#"&"'Detailed assessment-charts'!B136","Re-use flood water flow chart")),"") -> 
D65: =IFERROR(_xlfn.IFS(C65=$N$1,HYPERLINK("#"&"'Detailed assessment-charts'!B3","Rainwater Harvesting Flow Chart"),C65=$N$2,HYPERLINK("#"&"'Detailed assessment-charts'!B34","Reservoir Flow Chart"),C65=$N$3,HYPERLINK("#"&"'Detailed assessment-charts'!B68","Water Sharing Flow Chart"),C65=$N$4,HYPERLINK("#"&"'Detailed assessment-charts'!B102","Darinage Water Use Flow Chart"),C65=$N$5,HYPERLINK("#"&"'Detailed assessment-charts'!B136","Re-use flood water flow chart")),"") -> 
D66: =IFERROR(_xlfn.IFS(C66=$N$1,HYPERLINK("#"&"'Detailed assessment-charts'!B3","Rainwater Harvesting Flow Chart"),C66=$N$2,HYPERLINK("#"&"'Detailed assessment-charts'!B34","Reservoir Flow Chart"),C66=$N$3,HYPERLINK("#"&"'Detailed assessment-charts'!B68","Water Sharing Flow Chart"),C66=$N$4,HYPERLINK("#"&"'Detailed assessment-charts'!B102","Darinage Water Use Flow Chart"),C66=$N$5,HYPERLINK("#"&"'Detailed assessment-charts'!B136","Re-use flood water flow chart")),"") -> 
D67: =IFERROR(_xlfn.IFS(C67=$N$1,HYPERLINK("#"&"'Detailed assessment-charts'!B3","Rainwater Harvesting Flow Chart"),C67=$N$2,HYPERLINK("#"&"'Detailed assessment-charts'!B34","Reservoir Flow Chart"),C67=$N$3,HYPERLINK("#"&"'Detailed assessment-charts'!B68","Water Sharing Flow Chart"),C67=$N$4,HYPERLINK("#"&"'Detailed assessment-charts'!B102","Darinage Water Use Flow Chart"),C67=$N$5,HYPERLINK("#"&"'Detailed assessment-charts'!B136","Re-use flood water flow chart")),"") -> 
D68: =IFERROR(_xlfn.IFS(C68=$N$1,HYPERLINK("#"&"'Detailed assessment-charts'!B3","Rainwater Harvesting Flow Chart"),C68=$N$2,HYPERLINK("#"&"'Detailed assessment-charts'!B34","Reservoir Flow Chart"),C68=$N$3,HYPERLINK("#"&"'Detailed assessment-charts'!B68","Water Sharing Flow Chart"),C68=$N$4,HYPERLINK("#"&"'Detailed assessment-charts'!B102","Darinage Water Use Flow Chart"),C68=$N$5,HYPERLINK("#"&"'Detailed assessment-charts'!B136","Re-use flood water flow chart")),"") -> 
D69: =IFERROR(_xlfn.IFS(C69=$N$1,HYPERLINK("#"&"'Detailed assessment-charts'!B3","Rainwater Harvesting Flow Chart"),C69=$N$2,HYPERLINK("#"&"'Detailed assessment-charts'!B34","Reservoir Flow Chart"),C69=$N$3,HYPERLINK("#"&"'Detailed assessment-charts'!B68","Water Sharing Flow Chart"),C69=$N$4,HYPERLINK("#"&"'Detailed assessment-charts'!B102","Darinage Water Use Flow Chart"),C69=$N$5,HYPERLINK("#"&"'Detailed assessment-charts'!B136","Re-use flood water flow chart")),"") -> 
D70: =IFERROR(_xlfn.IFS(C70=$N$1,HYPERLINK("#"&"'Detailed assessment-charts'!B3","Rainwater Harvesting Flow Chart"),C70=$N$2,HYPERLINK("#"&"'Detailed assessment-charts'!B34","Reservoir Flow Chart"),C70=$N$3,HYPERLINK("#"&"'Detailed assessment-charts'!B68","Water Sharing Flow Chart"),C70=$N$4,HYPERLINK("#"&"'Detailed assessment-charts'!B102","Darinage Water Use Flow Chart"),C70=$N$5,HYPERLINK("#"&"'Detailed assessment-charts'!B136","Re-use flood water flow chart")),"") -> 
D71: =IFERROR(_xlfn.IFS(C71=$N$1,HYPERLINK("#"&"'Detailed assessment-charts'!B3","Rainwater Harvesting Flow Chart"),C71=$N$2,HYPERLINK("#"&"'Detailed assessment-charts'!B34","Reservoir Flow Chart"),C71=$N$3,HYPERLINK("#"&"'Detailed assessment-charts'!B68","Water Sharing Flow Chart"),C71=$N$4,HYPERLINK("#"&"'Detailed assessment-charts'!B102","Darinage Water Use Flow Chart"),C71=$N$5,HYPERLINK("#"&"'Detailed assessment-charts'!B136","Re-use flood water flow chart")),"") -> 
D72: =IFERROR(_xlfn.IFS(C72=$N$1,HYPERLINK("#"&"'Detailed assessment-charts'!B3","Rainwater Harvesting Flow Chart"),C72=$N$2,HYPERLINK("#"&"'Detailed assessment-charts'!B34","Reservoir Flow Chart"),C72=$N$3,HYPERLINK("#"&"'Detailed assessment-charts'!B68","Water Sharing Flow Chart"),C72=$N$4,HYPERLINK("#"&"'Detailed assessment-charts'!B102","Darinage Water Use Flow Chart"),C72=$N$5,HYPERLINK("#"&"'Detailed assessment-charts'!B136","Re-use flood water flow chart")),"") -> 
D73: =IFERROR(_xlfn.IFS(C73=$N$1,HYPERLINK("#"&"'Detailed assessment-charts'!B3","Rainwater Harvesting Flow Chart"),C73=$N$2,HYPERLINK("#"&"'Detailed assessment-charts'!B34","Reservoir Flow Chart"),C73=$N$3,HYPERLINK("#"&"'Detailed assessment-charts'!B68","Water Sharing Flow Chart"),C73=$N$4,HYPERLINK("#"&"'Detailed assessment-charts'!B102","Darinage Water Use Flow Chart"),C73=$N$5,HYPERLINK("#"&"'Detailed assessment-charts'!B136","Re-use flood water flow chart")),"") -> 
D74: =IFERROR(_xlfn.IFS(C74=$N$1,HYPERLINK("#"&"'Detailed assessment-charts'!B3","Rainwater Harvesting Flow Chart"),C74=$N$2,HYPERLINK("#"&"'Detailed assessment-charts'!B34","Reservoir Flow Chart"),C74=$N$3,HYPERLINK("#"&"'Detailed assessment-charts'!B68","Water Sharing Flow Chart"),C74=$N$4,HYPERLINK("#"&"'Detailed assessment-charts'!B102","Darinage Water Use Flow Chart"),C74=$N$5,HYPERLINK("#"&"'Detailed assessment-charts'!B136","Re-use flood water flow chart")),"") -> 
D75: =IFERROR(_xlfn.IFS(C75=$N$1,HYPERLINK("#"&"'Detailed assessment-charts'!B3","Rainwater Harvesting Flow Chart"),C75=$N$2,HYPERLINK("#"&"'Detailed assessment-charts'!B34","Reservoir Flow Chart"),C75=$N$3,HYPERLINK("#"&"'Detailed assessment-charts'!B68","Water Sharing Flow Chart"),C75=$N$4,HYPERLINK("#"&"'Detailed assessment-charts'!B102","Darinage Water Use Flow Chart"),C75=$N$5,HYPERLINK("#"&"'Detailed assessment-charts'!B136","Re-use flood water flow chart")),"") -> 
D76: =IFERROR(_xlfn.IFS(C76=$N$1,HYPERLINK("#"&"'Detailed assessment-charts'!B3","Rainwater Harvesting Flow Chart"),C76=$N$2,HYPERLINK("#"&"'Detailed assessment-charts'!B34","Reservoir Flow Chart"),C76=$N$3,HYPERLINK("#"&"'Detailed assessment-charts'!B68","Water Sharing Flow Chart"),C76=$N$4,HYPERLINK("#"&"'Detailed assessment-charts'!B102","Darinage Water Use Flow Chart"),C76=$N$5,HYPERLINK("#"&"'Detailed assessment-charts'!B136","Re-use flood water flow chart")),"") -> 
D77: =IFERROR(_xlfn.IFS(C77=$N$1,HYPERLINK("#"&"'Detailed assessment-charts'!B3","Rainwater Harvesting Flow Chart"),C77=$N$2,HYPERLINK("#"&"'Detailed assessment-charts'!B34","Reservoir Flow Chart"),C77=$N$3,HYPERLINK("#"&"'Detailed assessment-charts'!B68","Water Sharing Flow Chart"),C77=$N$4,HYPERLINK("#"&"'Detailed assessment-charts'!B102","Darinage Water Use Flow Chart"),C77=$N$5,HYPERLINK("#"&"'Detailed assessment-charts'!B136","Re-use flood water flow chart")),"") -> 
D78: =IFERROR(_xlfn.IFS(C78=$N$1,HYPERLINK("#"&"'Detailed assessment-charts'!B3","Rainwater Harvesting Flow Chart"),C78=$N$2,HYPERLINK("#"&"'Detailed assessment-charts'!B34","Reservoir Flow Chart"),C78=$N$3,HYPERLINK("#"&"'Detailed assessment-charts'!B68","Water Sharing Flow Chart"),C78=$N$4,HYPERLINK("#"&"'Detailed assessment-charts'!B102","Darinage Water Use Flow Chart"),C78=$N$5,HYPERLINK("#"&"'Detailed assessment-charts'!B136","Re-use flood water flow chart")),"") -> 
D79: =IFERROR(_xlfn.IFS(C79=$N$1,HYPERLINK("#"&"'Detailed assessment-charts'!B3","Rainwater Harvesting Flow Chart"),C79=$N$2,HYPERLINK("#"&"'Detailed assessment-charts'!B34","Reservoir Flow Chart"),C79=$N$3,HYPERLINK("#"&"'Detailed assessment-charts'!B68","Water Sharing Flow Chart"),C79=$N$4,HYPERLINK("#"&"'Detailed assessment-charts'!B102","Darinage Water Use Flow Chart"),C79=$N$5,HYPERLINK("#"&"'Detailed assessment-charts'!B136","Re-use flood water flow chart")),"") -> 
D80: =IFERROR(_xlfn.IFS(C80=$N$1,HYPERLINK("#"&"'Detailed assessment-charts'!B3","Rainwater Harvesting Flow Chart"),C80=$N$2,HYPERLINK("#"&"'Detailed assessment-charts'!B34","Reservoir Flow Chart"),C80=$N$3,HYPERLINK("#"&"'Detailed assessment-charts'!B68","Water Sharing Flow Chart"),C80=$N$4,HYPERLINK("#"&"'Detailed assessment-charts'!B102","Darinage Water Use Flow Chart"),C80=$N$5,HYPERLINK("#"&"'Detailed assessment-charts'!B136","Re-use flood water flow chart")),"") -> 
D81: =IFERROR(_xlfn.IFS(C81=$N$1,HYPERLINK("#"&"'Detailed assessment-charts'!B3","Rainwater Harvesting Flow Chart"),C81=$N$2,HYPERLINK("#"&"'Detailed assessment-charts'!B34","Reservoir Flow Chart"),C81=$N$3,HYPERLINK("#"&"'Detailed assessment-charts'!B68","Water Sharing Flow Chart"),C81=$N$4,HYPERLINK("#"&"'Detailed assessment-charts'!B102","Darinage Water Use Flow Chart"),C81=$N$5,HYPERLINK("#"&"'Detailed assessment-charts'!B136","Re-use flood water flow chart")),"") -> 
D82: =IFERROR(_xlfn.IFS(C82=$N$1,HYPERLINK("#"&"'Detailed assessment-charts'!B3","Rainwater Harvesting Flow Chart"),C82=$N$2,HYPERLINK("#"&"'Detailed assessment-charts'!B34","Reservoir Flow Chart"),C82=$N$3,HYPERLINK("#"&"'Detailed assessment-charts'!B68","Water Sharing Flow Chart"),C82=$N$4,HYPERLINK("#"&"'Detailed assessment-charts'!B102","Darinage Water Use Flow Chart"),C82=$N$5,HYPERLINK("#"&"'Detailed assessment-charts'!B136","Re-use flood water flow chart")),"") -> 
D83: =IFERROR(_xlfn.IFS(C83=$N$1,HYPERLINK("#"&"'Detailed assessment-charts'!B3","Rainwater Harvesting Flow Chart"),C83=$N$2,HYPERLINK("#"&"'Detailed assessment-charts'!B34","Reservoir Flow Chart"),C83=$N$3,HYPERLINK("#"&"'Detailed assessment-charts'!B68","Water Sharing Flow Chart"),C83=$N$4,HYPERLINK("#"&"'Detailed assessment-charts'!B102","Darinage Water Use Flow Chart"),C83=$N$5,HYPERLINK("#"&"'Detailed assessment-charts'!B136","Re-use flood water flow chart")),"") -> 
D84: =IFERROR(_xlfn.IFS(C84=$N$1,HYPERLINK("#"&"'Detailed assessment-charts'!B3","Rainwater Harvesting Flow Chart"),C84=$N$2,HYPERLINK("#"&"'Detailed assessment-charts'!B34","Reservoir Flow Chart"),C84=$N$3,HYPERLINK("#"&"'Detailed assessment-charts'!B68","Water Sharing Flow Chart"),C84=$N$4,HYPERLINK("#"&"'Detailed assessment-charts'!B102","Darinage Water Use Flow Chart"),C84=$N$5,HYPERLINK("#"&"'Detailed assessment-charts'!B136","Re-use flood water flow chart")),"") -> 
D85: =IFERROR(_xlfn.IFS(C85=$N$1,HYPERLINK("#"&"'Detailed assessment-charts'!B3","Rainwater Harvesting Flow Chart"),C85=$N$2,HYPERLINK("#"&"'Detailed assessment-charts'!B34","Reservoir Flow Chart"),C85=$N$3,HYPERLINK("#"&"'Detailed assessment-charts'!B68","Water Sharing Flow Chart"),C85=$N$4,HYPERLINK("#"&"'Detailed assessment-charts'!B102","Darinage Water Use Flow Chart"),C85=$N$5,HYPERLINK("#"&"'Detailed assessment-charts'!B136","Re-use flood water flow chart")),"") -> 
D86: =IFERROR(_xlfn.IFS(C86=$N$1,HYPERLINK("#"&"'Detailed assessment-charts'!B3","Rainwater Harvesting Flow Chart"),C86=$N$2,HYPERLINK("#"&"'Detailed assessment-charts'!B34","Reservoir Flow Chart"),C86=$N$3,HYPERLINK("#"&"'Detailed assessment-charts'!B68","Water Sharing Flow Chart"),C86=$N$4,HYPERLINK("#"&"'Detailed assessment-charts'!B102","Darinage Water Use Flow Chart"),C86=$N$5,HYPERLINK("#"&"'Detailed assessment-charts'!B136","Re-use flood water flow chart")),"") -> 
D87: =IFERROR(_xlfn.IFS(C87=$N$1,HYPERLINK("#"&"'Detailed assessment-charts'!B3","Rainwater Harvesting Flow Chart"),C87=$N$2,HYPERLINK("#"&"'Detailed assessment-charts'!B34","Reservoir Flow Chart"),C87=$N$3,HYPERLINK("#"&"'Detailed assessment-charts'!B68","Water Sharing Flow Chart"),C87=$N$4,HYPERLINK("#"&"'Detailed assessment-charts'!B102","Darinage Water Use Flow Chart"),C87=$N$5,HYPERLINK("#"&"'Detailed assessment-charts'!B136","Re-use flood water flow chart")),"") -> 
D88: =IFERROR(_xlfn.IFS(C88=$N$1,HYPERLINK("#"&"'Detailed assessment-charts'!B3","Rainwater Harvesting Flow Chart"),C88=$N$2,HYPERLINK("#"&"'Detailed assessment-charts'!B34","Reservoir Flow Chart"),C88=$N$3,HYPERLINK("#"&"'Detailed assessment-charts'!B68","Water Sharing Flow Chart"),C88=$N$4,HYPERLINK("#"&"'Detailed assessment-charts'!B102","Darinage Water Use Flow Chart"),C88=$N$5,HYPERLINK("#"&"'Detailed assessment-charts'!B136","Re-use flood water flow chart")),"") -> 
D89: =IFERROR(_xlfn.IFS(C89=$N$1,HYPERLINK("#"&"'Detailed assessment-charts'!B3","Rainwater Harvesting Flow Chart"),C89=$N$2,HYPERLINK("#"&"'Detailed assessment-charts'!B34","Reservoir Flow Chart"),C89=$N$3,HYPERLINK("#"&"'Detailed assessment-charts'!B68","Water Sharing Flow Chart"),C89=$N$4,HYPERLINK("#"&"'Detailed assessment-charts'!B102","Darinage Water Use Flow Chart"),C89=$N$5,HYPERLINK("#"&"'Detailed assessment-charts'!B136","Re-use flood water flow chart")),"") -> 
D90: =IFERROR(_xlfn.IFS(C90=$N$1,HYPERLINK("#"&"'Detailed assessment-charts'!B3","Rainwater Harvesting Flow Chart"),C90=$N$2,HYPERLINK("#"&"'Detailed assessment-charts'!B34","Reservoir Flow Chart"),C90=$N$3,HYPERLINK("#"&"'Detailed assessment-charts'!B68","Water Sharing Flow Chart"),C90=$N$4,HYPERLINK("#"&"'Detailed assessment-charts'!B102","Darinage Water Use Flow Chart"),C90=$N$5,HYPERLINK("#"&"'Detailed assessment-charts'!B136","Re-use flood water flow chart")),"") -> 
D91: =IFERROR(_xlfn.IFS(C91=$N$1,HYPERLINK("#"&"'Detailed assessment-charts'!B3","Rainwater Harvesting Flow Chart"),C91=$N$2,HYPERLINK("#"&"'Detailed assessment-charts'!B34","Reservoir Flow Chart"),C91=$N$3,HYPERLINK("#"&"'Detailed assessment-charts'!B68","Water Sharing Flow Chart"),C91=$N$4,HYPERLINK("#"&"'Detailed assessment-charts'!B102","Darinage Water Use Flow Chart"),C91=$N$5,HYPERLINK("#"&"'Detailed assessment-charts'!B136","Re-use flood water flow chart")),"") -> 
D92: =IFERROR(_xlfn.IFS(C92=$N$1,HYPERLINK("#"&"'Detailed assessment-charts'!B3","Rainwater Harvesting Flow Chart"),C92=$N$2,HYPERLINK("#"&"'Detailed assessment-charts'!B34","Reservoir Flow Chart"),C92=$N$3,HYPERLINK("#"&"'Detailed assessment-charts'!B68","Water Sharing Flow Chart"),C92=$N$4,HYPERLINK("#"&"'Detailed assessment-charts'!B102","Darinage Water Use Flow Chart"),C92=$N$5,HYPERLINK("#"&"'Detailed assessment-charts'!B136","Re-use flood water flow chart")),"") -> 
D93: =IFERROR(_xlfn.IFS(C93=$N$1,HYPERLINK("#"&"'Detailed assessment-charts'!B3","Rainwater Harvesting Flow Chart"),C93=$N$2,HYPERLINK("#"&"'Detailed assessment-charts'!B34","Reservoir Flow Chart"),C93=$N$3,HYPERLINK("#"&"'Detailed assessment-charts'!B68","Water Sharing Flow Chart"),C93=$N$4,HYPERLINK("#"&"'Detailed assessment-charts'!B102","Darinage Water Use Flow Chart"),C93=$N$5,HYPERLINK("#"&"'Detailed assessment-charts'!B136","Re-use flood water flow chart")),"") -> 
D94: =IFERROR(_xlfn.IFS(C94=$N$1,HYPERLINK("#"&"'Detailed assessment-charts'!B3","Rainwater Harvesting Flow Chart"),C94=$N$2,HYPERLINK("#"&"'Detailed assessment-charts'!B34","Reservoir Flow Chart"),C94=$N$3,HYPERLINK("#"&"'Detailed assessment-charts'!B68","Water Sharing Flow Chart"),C94=$N$4,HYPERLINK("#"&"'Detailed assessment-charts'!B102","Darinage Water Use Flow Chart"),C94=$N$5,HYPERLINK("#"&"'Detailed assessment-charts'!B136","Re-use flood water flow chart")),"") -> 
D95: =IFERROR(_xlfn.IFS(C95=$N$1,HYPERLINK("#"&"'Detailed assessment-charts'!B3","Rainwater Harvesting Flow Chart"),C95=$N$2,HYPERLINK("#"&"'Detailed assessment-charts'!B34","Reservoir Flow Chart"),C95=$N$3,HYPERLINK("#"&"'Detailed assessment-charts'!B68","Water Sharing Flow Chart"),C95=$N$4,HYPERLINK("#"&"'Detailed assessment-charts'!B102","Darinage Water Use Flow Chart"),C95=$N$5,HYPERLINK("#"&"'Detailed assessment-charts'!B136","Re-use flood water flow chart")),"") -> 
D96: =IFERROR(_xlfn.IFS(C96=$N$1,HYPERLINK("#"&"'Detailed assessment-charts'!B3","Rainwater Harvesting Flow Chart"),C96=$N$2,HYPERLINK("#"&"'Detailed assessment-charts'!B34","Reservoir Flow Chart"),C96=$N$3,HYPERLINK("#"&"'Detailed assessment-charts'!B68","Water Sharing Flow Chart"),C96=$N$4,HYPERLINK("#"&"'Detailed assessment-charts'!B102","Darinage Water Use Flow Chart"),C96=$N$5,HYPERLINK("#"&"'Detailed assessment-charts'!B136","Re-use flood water flow chart")),"") -> 
D97: =IFERROR(_xlfn.IFS(C97=$N$1,HYPERLINK("#"&"'Detailed assessment-charts'!B3","Rainwater Harvesting Flow Chart"),C97=$N$2,HYPERLINK("#"&"'Detailed assessment-charts'!B34","Reservoir Flow Chart"),C97=$N$3,HYPERLINK("#"&"'Detailed assessment-charts'!B68","Water Sharing Flow Chart"),C97=$N$4,HYPERLINK("#"&"'Detailed assessment-charts'!B102","Darinage Water Use Flow Chart"),C97=$N$5,HYPERLINK("#"&"'Detailed assessment-charts'!B136","Re-use flood water flow chart")),"") -> 
D98: =IFERROR(_xlfn.IFS(C98=$N$1,HYPERLINK("#"&"'Detailed assessment-charts'!B3","Rainwater Harvesting Flow Chart"),C98=$N$2,HYPERLINK("#"&"'Detailed assessment-charts'!B34","Reservoir Flow Chart"),C98=$N$3,HYPERLINK("#"&"'Detailed assessment-charts'!B68","Water Sharing Flow Chart"),C98=$N$4,HYPERLINK("#"&"'Detailed assessment-charts'!B102","Darinage Water Use Flow Chart"),C98=$N$5,HYPERLINK("#"&"'Detailed assessment-charts'!B136","Re-use flood water flow chart")),"") -> 
D99: =IFERROR(_xlfn.IFS(C99=$N$1,HYPERLINK("#"&"'Detailed assessment-charts'!B3","Rainwater Harvesting Flow Chart"),C99=$N$2,HYPERLINK("#"&"'Detailed assessment-charts'!B34","Reservoir Flow Chart"),C99=$N$3,HYPERLINK("#"&"'Detailed assessment-charts'!B68","Water Sharing Flow Chart"),C99=$N$4,HYPERLINK("#"&"'Detailed assessment-charts'!B102","Darinage Water Use Flow Chart"),C99=$N$5,HYPERLINK("#"&"'Detailed assessment-charts'!B136","Re-use flood water flow chart")),"") -> 
D100: =IFERROR(_xlfn.IFS(C100=$N$1,HYPERLINK("#"&"'Detailed assessment-charts'!B3","Rainwater Harvesting Flow Chart"),C100=$N$2,HYPERLINK("#"&"'Detailed assessment-charts'!B34","Reservoir Flow Chart"),C100=$N$3,HYPERLINK("#"&"'Detailed assessment-charts'!B68","Water Sharing Flow Chart"),C100=$N$4,HYPERLINK("#"&"'Detailed assessment-charts'!B102","Darinage Water Use Flow Chart"),C100=$N$5,HYPERLINK("#"&"'Detailed assessment-charts'!B136","Re-use flood water flow chart")),"") -> 
D101: =IFERROR(_xlfn.IFS(C101=$N$1,HYPERLINK("#"&"'Detailed assessment-charts'!B3","Rainwater Harvesting Flow Chart"),C101=$N$2,HYPERLINK("#"&"'Detailed assessment-charts'!B34","Reservoir Flow Chart"),C101=$N$3,HYPERLINK("#"&"'Detailed assessment-charts'!B68","Water Sharing Flow Chart"),C101=$N$4,HYPERLINK("#"&"'Detailed assessment-charts'!B102","Darinage Water Use Flow Chart"),C101=$N$5,HYPERLINK("#"&"'Detailed assessment-charts'!B136","Re-use flood water flow chart")),"") -> 
D102: =IFERROR(_xlfn.IFS(C102=$N$1,HYPERLINK("#"&"'Detailed assessment-charts'!B3","Rainwater Harvesting Flow Chart"),C102=$N$2,HYPERLINK("#"&"'Detailed assessment-charts'!B34","Reservoir Flow Chart"),C102=$N$3,HYPERLINK("#"&"'Detailed assessment-charts'!B68","Water Sharing Flow Chart"),C102=$N$4,HYPERLINK("#"&"'Detailed assessment-charts'!B102","Darinage Water Use Flow Chart"),C102=$N$5,HYPERLINK("#"&"'Detailed assessment-charts'!B136","Re-use flood water flow chart")),"") -> 
D103: =IFERROR(_xlfn.IFS(C103=$N$1,HYPERLINK("#"&"'Detailed assessment-charts'!B3","Rainwater Harvesting Flow Chart"),C103=$N$2,HYPERLINK("#"&"'Detailed assessment-charts'!B34","Reservoir Flow Chart"),C103=$N$3,HYPERLINK("#"&"'Detailed assessment-charts'!B68","Water Sharing Flow Chart"),C103=$N$4,HYPERLINK("#"&"'Detailed assessment-charts'!B102","Darinage Water Use Flow Chart"),C103=$N$5,HYPERLINK("#"&"'Detailed assessment-charts'!B136","Re-use flood water flow chart")),"") -> 
D104: =IFERROR(_xlfn.IFS(C104=$N$1,HYPERLINK("#"&"'Detailed assessment-charts'!B3","Rainwater Harvesting Flow Chart"),C104=$N$2,HYPERLINK("#"&"'Detailed assessment-charts'!B34","Reservoir Flow Chart"),C104=$N$3,HYPERLINK("#"&"'Detailed assessment-charts'!B68","Water Sharing Flow Chart"),C104=$N$4,HYPERLINK("#"&"'Detailed assessment-charts'!B102","Darinage Water Use Flow Chart"),C104=$N$5,HYPERLINK("#"&"'Detailed assessment-charts'!B136","Re-use flood water flow chart")),"") -> 
D105: =IFERROR(_xlfn.IFS(C105=$N$1,HYPERLINK("#"&"'Detailed assessment-charts'!B3","Rainwater Harvesting Flow Chart"),C105=$N$2,HYPERLINK("#"&"'Detailed assessment-charts'!B34","Reservoir Flow Chart"),C105=$N$3,HYPERLINK("#"&"'Detailed assessment-charts'!B68","Water Sharing Flow Chart"),C105=$N$4,HYPERLINK("#"&"'Detailed assessment-charts'!B102","Darinage Water Use Flow Chart"),C105=$N$5,HYPERLINK("#"&"'Detailed assessment-charts'!B136","Re-use flood water flow chart")),"") -> 
D106: =IFERROR(_xlfn.IFS(C106=$N$1,HYPERLINK("#"&"'Detailed assessment-charts'!B3","Rainwater Harvesting Flow Chart"),C106=$N$2,HYPERLINK("#"&"'Detailed assessment-charts'!B34","Reservoir Flow Chart"),C106=$N$3,HYPERLINK("#"&"'Detailed assessment-charts'!B68","Water Sharing Flow Chart"),C106=$N$4,HYPERLINK("#"&"'Detailed assessment-charts'!B102","Darinage Water Use Flow Chart"),C106=$N$5,HYPERLINK("#"&"'Detailed assessment-charts'!B136","Re-use flood water flow chart")),"") -> 
D107: =IFERROR(_xlfn.IFS(C107=$N$1,HYPERLINK("#"&"'Detailed assessment-charts'!B3","Rainwater Harvesting Flow Chart"),C107=$N$2,HYPERLINK("#"&"'Detailed assessment-charts'!B34","Reservoir Flow Chart"),C107=$N$3,HYPERLINK("#"&"'Detailed assessment-charts'!B68","Water Sharing Flow Chart"),C107=$N$4,HYPERLINK("#"&"'Detailed assessment-charts'!B102","Darinage Water Use Flow Chart"),C107=$N$5,HYPERLINK("#"&"'Detailed assessment-charts'!B136","Re-use flood water flow chart")),"") -> 
D108: =IFERROR(_xlfn.IFS(C108=$N$1,HYPERLINK("#"&"'Detailed assessment-charts'!B3","Rainwater Harvesting Flow Chart"),C108=$N$2,HYPERLINK("#"&"'Detailed assessment-charts'!B34","Reservoir Flow Chart"),C108=$N$3,HYPERLINK("#"&"'Detailed assessment-charts'!B68","Water Sharing Flow Chart"),C108=$N$4,HYPERLINK("#"&"'Detailed assessment-charts'!B102","Darinage Water Use Flow Chart"),C108=$N$5,HYPERLINK("#"&"'Detailed assessment-charts'!B136","Re-use flood water flow chart")),"") -> 
D109: =IFERROR(_xlfn.IFS(C109=$N$1,HYPERLINK("#"&"'Detailed assessment-charts'!B3","Rainwater Harvesting Flow Chart"),C109=$N$2,HYPERLINK("#"&"'Detailed assessment-charts'!B34","Reservoir Flow Chart"),C109=$N$3,HYPERLINK("#"&"'Detailed assessment-charts'!B68","Water Sharing Flow Chart"),C109=$N$4,HYPERLINK("#"&"'Detailed assessment-charts'!B102","Darinage Water Use Flow Chart"),C109=$N$5,HYPERLINK("#"&"'Detailed assessment-charts'!B136","Re-use flood water flow chart")),"") -> 
D110: =IFERROR(_xlfn.IFS(C110=$N$1,HYPERLINK("#"&"'Detailed assessment-charts'!B3","Rainwater Harvesting Flow Chart"),C110=$N$2,HYPERLINK("#"&"'Detailed assessment-charts'!B34","Reservoir Flow Chart"),C110=$N$3,HYPERLINK("#"&"'Detailed assessment-charts'!B68","Water Sharing Flow Chart"),C110=$N$4,HYPERLINK("#"&"'Detailed assessment-charts'!B102","Darinage Water Use Flow Chart"),C110=$N$5,HYPERLINK("#"&"'Detailed assessment-charts'!B136","Re-use flood water flow chart")),"") -> 
D111: =IFERROR(_xlfn.IFS(C111=$N$1,HYPERLINK("#"&"'Detailed assessment-charts'!B3","Rainwater Harvesting Flow Chart"),C111=$N$2,HYPERLINK("#"&"'Detailed assessment-charts'!B34","Reservoir Flow Chart"),C111=$N$3,HYPERLINK("#"&"'Detailed assessment-charts'!B68","Water Sharing Flow Chart"),C111=$N$4,HYPERLINK("#"&"'Detailed assessment-charts'!B102","Darinage Water Use Flow Chart"),C111=$N$5,HYPERLINK("#"&"'Detailed assessment-charts'!B136","Re-use flood water flow chart")),"") -> 
D112: =IFERROR(_xlfn.IFS(C112=$N$1,HYPERLINK("#"&"'Detailed assessment-charts'!B3","Rainwater Harvesting Flow Chart"),C112=$N$2,HYPERLINK("#"&"'Detailed assessment-charts'!B34","Reservoir Flow Chart"),C112=$N$3,HYPERLINK("#"&"'Detailed assessment-charts'!B68","Water Sharing Flow Chart"),C112=$N$4,HYPERLINK("#"&"'Detailed assessment-charts'!B102","Darinage Water Use Flow Chart"),C112=$N$5,HYPERLINK("#"&"'Detailed assessment-charts'!B136","Re-use flood water flow chart")),"") -> 
D113: =IFERROR(_xlfn.IFS(C113=$N$1,HYPERLINK("#"&"'Detailed assessment-charts'!B3","Rainwater Harvesting Flow Chart"),C113=$N$2,HYPERLINK("#"&"'Detailed assessment-charts'!B34","Reservoir Flow Chart"),C113=$N$3,HYPERLINK("#"&"'Detailed assessment-charts'!B68","Water Sharing Flow Chart"),C113=$N$4,HYPERLINK("#"&"'Detailed assessment-charts'!B102","Darinage Water Use Flow Chart"),C113=$N$5,HYPERLINK("#"&"'Detailed assessment-charts'!B136","Re-use flood water flow chart")),"") -> 
D114: =IFERROR(_xlfn.IFS(C114=$N$1,HYPERLINK("#"&"'Detailed assessment-charts'!B3","Rainwater Harvesting Flow Chart"),C114=$N$2,HYPERLINK("#"&"'Detailed assessment-charts'!B34","Reservoir Flow Chart"),C114=$N$3,HYPERLINK("#"&"'Detailed assessment-charts'!B68","Water Sharing Flow Chart"),C114=$N$4,HYPERLINK("#"&"'Detailed assessment-charts'!B102","Darinage Water Use Flow Chart"),C114=$N$5,HYPERLINK("#"&"'Detailed assessment-charts'!B136","Re-use flood water flow chart")),"") -> 
D115: =IFERROR(_xlfn.IFS(C115=$N$1,HYPERLINK("#"&"'Detailed assessment-charts'!B3","Rainwater Harvesting Flow Chart"),C115=$N$2,HYPERLINK("#"&"'Detailed assessment-charts'!B34","Reservoir Flow Chart"),C115=$N$3,HYPERLINK("#"&"'Detailed assessment-charts'!B68","Water Sharing Flow Chart"),C115=$N$4,HYPERLINK("#"&"'Detailed assessment-charts'!B102","Darinage Water Use Flow Chart"),C115=$N$5,HYPERLINK("#"&"'Detailed assessment-charts'!B136","Re-use flood water flow chart")),"") -> 
D116: =IFERROR(_xlfn.IFS(C116=$N$1,HYPERLINK("#"&"'Detailed assessment-charts'!B3","Rainwater Harvesting Flow Chart"),C116=$N$2,HYPERLINK("#"&"'Detailed assessment-charts'!B34","Reservoir Flow Chart"),C116=$N$3,HYPERLINK("#"&"'Detailed assessment-charts'!B68","Water Sharing Flow Chart"),C116=$N$4,HYPERLINK("#"&"'Detailed assessment-charts'!B102","Darinage Water Use Flow Chart"),C116=$N$5,HYPERLINK("#"&"'Detailed assessment-charts'!B136","Re-use flood water flow chart")),"") -> 
D117: =IFERROR(_xlfn.IFS(C117=$N$1,HYPERLINK("#"&"'Detailed assessment-charts'!B3","Rainwater Harvesting Flow Chart"),C117=$N$2,HYPERLINK("#"&"'Detailed assessment-charts'!B34","Reservoir Flow Chart"),C117=$N$3,HYPERLINK("#"&"'Detailed assessment-charts'!B68","Water Sharing Flow Chart"),C117=$N$4,HYPERLINK("#"&"'Detailed assessment-charts'!B102","Darinage Water Use Flow Chart"),C117=$N$5,HYPERLINK("#"&"'Detailed assessment-charts'!B136","Re-use flood water flow chart")),"") -> 
D118: =IFERROR(_xlfn.IFS(C118=$N$1,HYPERLINK("#"&"'Detailed assessment-charts'!B3","Rainwater Harvesting Flow Chart"),C118=$N$2,HYPERLINK("#"&"'Detailed assessment-charts'!B34","Reservoir Flow Chart"),C118=$N$3,HYPERLINK("#"&"'Detailed assessment-charts'!B68","Water Sharing Flow Chart"),C118=$N$4,HYPERLINK("#"&"'Detailed assessment-charts'!B102","Darinage Water Use Flow Chart"),C118=$N$5,HYPERLINK("#"&"'Detailed assessment-charts'!B136","Re-use flood water flow chart")),"") -> 
D119: =IFERROR(_xlfn.IFS(C119=$N$1,HYPERLINK("#"&"'Detailed assessment-charts'!B3","Rainwater Harvesting Flow Chart"),C119=$N$2,HYPERLINK("#"&"'Detailed assessment-charts'!B34","Reservoir Flow Chart"),C119=$N$3,HYPERLINK("#"&"'Detailed assessment-charts'!B68","Water Sharing Flow Chart"),C119=$N$4,HYPERLINK("#"&"'Detailed assessment-charts'!B102","Darinage Water Use Flow Chart"),C119=$N$5,HYPERLINK("#"&"'Detailed assessment-charts'!B136","Re-use flood water flow chart")),"") -> 
D120: =IFERROR(_xlfn.IFS(C120=$N$1,HYPERLINK("#"&"'Detailed assessment-charts'!B3","Rainwater Harvesting Flow Chart"),C120=$N$2,HYPERLINK("#"&"'Detailed assessment-charts'!B34","Reservoir Flow Chart"),C120=$N$3,HYPERLINK("#"&"'Detailed assessment-charts'!B68","Water Sharing Flow Chart"),C120=$N$4,HYPERLINK("#"&"'Detailed assessment-charts'!B102","Darinage Water Use Flow Chart"),C120=$N$5,HYPERLINK("#"&"'Detailed assessment-charts'!B136","Re-use flood water flow chart")),"") -> 
D121: =IFERROR(_xlfn.IFS(C121=$N$1,HYPERLINK("#"&"'Detailed assessment-charts'!B3","Rainwater Harvesting Flow Chart"),C121=$N$2,HYPERLINK("#"&"'Detailed assessment-charts'!B34","Reservoir Flow Chart"),C121=$N$3,HYPERLINK("#"&"'Detailed assessment-charts'!B68","Water Sharing Flow Chart"),C121=$N$4,HYPERLINK("#"&"'Detailed assessment-charts'!B102","Darinage Water Use Flow Chart"),C121=$N$5,HYPERLINK("#"&"'Detailed assessment-charts'!B136","Re-use flood water flow chart")),"") -> 
D122: =IFERROR(_xlfn.IFS(C122=$N$1,HYPERLINK("#"&"'Detailed assessment-charts'!B3","Rainwater Harvesting Flow Chart"),C122=$N$2,HYPERLINK("#"&"'Detailed assessment-charts'!B34","Reservoir Flow Chart"),C122=$N$3,HYPERLINK("#"&"'Detailed assessment-charts'!B68","Water Sharing Flow Chart"),C122=$N$4,HYPERLINK("#"&"'Detailed assessment-charts'!B102","Darinage Water Use Flow Chart"),C122=$N$5,HYPERLINK("#"&"'Detailed assessment-charts'!B136","Re-use flood water flow chart")),"") -> 
D123: =IFERROR(_xlfn.IFS(C123=$N$1,HYPERLINK("#"&"'Detailed assessment-charts'!B3","Rainwater Harvesting Flow Chart"),C123=$N$2,HYPERLINK("#"&"'Detailed assessment-charts'!B34","Reservoir Flow Chart"),C123=$N$3,HYPERLINK("#"&"'Detailed assessment-charts'!B68","Water Sharing Flow Chart"),C123=$N$4,HYPERLINK("#"&"'Detailed assessment-charts'!B102","Darinage Water Use Flow Chart"),C123=$N$5,HYPERLINK("#"&"'Detailed assessment-charts'!B136","Re-use flood water flow chart")),"") -> 
D124: =IFERROR(_xlfn.IFS(C124=$N$1,HYPERLINK("#"&"'Detailed assessment-charts'!B3","Rainwater Harvesting Flow Chart"),C124=$N$2,HYPERLINK("#"&"'Detailed assessment-charts'!B34","Reservoir Flow Chart"),C124=$N$3,HYPERLINK("#"&"'Detailed assessment-charts'!B68","Water Sharing Flow Chart"),C124=$N$4,HYPERLINK("#"&"'Detailed assessment-charts'!B102","Darinage Water Use Flow Chart"),C124=$N$5,HYPERLINK("#"&"'Detailed assessment-charts'!B136","Re-use flood water flow chart")),"") -> 
D125: =IFERROR(_xlfn.IFS(C125=$N$1,HYPERLINK("#"&"'Detailed assessment-charts'!B3","Rainwater Harvesting Flow Chart"),C125=$N$2,HYPERLINK("#"&"'Detailed assessment-charts'!B34","Reservoir Flow Chart"),C125=$N$3,HYPERLINK("#"&"'Detailed assessment-charts'!B68","Water Sharing Flow Chart"),C125=$N$4,HYPERLINK("#"&"'Detailed assessment-charts'!B102","Darinage Water Use Flow Chart"),C125=$N$5,HYPERLINK("#"&"'Detailed assessment-charts'!B136","Re-use flood water flow chart")),"") -> 
D126: =IFERROR(_xlfn.IFS(C126=$N$1,HYPERLINK("#"&"'Detailed assessment-charts'!B3","Rainwater Harvesting Flow Chart"),C126=$N$2,HYPERLINK("#"&"'Detailed assessment-charts'!B34","Reservoir Flow Chart"),C126=$N$3,HYPERLINK("#"&"'Detailed assessment-charts'!B68","Water Sharing Flow Chart"),C126=$N$4,HYPERLINK("#"&"'Detailed assessment-charts'!B102","Darinage Water Use Flow Chart"),C126=$N$5,HYPERLINK("#"&"'Detailed assessment-charts'!B136","Re-use flood water flow chart")),"") -> 
D127: =IFERROR(_xlfn.IFS(C127=$N$1,HYPERLINK("#"&"'Detailed assessment-charts'!B3","Rainwater Harvesting Flow Chart"),C127=$N$2,HYPERLINK("#"&"'Detailed assessment-charts'!B34","Reservoir Flow Chart"),C127=$N$3,HYPERLINK("#"&"'Detailed assessment-charts'!B68","Water Sharing Flow Chart"),C127=$N$4,HYPERLINK("#"&"'Detailed assessment-charts'!B102","Darinage Water Use Flow Chart"),C127=$N$5,HYPERLINK("#"&"'Detailed assessment-charts'!B136","Re-use flood water flow chart")),"") -> 
D128: =IFERROR(_xlfn.IFS(C128=$N$1,HYPERLINK("#"&"'Detailed assessment-charts'!B3","Rainwater Harvesting Flow Chart"),C128=$N$2,HYPERLINK("#"&"'Detailed assessment-charts'!B34","Reservoir Flow Chart"),C128=$N$3,HYPERLINK("#"&"'Detailed assessment-charts'!B68","Water Sharing Flow Chart"),C128=$N$4,HYPERLINK("#"&"'Detailed assessment-charts'!B102","Darinage Water Use Flow Chart"),C128=$N$5,HYPERLINK("#"&"'Detailed assessment-charts'!B136","Re-use flood water flow chart")),"") -> 
D129: =IFERROR(_xlfn.IFS(C129=$N$1,HYPERLINK("#"&"'Detailed assessment-charts'!B3","Rainwater Harvesting Flow Chart"),C129=$N$2,HYPERLINK("#"&"'Detailed assessment-charts'!B34","Reservoir Flow Chart"),C129=$N$3,HYPERLINK("#"&"'Detailed assessment-charts'!B68","Water Sharing Flow Chart"),C129=$N$4,HYPERLINK("#"&"'Detailed assessment-charts'!B102","Darinage Water Use Flow Chart"),C129=$N$5,HYPERLINK("#"&"'Detailed assessment-charts'!B136","Re-use flood water flow chart")),"") -> 
D130: =IFERROR(_xlfn.IFS(C130=$N$1,HYPERLINK("#"&"'Detailed assessment-charts'!B3","Rainwater Harvesting Flow Chart"),C130=$N$2,HYPERLINK("#"&"'Detailed assessment-charts'!B34","Reservoir Flow Chart"),C130=$N$3,HYPERLINK("#"&"'Detailed assessment-charts'!B68","Water Sharing Flow Chart"),C130=$N$4,HYPERLINK("#"&"'Detailed assessment-charts'!B102","Darinage Water Use Flow Chart"),C130=$N$5,HYPERLINK("#"&"'Detailed assessment-charts'!B136","Re-use flood water flow chart")),"") -> 
D131: =IFERROR(_xlfn.IFS(C131=$N$1,HYPERLINK("#"&"'Detailed assessment-charts'!B3","Rainwater Harvesting Flow Chart"),C131=$N$2,HYPERLINK("#"&"'Detailed assessment-charts'!B34","Reservoir Flow Chart"),C131=$N$3,HYPERLINK("#"&"'Detailed assessment-charts'!B68","Water Sharing Flow Chart"),C131=$N$4,HYPERLINK("#"&"'Detailed assessment-charts'!B102","Darinage Water Use Flow Chart"),C131=$N$5,HYPERLINK("#"&"'Detailed assessment-charts'!B136","Re-use flood water flow chart")),"") -> 
D132: =IFERROR(_xlfn.IFS(C132=$N$1,HYPERLINK("#"&"'Detailed assessment-charts'!B3","Rainwater Harvesting Flow Chart"),C132=$N$2,HYPERLINK("#"&"'Detailed assessment-charts'!B34","Reservoir Flow Chart"),C132=$N$3,HYPERLINK("#"&"'Detailed assessment-charts'!B68","Water Sharing Flow Chart"),C132=$N$4,HYPERLINK("#"&"'Detailed assessment-charts'!B102","Darinage Water Use Flow Chart"),C132=$N$5,HYPERLINK("#"&"'Detailed assessment-charts'!B136","Re-use flood water flow chart")),"") -> 
D133: =IFERROR(_xlfn.IFS(C133=$N$1,HYPERLINK("#"&"'Detailed assessment-charts'!B3","Rainwater Harvesting Flow Chart"),C133=$N$2,HYPERLINK("#"&"'Detailed assessment-charts'!B34","Reservoir Flow Chart"),C133=$N$3,HYPERLINK("#"&"'Detailed assessment-charts'!B68","Water Sharing Flow Chart"),C133=$N$4,HYPERLINK("#"&"'Detailed assessment-charts'!B102","Darinage Water Use Flow Chart"),C133=$N$5,HYPERLINK("#"&"'Detailed assessment-charts'!B136","Re-use flood water flow chart")),"") -> 
D134: =IFERROR(_xlfn.IFS(C134=$N$1,HYPERLINK("#"&"'Detailed assessment-charts'!B3","Rainwater Harvesting Flow Chart"),C134=$N$2,HYPERLINK("#"&"'Detailed assessment-charts'!B34","Reservoir Flow Chart"),C134=$N$3,HYPERLINK("#"&"'Detailed assessment-charts'!B68","Water Sharing Flow Chart"),C134=$N$4,HYPERLINK("#"&"'Detailed assessment-charts'!B102","Darinage Water Use Flow Chart"),C134=$N$5,HYPERLINK("#"&"'Detailed assessment-charts'!B136","Re-use flood water flow chart")),"") -> 
D135: =IFERROR(_xlfn.IFS(C135=$N$1,HYPERLINK("#"&"'Detailed assessment-charts'!B3","Rainwater Harvesting Flow Chart"),C135=$N$2,HYPERLINK("#"&"'Detailed assessment-charts'!B34","Reservoir Flow Chart"),C135=$N$3,HYPERLINK("#"&"'Detailed assessment-charts'!B68","Water Sharing Flow Chart"),C135=$N$4,HYPERLINK("#"&"'Detailed assessment-charts'!B102","Darinage Water Use Flow Chart"),C135=$N$5,HYPERLINK("#"&"'Detailed assessment-charts'!B136","Re-use flood water flow chart")),"") -> 
D136: =IFERROR(_xlfn.IFS(C136=$N$1,HYPERLINK("#"&"'Detailed assessment-charts'!B3","Rainwater Harvesting Flow Chart"),C136=$N$2,HYPERLINK("#"&"'Detailed assessment-charts'!B34","Reservoir Flow Chart"),C136=$N$3,HYPERLINK("#"&"'Detailed assessment-charts'!B68","Water Sharing Flow Chart"),C136=$N$4,HYPERLINK("#"&"'Detailed assessment-charts'!B102","Darinage Water Use Flow Chart"),C136=$N$5,HYPERLINK("#"&"'Detailed assessment-charts'!B136","Re-use flood water flow chart")),"") -> 
D137: =IFERROR(_xlfn.IFS(C137=$N$1,HYPERLINK("#"&"'Detailed assessment-charts'!B3","Rainwater Harvesting Flow Chart"),C137=$N$2,HYPERLINK("#"&"'Detailed assessment-charts'!B34","Reservoir Flow Chart"),C137=$N$3,HYPERLINK("#"&"'Detailed assessment-charts'!B68","Water Sharing Flow Chart"),C137=$N$4,HYPERLINK("#"&"'Detailed assessment-charts'!B102","Darinage Water Use Flow Chart"),C137=$N$5,HYPERLINK("#"&"'Detailed assessment-charts'!B136","Re-use flood water flow chart")),"") -> 
D138: =IFERROR(_xlfn.IFS(C138=$N$1,HYPERLINK("#"&"'Detailed assessment-charts'!B3","Rainwater Harvesting Flow Chart"),C138=$N$2,HYPERLINK("#"&"'Detailed assessment-charts'!B34","Reservoir Flow Chart"),C138=$N$3,HYPERLINK("#"&"'Detailed assessment-charts'!B68","Water Sharing Flow Chart"),C138=$N$4,HYPERLINK("#"&"'Detailed assessment-charts'!B102","Darinage Water Use Flow Chart"),C138=$N$5,HYPERLINK("#"&"'Detailed assessment-charts'!B136","Re-use flood water flow chart")),"") -> 
D139: =IFERROR(_xlfn.IFS(C139=$N$1,HYPERLINK("#"&"'Detailed assessment-charts'!B3","Rainwater Harvesting Flow Chart"),C139=$N$2,HYPERLINK("#"&"'Detailed assessment-charts'!B34","Reservoir Flow Chart"),C139=$N$3,HYPERLINK("#"&"'Detailed assessment-charts'!B68","Water Sharing Flow Chart"),C139=$N$4,HYPERLINK("#"&"'Detailed assessment-charts'!B102","Darinage Water Use Flow Chart"),C139=$N$5,HYPERLINK("#"&"'Detailed assessment-charts'!B136","Re-use flood water flow chart")),"") -> 
D140: =IFERROR(_xlfn.IFS(C140=$N$1,HYPERLINK("#"&"'Detailed assessment-charts'!B3","Rainwater Harvesting Flow Chart"),C140=$N$2,HYPERLINK("#"&"'Detailed assessment-charts'!B34","Reservoir Flow Chart"),C140=$N$3,HYPERLINK("#"&"'Detailed assessment-charts'!B68","Water Sharing Flow Chart"),C140=$N$4,HYPERLINK("#"&"'Detailed assessment-charts'!B102","Darinage Water Use Flow Chart"),C140=$N$5,HYPERLINK("#"&"'Detailed assessment-charts'!B136","Re-use flood water flow chart")),"") -> 
D141: =IFERROR(_xlfn.IFS(C141=$N$1,HYPERLINK("#"&"'Detailed assessment-charts'!B3","Rainwater Harvesting Flow Chart"),C141=$N$2,HYPERLINK("#"&"'Detailed assessment-charts'!B34","Reservoir Flow Chart"),C141=$N$3,HYPERLINK("#"&"'Detailed assessment-charts'!B68","Water Sharing Flow Chart"),C141=$N$4,HYPERLINK("#"&"'Detailed assessment-charts'!B102","Darinage Water Use Flow Chart"),C141=$N$5,HYPERLINK("#"&"'Detailed assessment-charts'!B136","Re-use flood water flow chart")),"") -> 
D142: =IFERROR(_xlfn.IFS(C142=$N$1,HYPERLINK("#"&"'Detailed assessment-charts'!B3","Rainwater Harvesting Flow Chart"),C142=$N$2,HYPERLINK("#"&"'Detailed assessment-charts'!B34","Reservoir Flow Chart"),C142=$N$3,HYPERLINK("#"&"'Detailed assessment-charts'!B68","Water Sharing Flow Chart"),C142=$N$4,HYPERLINK("#"&"'Detailed assessment-charts'!B102","Darinage Water Use Flow Chart"),C142=$N$5,HYPERLINK("#"&"'Detailed assessment-charts'!B136","Re-use flood water flow chart")),"") -> 
D143: =IFERROR(_xlfn.IFS(C143=$N$1,HYPERLINK("#"&"'Detailed assessment-charts'!B3","Rainwater Harvesting Flow Chart"),C143=$N$2,HYPERLINK("#"&"'Detailed assessment-charts'!B34","Reservoir Flow Chart"),C143=$N$3,HYPERLINK("#"&"'Detailed assessment-charts'!B68","Water Sharing Flow Chart"),C143=$N$4,HYPERLINK("#"&"'Detailed assessment-charts'!B102","Darinage Water Use Flow Chart"),C143=$N$5,HYPERLINK("#"&"'Detailed assessment-charts'!B136","Re-use flood water flow chart")),"") -> 
D144: =IFERROR(_xlfn.IFS(C144=$N$1,HYPERLINK("#"&"'Detailed assessment-charts'!B3","Rainwater Harvesting Flow Chart"),C144=$N$2,HYPERLINK("#"&"'Detailed assessment-charts'!B34","Reservoir Flow Chart"),C144=$N$3,HYPERLINK("#"&"'Detailed assessment-charts'!B68","Water Sharing Flow Chart"),C144=$N$4,HYPERLINK("#"&"'Detailed assessment-charts'!B102","Darinage Water Use Flow Chart"),C144=$N$5,HYPERLINK("#"&"'Detailed assessment-charts'!B136","Re-use flood water flow chart")),"") -> 
D145: =IFERROR(_xlfn.IFS(C145=$N$1,HYPERLINK("#"&"'Detailed assessment-charts'!B3","Rainwater Harvesting Flow Chart"),C145=$N$2,HYPERLINK("#"&"'Detailed assessment-charts'!B34","Reservoir Flow Chart"),C145=$N$3,HYPERLINK("#"&"'Detailed assessment-charts'!B68","Water Sharing Flow Chart"),C145=$N$4,HYPERLINK("#"&"'Detailed assessment-charts'!B102","Darinage Water Use Flow Chart"),C145=$N$5,HYPERLINK("#"&"'Detailed assessment-charts'!B136","Re-use flood water flow chart")),"") -> 
D146: =IFERROR(_xlfn.IFS(C146=$N$1,HYPERLINK("#"&"'Detailed assessment-charts'!B3","Rainwater Harvesting Flow Chart"),C146=$N$2,HYPERLINK("#"&"'Detailed assessment-charts'!B34","Reservoir Flow Chart"),C146=$N$3,HYPERLINK("#"&"'Detailed assessment-charts'!B68","Water Sharing Flow Chart"),C146=$N$4,HYPERLINK("#"&"'Detailed assessment-charts'!B102","Darinage Water Use Flow Chart"),C146=$N$5,HYPERLINK("#"&"'Detailed assessment-charts'!B136","Re-use flood water flow chart")),"") -> 
D147: =IFERROR(_xlfn.IFS(C147=$N$1,HYPERLINK("#"&"'Detailed assessment-charts'!B3","Rainwater Harvesting Flow Chart"),C147=$N$2,HYPERLINK("#"&"'Detailed assessment-charts'!B34","Reservoir Flow Chart"),C147=$N$3,HYPERLINK("#"&"'Detailed assessment-charts'!B68","Water Sharing Flow Chart"),C147=$N$4,HYPERLINK("#"&"'Detailed assessment-charts'!B102","Darinage Water Use Flow Chart"),C147=$N$5,HYPERLINK("#"&"'Detailed assessment-charts'!B136","Re-use flood water flow chart")),"") -> 
D148: =IFERROR(_xlfn.IFS(C148=$N$1,HYPERLINK("#"&"'Detailed assessment-charts'!B3","Rainwater Harvesting Flow Chart"),C148=$N$2,HYPERLINK("#"&"'Detailed assessment-charts'!B34","Reservoir Flow Chart"),C148=$N$3,HYPERLINK("#"&"'Detailed assessment-charts'!B68","Water Sharing Flow Chart"),C148=$N$4,HYPERLINK("#"&"'Detailed assessment-charts'!B102","Darinage Water Use Flow Chart"),C148=$N$5,HYPERLINK("#"&"'Detailed assessment-charts'!B136","Re-use flood water flow chart")),"") -> 
D149: =IFERROR(_xlfn.IFS(C149=$N$1,HYPERLINK("#"&"'Detailed assessment-charts'!B3","Rainwater Harvesting Flow Chart"),C149=$N$2,HYPERLINK("#"&"'Detailed assessment-charts'!B34","Reservoir Flow Chart"),C149=$N$3,HYPERLINK("#"&"'Detailed assessment-charts'!B68","Water Sharing Flow Chart"),C149=$N$4,HYPERLINK("#"&"'Detailed assessment-charts'!B102","Darinage Water Use Flow Chart"),C149=$N$5,HYPERLINK("#"&"'Detailed assessment-charts'!B136","Re-use flood water flow chart")),"") -> 
D150: =IFERROR(_xlfn.IFS(C150=$N$1,HYPERLINK("#"&"'Detailed assessment-charts'!B3","Rainwater Harvesting Flow Chart"),C150=$N$2,HYPERLINK("#"&"'Detailed assessment-charts'!B34","Reservoir Flow Chart"),C150=$N$3,HYPERLINK("#"&"'Detailed assessment-charts'!B68","Water Sharing Flow Chart"),C150=$N$4,HYPERLINK("#"&"'Detailed assessment-charts'!B102","Darinage Water Use Flow Chart"),C150=$N$5,HYPERLINK("#"&"'Detailed assessment-charts'!B136","Re-use flood water flow chart")),"") -> 
D151: =IFERROR(_xlfn.IFS(C151=$N$1,HYPERLINK("#"&"'Detailed assessment-charts'!B3","Rainwater Harvesting Flow Chart"),C151=$N$2,HYPERLINK("#"&"'Detailed assessment-charts'!B34","Reservoir Flow Chart"),C151=$N$3,HYPERLINK("#"&"'Detailed assessment-charts'!B68","Water Sharing Flow Chart"),C151=$N$4,HYPERLINK("#"&"'Detailed assessment-charts'!B102","Darinage Water Use Flow Chart"),C151=$N$5,HYPERLINK("#"&"'Detailed assessment-charts'!B136","Re-use flood water flow chart")),"") -> 
D152: =IFERROR(_xlfn.IFS(C152=$N$1,HYPERLINK("#"&"'Detailed assessment-charts'!B3","Rainwater Harvesting Flow Chart"),C152=$N$2,HYPERLINK("#"&"'Detailed assessment-charts'!B34","Reservoir Flow Chart"),C152=$N$3,HYPERLINK("#"&"'Detailed assessment-charts'!B68","Water Sharing Flow Chart"),C152=$N$4,HYPERLINK("#"&"'Detailed assessment-charts'!B102","Darinage Water Use Flow Chart"),C152=$N$5,HYPERLINK("#"&"'Detailed assessment-charts'!B136","Re-use flood water flow chart")),"") -> 
D153: =IFERROR(_xlfn.IFS(C153=$N$1,HYPERLINK("#"&"'Detailed assessment-charts'!B3","Rainwater Harvesting Flow Chart"),C153=$N$2,HYPERLINK("#"&"'Detailed assessment-charts'!B34","Reservoir Flow Chart"),C153=$N$3,HYPERLINK("#"&"'Detailed assessment-charts'!B68","Water Sharing Flow Chart"),C153=$N$4,HYPERLINK("#"&"'Detailed assessment-charts'!B102","Darinage Water Use Flow Chart"),C153=$N$5,HYPERLINK("#"&"'Detailed assessment-charts'!B136","Re-use flood water flow chart")),"") -> 
D154: =IFERROR(_xlfn.IFS(C154=$N$1,HYPERLINK("#"&"'Detailed assessment-charts'!B3","Rainwater Harvesting Flow Chart"),C154=$N$2,HYPERLINK("#"&"'Detailed assessment-charts'!B34","Reservoir Flow Chart"),C154=$N$3,HYPERLINK("#"&"'Detailed assessment-charts'!B68","Water Sharing Flow Chart"),C154=$N$4,HYPERLINK("#"&"'Detailed assessment-charts'!B102","Darinage Water Use Flow Chart"),C154=$N$5,HYPERLINK("#"&"'Detailed assessment-charts'!B136","Re-use flood water flow chart")),"") -> 
D155: =IFERROR(_xlfn.IFS(C155=$N$1,HYPERLINK("#"&"'Detailed assessment-charts'!B3","Rainwater Harvesting Flow Chart"),C155=$N$2,HYPERLINK("#"&"'Detailed assessment-charts'!B34","Reservoir Flow Chart"),C155=$N$3,HYPERLINK("#"&"'Detailed assessment-charts'!B68","Water Sharing Flow Chart"),C155=$N$4,HYPERLINK("#"&"'Detailed assessment-charts'!B102","Darinage Water Use Flow Chart"),C155=$N$5,HYPERLINK("#"&"'Detailed assessment-charts'!B136","Re-use flood water flow chart")),"") -> 
D156: =IFERROR(_xlfn.IFS(C156=$N$1,HYPERLINK("#"&"'Detailed assessment-charts'!B3","Rainwater Harvesting Flow Chart"),C156=$N$2,HYPERLINK("#"&"'Detailed assessment-charts'!B34","Reservoir Flow Chart"),C156=$N$3,HYPERLINK("#"&"'Detailed assessment-charts'!B68","Water Sharing Flow Chart"),C156=$N$4,HYPERLINK("#"&"'Detailed assessment-charts'!B102","Darinage Water Use Flow Chart"),C156=$N$5,HYPERLINK("#"&"'Detailed assessment-charts'!B136","Re-use flood water flow chart")),"") -> 
D157: =IFERROR(_xlfn.IFS(C157=$N$1,HYPERLINK("#"&"'Detailed assessment-charts'!B3","Rainwater Harvesting Flow Chart"),C157=$N$2,HYPERLINK("#"&"'Detailed assessment-charts'!B34","Reservoir Flow Chart"),C157=$N$3,HYPERLINK("#"&"'Detailed assessment-charts'!B68","Water Sharing Flow Chart"),C157=$N$4,HYPERLINK("#"&"'Detailed assessment-charts'!B102","Darinage Water Use Flow Chart"),C157=$N$5,HYPERLINK("#"&"'Detailed assessment-charts'!B136","Re-use flood water flow chart")),"") -> 
D158: =IFERROR(_xlfn.IFS(C158=$N$1,HYPERLINK("#"&"'Detailed assessment-charts'!B3","Rainwater Harvesting Flow Chart"),C158=$N$2,HYPERLINK("#"&"'Detailed assessment-charts'!B34","Reservoir Flow Chart"),C158=$N$3,HYPERLINK("#"&"'Detailed assessment-charts'!B68","Water Sharing Flow Chart"),C158=$N$4,HYPERLINK("#"&"'Detailed assessment-charts'!B102","Darinage Water Use Flow Chart"),C158=$N$5,HYPERLINK("#"&"'Detailed assessment-charts'!B136","Re-use flood water flow chart")),"") -> 
D159: =IFERROR(_xlfn.IFS(C159=$N$1,HYPERLINK("#"&"'Detailed assessment-charts'!B3","Rainwater Harvesting Flow Chart"),C159=$N$2,HYPERLINK("#"&"'Detailed assessment-charts'!B34","Reservoir Flow Chart"),C159=$N$3,HYPERLINK("#"&"'Detailed assessment-charts'!B68","Water Sharing Flow Chart"),C159=$N$4,HYPERLINK("#"&"'Detailed assessment-charts'!B102","Darinage Water Use Flow Chart"),C159=$N$5,HYPERLINK("#"&"'Detailed assessment-charts'!B136","Re-use flood water flow chart")),"") -> 
D160: =IFERROR(_xlfn.IFS(C160=$N$1,HYPERLINK("#"&"'Detailed assessment-charts'!B3","Rainwater Harvesting Flow Chart"),C160=$N$2,HYPERLINK("#"&"'Detailed assessment-charts'!B34","Reservoir Flow Chart"),C160=$N$3,HYPERLINK("#"&"'Detailed assessment-charts'!B68","Water Sharing Flow Chart"),C160=$N$4,HYPERLINK("#"&"'Detailed assessment-charts'!B102","Darinage Water Use Flow Chart"),C160=$N$5,HYPERLINK("#"&"'Detailed assessment-charts'!B136","Re-use flood water flow chart")),"") -> 
D161: =IFERROR(_xlfn.IFS(C161=$N$1,HYPERLINK("#"&"'Detailed assessment-charts'!B3","Rainwater Harvesting Flow Chart"),C161=$N$2,HYPERLINK("#"&"'Detailed assessment-charts'!B34","Reservoir Flow Chart"),C161=$N$3,HYPERLINK("#"&"'Detailed assessment-charts'!B68","Water Sharing Flow Chart"),C161=$N$4,HYPERLINK("#"&"'Detailed assessment-charts'!B102","Darinage Water Use Flow Chart"),C161=$N$5,HYPERLINK("#"&"'Detailed assessment-charts'!B136","Re-use flood water flow chart")),"") -> 
D162: =IFERROR(_xlfn.IFS(C162=$N$1,HYPERLINK("#"&"'Detailed assessment-charts'!B3","Rainwater Harvesting Flow Chart"),C162=$N$2,HYPERLINK("#"&"'Detailed assessment-charts'!B34","Reservoir Flow Chart"),C162=$N$3,HYPERLINK("#"&"'Detailed assessment-charts'!B68","Water Sharing Flow Chart"),C162=$N$4,HYPERLINK("#"&"'Detailed assessment-charts'!B102","Darinage Water Use Flow Chart"),C162=$N$5,HYPERLINK("#"&"'Detailed assessment-charts'!B136","Re-use flood water flow chart")),"") -> 
D163: =IFERROR(_xlfn.IFS(C163=$N$1,HYPERLINK("#"&"'Detailed assessment-charts'!B3","Rainwater Harvesting Flow Chart"),C163=$N$2,HYPERLINK("#"&"'Detailed assessment-charts'!B34","Reservoir Flow Chart"),C163=$N$3,HYPERLINK("#"&"'Detailed assessment-charts'!B68","Water Sharing Flow Chart"),C163=$N$4,HYPERLINK("#"&"'Detailed assessment-charts'!B102","Darinage Water Use Flow Chart"),C163=$N$5,HYPERLINK("#"&"'Detailed assessment-charts'!B136","Re-use flood water flow chart")),"") -> 
D164: =IFERROR(_xlfn.IFS(C164=$N$1,HYPERLINK("#"&"'Detailed assessment-charts'!B3","Rainwater Harvesting Flow Chart"),C164=$N$2,HYPERLINK("#"&"'Detailed assessment-charts'!B34","Reservoir Flow Chart"),C164=$N$3,HYPERLINK("#"&"'Detailed assessment-charts'!B68","Water Sharing Flow Chart"),C164=$N$4,HYPERLINK("#"&"'Detailed assessment-charts'!B102","Darinage Water Use Flow Chart"),C164=$N$5,HYPERLINK("#"&"'Detailed assessment-charts'!B136","Re-use flood water flow chart")),"") -> 
D165: =IFERROR(_xlfn.IFS(C165=$N$1,HYPERLINK("#"&"'Detailed assessment-charts'!B3","Rainwater Harvesting Flow Chart"),C165=$N$2,HYPERLINK("#"&"'Detailed assessment-charts'!B34","Reservoir Flow Chart"),C165=$N$3,HYPERLINK("#"&"'Detailed assessment-charts'!B68","Water Sharing Flow Chart"),C165=$N$4,HYPERLINK("#"&"'Detailed assessment-charts'!B102","Darinage Water Use Flow Chart"),C165=$N$5,HYPERLINK("#"&"'Detailed assessment-charts'!B136","Re-use flood water flow chart")),"") -> 
D166: =IFERROR(_xlfn.IFS(C166=$N$1,HYPERLINK("#"&"'Detailed assessment-charts'!B3","Rainwater Harvesting Flow Chart"),C166=$N$2,HYPERLINK("#"&"'Detailed assessment-charts'!B34","Reservoir Flow Chart"),C166=$N$3,HYPERLINK("#"&"'Detailed assessment-charts'!B68","Water Sharing Flow Chart"),C166=$N$4,HYPERLINK("#"&"'Detailed assessment-charts'!B102","Darinage Water Use Flow Chart"),C166=$N$5,HYPERLINK("#"&"'Detailed assessment-charts'!B136","Re-use flood water flow chart")),"") -> 
D167: =IFERROR(_xlfn.IFS(C167=$N$1,HYPERLINK("#"&"'Detailed assessment-charts'!B3","Rainwater Harvesting Flow Chart"),C167=$N$2,HYPERLINK("#"&"'Detailed assessment-charts'!B34","Reservoir Flow Chart"),C167=$N$3,HYPERLINK("#"&"'Detailed assessment-charts'!B68","Water Sharing Flow Chart"),C167=$N$4,HYPERLINK("#"&"'Detailed assessment-charts'!B102","Darinage Water Use Flow Chart"),C167=$N$5,HYPERLINK("#"&"'Detailed assessment-charts'!B136","Re-use flood water flow chart")),"") -> 
D168: =IFERROR(_xlfn.IFS(C168=$N$1,HYPERLINK("#"&"'Detailed assessment-charts'!B3","Rainwater Harvesting Flow Chart"),C168=$N$2,HYPERLINK("#"&"'Detailed assessment-charts'!B34","Reservoir Flow Chart"),C168=$N$3,HYPERLINK("#"&"'Detailed assessment-charts'!B68","Water Sharing Flow Chart"),C168=$N$4,HYPERLINK("#"&"'Detailed assessment-charts'!B102","Darinage Water Use Flow Chart"),C168=$N$5,HYPERLINK("#"&"'Detailed assessment-charts'!B136","Re-use flood water flow chart")),"") -> 
D169: =IFERROR(_xlfn.IFS(C169=$N$1,HYPERLINK("#"&"'Detailed assessment-charts'!B3","Rainwater Harvesting Flow Chart"),C169=$N$2,HYPERLINK("#"&"'Detailed assessment-charts'!B34","Reservoir Flow Chart"),C169=$N$3,HYPERLINK("#"&"'Detailed assessment-charts'!B68","Water Sharing Flow Chart"),C169=$N$4,HYPERLINK("#"&"'Detailed assessment-charts'!B102","Darinage Water Use Flow Chart"),C169=$N$5,HYPERLINK("#"&"'Detailed assessment-charts'!B136","Re-use flood water flow chart")),"") -> 
D170: =IFERROR(_xlfn.IFS(C170=$N$1,HYPERLINK("#"&"'Detailed assessment-charts'!B3","Rainwater Harvesting Flow Chart"),C170=$N$2,HYPERLINK("#"&"'Detailed assessment-charts'!B34","Reservoir Flow Chart"),C170=$N$3,HYPERLINK("#"&"'Detailed assessment-charts'!B68","Water Sharing Flow Chart"),C170=$N$4,HYPERLINK("#"&"'Detailed assessment-charts'!B102","Darinage Water Use Flow Chart"),C170=$N$5,HYPERLINK("#"&"'Detailed assessment-charts'!B136","Re-use flood water flow chart")),"") -> 
D171: =IFERROR(_xlfn.IFS(C171=$N$1,HYPERLINK("#"&"'Detailed assessment-charts'!B3","Rainwater Harvesting Flow Chart"),C171=$N$2,HYPERLINK("#"&"'Detailed assessment-charts'!B34","Reservoir Flow Chart"),C171=$N$3,HYPERLINK("#"&"'Detailed assessment-charts'!B68","Water Sharing Flow Chart"),C171=$N$4,HYPERLINK("#"&"'Detailed assessment-charts'!B102","Darinage Water Use Flow Chart"),C171=$N$5,HYPERLINK("#"&"'Detailed assessment-charts'!B136","Re-use flood water flow chart")),"") -> 
D172: =IFERROR(_xlfn.IFS(C172=$N$1,HYPERLINK("#"&"'Detailed assessment-charts'!B3","Rainwater Harvesting Flow Chart"),C172=$N$2,HYPERLINK("#"&"'Detailed assessment-charts'!B34","Reservoir Flow Chart"),C172=$N$3,HYPERLINK("#"&"'Detailed assessment-charts'!B68","Water Sharing Flow Chart"),C172=$N$4,HYPERLINK("#"&"'Detailed assessment-charts'!B102","Darinage Water Use Flow Chart"),C172=$N$5,HYPERLINK("#"&"'Detailed assessment-charts'!B136","Re-use flood water flow chart")),"") -> 
D173: =IFERROR(_xlfn.IFS(C173=$N$1,HYPERLINK("#"&"'Detailed assessment-charts'!B3","Rainwater Harvesting Flow Chart"),C173=$N$2,HYPERLINK("#"&"'Detailed assessment-charts'!B34","Reservoir Flow Chart"),C173=$N$3,HYPERLINK("#"&"'Detailed assessment-charts'!B68","Water Sharing Flow Chart"),C173=$N$4,HYPERLINK("#"&"'Detailed assessment-charts'!B102","Darinage Water Use Flow Chart"),C173=$N$5,HYPERLINK("#"&"'Detailed assessment-charts'!B136","Re-use flood water flow chart")),"") -> 
D174: =IFERROR(_xlfn.IFS(C174=$N$1,HYPERLINK("#"&"'Detailed assessment-charts'!B3","Rainwater Harvesting Flow Chart"),C174=$N$2,HYPERLINK("#"&"'Detailed assessment-charts'!B34","Reservoir Flow Chart"),C174=$N$3,HYPERLINK("#"&"'Detailed assessment-charts'!B68","Water Sharing Flow Chart"),C174=$N$4,HYPERLINK("#"&"'Detailed assessment-charts'!B102","Darinage Water Use Flow Chart"),C174=$N$5,HYPERLINK("#"&"'Detailed assessment-charts'!B136","Re-use flood water flow chart")),"") -> 
D175: =IFERROR(_xlfn.IFS(C175=$N$1,HYPERLINK("#"&"'Detailed assessment-charts'!B3","Rainwater Harvesting Flow Chart"),C175=$N$2,HYPERLINK("#"&"'Detailed assessment-charts'!B34","Reservoir Flow Chart"),C175=$N$3,HYPERLINK("#"&"'Detailed assessment-charts'!B68","Water Sharing Flow Chart"),C175=$N$4,HYPERLINK("#"&"'Detailed assessment-charts'!B102","Darinage Water Use Flow Chart"),C175=$N$5,HYPERLINK("#"&"'Detailed assessment-charts'!B136","Re-use flood water flow chart")),"") -> 
D176: =IFERROR(_xlfn.IFS(C176=$N$1,HYPERLINK("#"&"'Detailed assessment-charts'!B3","Rainwater Harvesting Flow Chart"),C176=$N$2,HYPERLINK("#"&"'Detailed assessment-charts'!B34","Reservoir Flow Chart"),C176=$N$3,HYPERLINK("#"&"'Detailed assessment-charts'!B68","Water Sharing Flow Chart"),C176=$N$4,HYPERLINK("#"&"'Detailed assessment-charts'!B102","Darinage Water Use Flow Chart"),C176=$N$5,HYPERLINK("#"&"'Detailed assessment-charts'!B136","Re-use flood water flow chart")),"") -> 
D177: =IFERROR(_xlfn.IFS(C177=$N$1,HYPERLINK("#"&"'Detailed assessment-charts'!B3","Rainwater Harvesting Flow Chart"),C177=$N$2,HYPERLINK("#"&"'Detailed assessment-charts'!B34","Reservoir Flow Chart"),C177=$N$3,HYPERLINK("#"&"'Detailed assessment-charts'!B68","Water Sharing Flow Chart"),C177=$N$4,HYPERLINK("#"&"'Detailed assessment-charts'!B102","Darinage Water Use Flow Chart"),C177=$N$5,HYPERLINK("#"&"'Detailed assessment-charts'!B136","Re-use flood water flow chart")),"") -> 
D178: =IFERROR(_xlfn.IFS(C178=$N$1,HYPERLINK("#"&"'Detailed assessment-charts'!B3","Rainwater Harvesting Flow Chart"),C178=$N$2,HYPERLINK("#"&"'Detailed assessment-charts'!B34","Reservoir Flow Chart"),C178=$N$3,HYPERLINK("#"&"'Detailed assessment-charts'!B68","Water Sharing Flow Chart"),C178=$N$4,HYPERLINK("#"&"'Detailed assessment-charts'!B102","Darinage Water Use Flow Chart"),C178=$N$5,HYPERLINK("#"&"'Detailed assessment-charts'!B136","Re-use flood water flow chart")),"") -> 
D179: =IFERROR(_xlfn.IFS(C179=$N$1,HYPERLINK("#"&"'Detailed assessment-charts'!B3","Rainwater Harvesting Flow Chart"),C179=$N$2,HYPERLINK("#"&"'Detailed assessment-charts'!B34","Reservoir Flow Chart"),C179=$N$3,HYPERLINK("#"&"'Detailed assessment-charts'!B68","Water Sharing Flow Chart"),C179=$N$4,HYPERLINK("#"&"'Detailed assessment-charts'!B102","Darinage Water Use Flow Chart"),C179=$N$5,HYPERLINK("#"&"'Detailed assessment-charts'!B136","Re-use flood water flow chart")),"") -> 
D180: =IFERROR(_xlfn.IFS(C180=$N$1,HYPERLINK("#"&"'Detailed assessment-charts'!B3","Rainwater Harvesting Flow Chart"),C180=$N$2,HYPERLINK("#"&"'Detailed assessment-charts'!B34","Reservoir Flow Chart"),C180=$N$3,HYPERLINK("#"&"'Detailed assessment-charts'!B68","Water Sharing Flow Chart"),C180=$N$4,HYPERLINK("#"&"'Detailed assessment-charts'!B102","Darinage Water Use Flow Chart"),C180=$N$5,HYPERLINK("#"&"'Detailed assessment-charts'!B136","Re-use flood water flow chart")),"") -> 
D181: =IFERROR(_xlfn.IFS(C181=$N$1,HYPERLINK("#"&"'Detailed assessment-charts'!B3","Rainwater Harvesting Flow Chart"),C181=$N$2,HYPERLINK("#"&"'Detailed assessment-charts'!B34","Reservoir Flow Chart"),C181=$N$3,HYPERLINK("#"&"'Detailed assessment-charts'!B68","Water Sharing Flow Chart"),C181=$N$4,HYPERLINK("#"&"'Detailed assessment-charts'!B102","Darinage Water Use Flow Chart"),C181=$N$5,HYPERLINK("#"&"'Detailed assessment-charts'!B136","Re-use flood water flow chart")),"") -> 
D182: =IFERROR(_xlfn.IFS(C182=$N$1,HYPERLINK("#"&"'Detailed assessment-charts'!B3","Rainwater Harvesting Flow Chart"),C182=$N$2,HYPERLINK("#"&"'Detailed assessment-charts'!B34","Reservoir Flow Chart"),C182=$N$3,HYPERLINK("#"&"'Detailed assessment-charts'!B68","Water Sharing Flow Chart"),C182=$N$4,HYPERLINK("#"&"'Detailed assessment-charts'!B102","Darinage Water Use Flow Chart"),C182=$N$5,HYPERLINK("#"&"'Detailed assessment-charts'!B136","Re-use flood water flow chart")),"") -> 
D183: =IFERROR(_xlfn.IFS(C183=$N$1,HYPERLINK("#"&"'Detailed assessment-charts'!B3","Rainwater Harvesting Flow Chart"),C183=$N$2,HYPERLINK("#"&"'Detailed assessment-charts'!B34","Reservoir Flow Chart"),C183=$N$3,HYPERLINK("#"&"'Detailed assessment-charts'!B68","Water Sharing Flow Chart"),C183=$N$4,HYPERLINK("#"&"'Detailed assessment-charts'!B102","Darinage Water Use Flow Chart"),C183=$N$5,HYPERLINK("#"&"'Detailed assessment-charts'!B136","Re-use flood water flow chart")),"") -> 
D184: =IFERROR(_xlfn.IFS(C184=$N$1,HYPERLINK("#"&"'Detailed assessment-charts'!B3","Rainwater Harvesting Flow Chart"),C184=$N$2,HYPERLINK("#"&"'Detailed assessment-charts'!B34","Reservoir Flow Chart"),C184=$N$3,HYPERLINK("#"&"'Detailed assessment-charts'!B68","Water Sharing Flow Chart"),C184=$N$4,HYPERLINK("#"&"'Detailed assessment-charts'!B102","Darinage Water Use Flow Chart"),C184=$N$5,HYPERLINK("#"&"'Detailed assessment-charts'!B136","Re-use flood water flow chart")),"") -> 
D185: =IFERROR(_xlfn.IFS(C185=$N$1,HYPERLINK("#"&"'Detailed assessment-charts'!B3","Rainwater Harvesting Flow Chart"),C185=$N$2,HYPERLINK("#"&"'Detailed assessment-charts'!B34","Reservoir Flow Chart"),C185=$N$3,HYPERLINK("#"&"'Detailed assessment-charts'!B68","Water Sharing Flow Chart"),C185=$N$4,HYPERLINK("#"&"'Detailed assessment-charts'!B102","Darinage Water Use Flow Chart"),C185=$N$5,HYPERLINK("#"&"'Detailed assessment-charts'!B136","Re-use flood water flow chart")),"") -> 
D186: =IFERROR(_xlfn.IFS(C186=$N$1,HYPERLINK("#"&"'Detailed assessment-charts'!B3","Rainwater Harvesting Flow Chart"),C186=$N$2,HYPERLINK("#"&"'Detailed assessment-charts'!B34","Reservoir Flow Chart"),C186=$N$3,HYPERLINK("#"&"'Detailed assessment-charts'!B68","Water Sharing Flow Chart"),C186=$N$4,HYPERLINK("#"&"'Detailed assessment-charts'!B102","Darinage Water Use Flow Chart"),C186=$N$5,HYPERLINK("#"&"'Detailed assessment-charts'!B136","Re-use flood water flow chart")),"") -> 
D187: =IFERROR(_xlfn.IFS(C187=$N$1,HYPERLINK("#"&"'Detailed assessment-charts'!B3","Rainwater Harvesting Flow Chart"),C187=$N$2,HYPERLINK("#"&"'Detailed assessment-charts'!B34","Reservoir Flow Chart"),C187=$N$3,HYPERLINK("#"&"'Detailed assessment-charts'!B68","Water Sharing Flow Chart"),C187=$N$4,HYPERLINK("#"&"'Detailed assessment-charts'!B102","Darinage Water Use Flow Chart"),C187=$N$5,HYPERLINK("#"&"'Detailed assessment-charts'!B136","Re-use flood water flow chart")),"") -> 
D188: =IFERROR(_xlfn.IFS(C188=$N$1,HYPERLINK("#"&"'Detailed assessment-charts'!B3","Rainwater Harvesting Flow Chart"),C188=$N$2,HYPERLINK("#"&"'Detailed assessment-charts'!B34","Reservoir Flow Chart"),C188=$N$3,HYPERLINK("#"&"'Detailed assessment-charts'!B68","Water Sharing Flow Chart"),C188=$N$4,HYPERLINK("#"&"'Detailed assessment-charts'!B102","Darinage Water Use Flow Chart"),C188=$N$5,HYPERLINK("#"&"'Detailed assessment-charts'!B136","Re-use flood water flow chart")),"") -> 
D189: =IFERROR(_xlfn.IFS(C189=$N$1,HYPERLINK("#"&"'Detailed assessment-charts'!B3","Rainwater Harvesting Flow Chart"),C189=$N$2,HYPERLINK("#"&"'Detailed assessment-charts'!B34","Reservoir Flow Chart"),C189=$N$3,HYPERLINK("#"&"'Detailed assessment-charts'!B68","Water Sharing Flow Chart"),C189=$N$4,HYPERLINK("#"&"'Detailed assessment-charts'!B102","Darinage Water Use Flow Chart"),C189=$N$5,HYPERLINK("#"&"'Detailed assessment-charts'!B136","Re-use flood water flow chart")),"") -> 
D190: =IFERROR(_xlfn.IFS(C190=$N$1,HYPERLINK("#"&"'Detailed assessment-charts'!B3","Rainwater Harvesting Flow Chart"),C190=$N$2,HYPERLINK("#"&"'Detailed assessment-charts'!B34","Reservoir Flow Chart"),C190=$N$3,HYPERLINK("#"&"'Detailed assessment-charts'!B68","Water Sharing Flow Chart"),C190=$N$4,HYPERLINK("#"&"'Detailed assessment-charts'!B102","Darinage Water Use Flow Chart"),C190=$N$5,HYPERLINK("#"&"'Detailed assessment-charts'!B136","Re-use flood water flow chart")),"") -> 
D191: =IFERROR(_xlfn.IFS(C191=$N$1,HYPERLINK("#"&"'Detailed assessment-charts'!B3","Rainwater Harvesting Flow Chart"),C191=$N$2,HYPERLINK("#"&"'Detailed assessment-charts'!B34","Reservoir Flow Chart"),C191=$N$3,HYPERLINK("#"&"'Detailed assessment-charts'!B68","Water Sharing Flow Chart"),C191=$N$4,HYPERLINK("#"&"'Detailed assessment-charts'!B102","Darinage Water Use Flow Chart"),C191=$N$5,HYPERLINK("#"&"'Detailed assessment-charts'!B136","Re-use flood water flow chart")),"") -> 
D192: =IFERROR(_xlfn.IFS(C192=$N$1,HYPERLINK("#"&"'Detailed assessment-charts'!B3","Rainwater Harvesting Flow Chart"),C192=$N$2,HYPERLINK("#"&"'Detailed assessment-charts'!B34","Reservoir Flow Chart"),C192=$N$3,HYPERLINK("#"&"'Detailed assessment-charts'!B68","Water Sharing Flow Chart"),C192=$N$4,HYPERLINK("#"&"'Detailed assessment-charts'!B102","Darinage Water Use Flow Chart"),C192=$N$5,HYPERLINK("#"&"'Detailed assessment-charts'!B136","Re-use flood water flow chart")),"") -> 
D193: =IFERROR(_xlfn.IFS(C193=$N$1,HYPERLINK("#"&"'Detailed assessment-charts'!B3","Rainwater Harvesting Flow Chart"),C193=$N$2,HYPERLINK("#"&"'Detailed assessment-charts'!B34","Reservoir Flow Chart"),C193=$N$3,HYPERLINK("#"&"'Detailed assessment-charts'!B68","Water Sharing Flow Chart"),C193=$N$4,HYPERLINK("#"&"'Detailed assessment-charts'!B102","Darinage Water Use Flow Chart"),C193=$N$5,HYPERLINK("#"&"'Detailed assessment-charts'!B136","Re-use flood water flow chart")),"") -> 
D194: =IFERROR(_xlfn.IFS(C194=$N$1,HYPERLINK("#"&"'Detailed assessment-charts'!B3","Rainwater Harvesting Flow Chart"),C194=$N$2,HYPERLINK("#"&"'Detailed assessment-charts'!B34","Reservoir Flow Chart"),C194=$N$3,HYPERLINK("#"&"'Detailed assessment-charts'!B68","Water Sharing Flow Chart"),C194=$N$4,HYPERLINK("#"&"'Detailed assessment-charts'!B102","Darinage Water Use Flow Chart"),C194=$N$5,HYPERLINK("#"&"'Detailed assessment-charts'!B136","Re-use flood water flow chart")),"") -> 
D195: =IFERROR(_xlfn.IFS(C195=$N$1,HYPERLINK("#"&"'Detailed assessment-charts'!B3","Rainwater Harvesting Flow Chart"),C195=$N$2,HYPERLINK("#"&"'Detailed assessment-charts'!B34","Reservoir Flow Chart"),C195=$N$3,HYPERLINK("#"&"'Detailed assessment-charts'!B68","Water Sharing Flow Chart"),C195=$N$4,HYPERLINK("#"&"'Detailed assessment-charts'!B102","Darinage Water Use Flow Chart"),C195=$N$5,HYPERLINK("#"&"'Detailed assessment-charts'!B136","Re-use flood water flow chart")),"") -> 
D196: =IFERROR(_xlfn.IFS(C196=$N$1,HYPERLINK("#"&"'Detailed assessment-charts'!B3","Rainwater Harvesting Flow Chart"),C196=$N$2,HYPERLINK("#"&"'Detailed assessment-charts'!B34","Reservoir Flow Chart"),C196=$N$3,HYPERLINK("#"&"'Detailed assessment-charts'!B68","Water Sharing Flow Chart"),C196=$N$4,HYPERLINK("#"&"'Detailed assessment-charts'!B102","Darinage Water Use Flow Chart"),C196=$N$5,HYPERLINK("#"&"'Detailed assessment-charts'!B136","Re-use flood water flow chart")),"") -> 
D197: =IFERROR(_xlfn.IFS(C197=$N$1,HYPERLINK("#"&"'Detailed assessment-charts'!B3","Rainwater Harvesting Flow Chart"),C197=$N$2,HYPERLINK("#"&"'Detailed assessment-charts'!B34","Reservoir Flow Chart"),C197=$N$3,HYPERLINK("#"&"'Detailed assessment-charts'!B68","Water Sharing Flow Chart"),C197=$N$4,HYPERLINK("#"&"'Detailed assessment-charts'!B102","Darinage Water Use Flow Chart"),C197=$N$5,HYPERLINK("#"&"'Detailed assessment-charts'!B136","Re-use flood water flow chart")),"") -> 
D198: =IFERROR(_xlfn.IFS(C198=$N$1,HYPERLINK("#"&"'Detailed assessment-charts'!B3","Rainwater Harvesting Flow Chart"),C198=$N$2,HYPERLINK("#"&"'Detailed assessment-charts'!B34","Reservoir Flow Chart"),C198=$N$3,HYPERLINK("#"&"'Detailed assessment-charts'!B68","Water Sharing Flow Chart"),C198=$N$4,HYPERLINK("#"&"'Detailed assessment-charts'!B102","Darinage Water Use Flow Chart"),C198=$N$5,HYPERLINK("#"&"'Detailed assessment-charts'!B136","Re-use flood water flow chart")),"") -> 
D199: =IFERROR(_xlfn.IFS(C199=$N$1,HYPERLINK("#"&"'Detailed assessment-charts'!B3","Rainwater Harvesting Flow Chart"),C199=$N$2,HYPERLINK("#"&"'Detailed assessment-charts'!B34","Reservoir Flow Chart"),C199=$N$3,HYPERLINK("#"&"'Detailed assessment-charts'!B68","Water Sharing Flow Chart"),C199=$N$4,HYPERLINK("#"&"'Detailed assessment-charts'!B102","Darinage Water Use Flow Chart"),C199=$N$5,HYPERLINK("#"&"'Detailed assessment-charts'!B136","Re-use flood water flow chart")),"") -> 
D200: =IFERROR(_xlfn.IFS(C200=$N$1,HYPERLINK("#"&"'Detailed assessment-charts'!B3","Rainwater Harvesting Flow Chart"),C200=$N$2,HYPERLINK("#"&"'Detailed assessment-charts'!B34","Reservoir Flow Chart"),C200=$N$3,HYPERLINK("#"&"'Detailed assessment-charts'!B68","Water Sharing Flow Chart"),C200=$N$4,HYPERLINK("#"&"'Detailed assessment-charts'!B102","Darinage Water Use Flow Chart"),C200=$N$5,HYPERLINK("#"&"'Detailed assessment-charts'!B136","Re-use flood water flow chart")),"") -> 
... 2800 more rows

Sheet Detailed assessment-charts
B3: Rainwater Harvesting
C9: Assesment and Planning | R9: Design | AG9: Regulatory Compliance and Permissions
C12: Identify water needs: calculate water requirements | H12: Evaluate rainfall patterns: analyse local rainfall data | M12: Identify suitable solutions | R12: Catchment area selection: Choose surfaces | W12: Storage Capacity Determination: Calculate required storage | AB12: System components design: specify system components | AG12: Local regulations check: investigate local codes | AL12: Permit applications: apply for necessary permits
B18: Irrigation Reservoir
AE19: If the sizing changes, go back to Permission and Regulatory Compliance
C24: Preliminary Planning and Site Assesment | R24: Permission and Regulatory Compliance | AB24: Data collection and analysis | AQ24: Iterative reservoir sizing and benefits/cost assessment
C27: Identify potential sites or assess existing reservoirs | H27: Conduct site visits and preliminary surveys | M27: Perform initial yield analysis to size pre-appplication approach to EA | R27: Obtain necessary permissions and approvals | W27: Ensure compliance with relevent legislation | AB27: Gather streamflow measurements or use rainfall runoff modelling | AG27: Perform yield analysis for storage capacity | AL27: Utilise EA Lowflows software for data analysis | AQ27: Conduct an iterative process for reservoir sizing | AV27: Assess benefits and cost for each size
B34: Water sharing/ Aggregated Licences
C40: Water Resource Assessment | R40: Legal Framework and Licensing Review | AG40: Agricultural Water Demand Analysis | AV40: Stakeholder Engagement | BK40: Licence Management and Allocation | BZ40: Conservation and Efficiency Measures | CO40: Adaptive Management and Review
C43: Inventory Water Sources | H43: Quantify Available Water | M43: Assess Water Quality | R43: Understand Water Rights and Regulations | W43: Review Existing Licences | AB43: Identify Gaps and Overlaps | AG43: Evaluate Agricultural Needs | AL43: Calculate Water Demand | AQ43: Prioritise Water Use | AV43: Stakeholder barrier identification | BA43: Facilitate Stakeholder Meetings | BF43: Develop Shared Objectives | BK43: Design Allocation Framework | BP43: Issue or Adjust Licences | BU43: Monitoring and Reporting | BZ43: Promote Water-Saving Technologies | CE43: Support Best Practices | CJ43: Implement Water Recycling and Reuse | CO43: Monitor Water Resources and Use | CT43: Update Stakeholders
B50: Drainage
C56: Feasibility Assesment | M56: Water Quality Analysis | W56: Treatment Requirements | AG56: Proximity and Infrastructure Planning | AQ56: Cost Analysis | BA56: Storage Assessment | BK56: Financial and Environmetal Sustainability | BU56: Stakeholder Engagement and Approval
C59: Assess legal compliance | H59: Water availability | M59: Initial testing | R59: Risk Assessment | W59: Treatment Necessity | AB59: Treatment Options | AG59: Water to Demand Proximity | AL59: Infrastructure Design | AQ59: Capital Costs Estimation | AV59: Operating Costs Estimation | BA59: Storage Necessity | BF59: Storage Options: Reservoirs. ASR | BK59: Cost Benefit Analysis | BP59: Environmental Impact Assessment | BU59: Engage Stakeholders | BZ59: Regulatory Approval
B66: Re-use of floodwater
C72: Floodwater Assessment and Mapping | R72: Water Quality and Treatment Considerations | AB72: Infrastructure Development for Capture and Storage | AQ72: Regulatory Compliance and Licensing | BA72: Stakeholder Engagement and Community Involvement | BP72: Environmental Conservation and Enhancement | CE72: Implementation, Monitoring, and Adaptation | CT72: Financial and Technical Support
C75: Identify Flood-prone Areas | H75: Evaluate Floodwater Volumes | M75: Understand Flood Patterns | R75: Assess Water Quality | W75: Design Treatment Solutions | AB75: Design Capture Systems | AG75: Develop Storage Solutions | AL75: Distribution Networks | AQ75: Understand Legal Frameworks | AV75: Secure Necessary Permits | BA75: Identify Key Stakeholders | BF75: Facilitate Collaboration | BK75: Promote Awareness and Education | BP75: Integrate Environmental Flows | BU75: Promote Biodiversity | BZ75: Monitor Ecological Impacts | CE75: Pilot Projects | CJ75: Establish Monitoring Systems | CO75: Adapt and Scale Up | CT75: Secure Funding | CY75: Provide Technical Assistance

Sheet References
A1: Reference/Link | B1: Type | C1: Description
A2: Irmak et al. (2005) | B2: Paper | C2: Crop coefficient (Kc) values for different crops.
A3: Water (2021) | B3: Report | C3: Main crop types in the UK and their water needs.
A4: Environment Agency's estimates of water use | B4: Link | C4: Water use for general agriculture in the UK.
A5: How much water crops need | B5: Link | C5: Guide on crop water requirements.
A6: FAO guide on irrigation needs | B6: Link | C6: Calculating irrigation needs.
A7: Calculating crop water use | B7: Link | C7: Guide on crop water use.
A8: Cranfield University | B8: Report | C8: Efficient irrigation and water storage reservoirs guides.
A9: Kent County Council (2015) | B9: Guide | C9: Design Guide for Irrigation Reservoirs in Kent.
A10: Building or modifying a reservoir in the UK | B10: Link | C10: Requirements for building/modifying a reservoir.
A11: UK Legislation | B11: Link | C11: Relevant to planning an irrigation reservoir.
A12: Turner et al. (2015) | B12: Paper | C12: Abstraction licence application process and planning consent for reservoirs.
A13: NFU Farm Energy Service | B13: Link | C13: Guidance on solar PV for farms.
A14: Irrigation guide for new growers | B14: Guide | C14: Pete Dollimore's irrigation guide.
A15: Guidance Rainwater harvesting: regulatory position statement | B15: Link | C15: UK Government's guidance on rainwater harvesting.
A16: L.S. Pereira, I. Alves (2005) | B16: Paper | C16: Crop water requirements research.
A17: UKIA - Irrigation Best Practice | B17: Link | C17: Water management for field vegetable crops.
A18: AHDB DIY Full Water Audit Pack | B18: Link | C18: Full water audit pack for agriculture.
A19: Water Requirements of Livestock | B19: Link | C19: Factors affecting livestock water requirements.
A20: LandIS - Soilscapes | B20: Link | C20: England soil map and information.
A21: Enduramaxx - Agricultural Rainwater Harvesting Systems | B21: Link | C21: Guide on agricultural rainwater harvesting systems.
A22: D&H Group - Rainwater Harvesting | B22: Link | C22: Advice on agricultural rainwater harvesting.
A23: Met Office - Historic Station Data | B23: Link | C23: Rainfall data for the UK.
A24: EA Rainwater Harvesting: an on-farm guide | B24: Link | C24: Comprehensive guide on farm rainwater harvesting.
A25: Building Regulations 2000 - Drainage and Waste Disposal | B25: Link | C25: UK Government legislation on drainage and waste disposal.
A26: RWH book - UKIA Irrigation | B26: Link | C26: Cranfield rainwater harvesting booklet
A27: RWH Tool | B27: Link | C27: Cranfield rainwater harvesting tool
A28: Benefits of Rainwater Harvesting Systems | B28: Link | C28: Insights on sustainability and BREEAM scoring for rainwater harvesting.

Sheet Drop-down lists (hidden)
A2: Sensitivity analysis boundaries | C2: Benefit contribution (%)
A3: 0.125 | C3: 0.1
A4: 0.25 | C4: 0.25
A5: 0.375 | C5: 0.5
A6: 0.5 | C6: 0.75
A7: 0.625 | C7: 1
A8: 0.75
A9: 0.875
A10: 1
A11: 1.125
A12: 1.25
A13: 1.375
A14: 1.5
A15: 1.625
A16: 1.75
A17: 1.875
A18: 2
